{"text_format":"1","workbook":"xlsx","n_sheets":7,"sheets":["入力方法　※必ずお読みください","①中学校名","②氏名・生年月日・入卒","③評定","④欠席・遅刻・早退","⑤健康・特活・転校・所見","推薦書印刷"],"not_rendered":{"charts":0,"images":0,"macros":1,"external_links":0,"defined_names":1,"comments":0,"pivot_tables":0},"unopened":[],"bounds":{"document_bytes":16777216,"sheet_cells":100000,"rows_first":2000,"rows_last":500,"rows_between":2000,"halvings":0,"cell_chars":16384,"cell_head_chars":4096},"cells_cut":0,"cells_raw":0,"read":"whole","date_system":"1900"}

{"sheet":"入力方法　※必ずお読みください","index":0,"n_rows":61,"n_cols":5,"rows_kept":61,"cut":false,"hidden":false,"merged":[[41,2,41,3],[44,2,44,3],[25,2,25,3]]}
[]
[null,"推薦書入力方法について"]
[]
[]
[]
[null,null,"次の７つのシートがあります。"]
[null,null,"１．","入力方法（本シート）"]
[null,null,"２．","中学校名"]
[null,null,"３．","氏名・生年月日・入卒"]
[null,null,"４．","評定"]
[null,null,"５．","欠席・遅刻・早退"]
[null,null,"６．","健康・特活・転校・所見"]
[null,null,"７．","推薦書印刷"]
[]
[null,null,"上の２～６のシートに順番通り入力し、「推薦書印刷」シートで印刷となります。"]
[]
[null,null,"①中学校名","シート"]
[null,null,null,"文字または数字は白色の部分に入力してください。"]
[null,null,null,"水色の部分は入力できないように保護されています。"]
[null,null,"・","提出年月日を赤の枠に（入力例）のように半角数字で入力してください。"]
[null,null,"・","中学校名(義務教育学校名）を赤の枠に（入力例）のように入力してください。"]
[null,null,"・","学校の区分をリストから選択してください。（中学校・義務教育学校）"]
[null,null,null,"※特別支援学校の場合は「中学校」を選択してください。"]
[null,null,"・","校長名を赤の枠に（入力例）のように入力してください。"]
[]
[null,null,"②氏名・生年月日・入卒",null,"シート"]
[null,null,null,"文字または数字は白色の部分に入力してください。"]
[null,null,null,"水色の部分は入力できないように保護されています。"]
[null,null,"・","組・番・生徒名・ふりがなを入力してください。"]
[null,null,"・","生年欄は　例えば「平成２０年」生まれは２０と入力してください。"]
[null,null,"・","生月・生日欄は半角で入力してください。"]
[null,null,"・","性別　男子は１を女子は2を入力してください。"]
[null,null,"・","入学年・入学校・卒業年・月・卒業校は（例）のように入力してください。"]
[null,null,"・","記載責任者・過年度卒業者は（例）のように入力してください。"]
[]
[null,null,"③評定","シート"]
[null,null,null,"評定は白色の部分に入力してください。"]
[null,null,null,"水色の部分は入力できないように保護されています。"]
[null,null,"・","直接入力されるか、または、他からのデータを貼り付けてください。"]
[null,null,"・","選択教科についての入力は不要です。"]
[]
[null,null,"④欠席・遅刻・早退",null,"シート"]
[null,null,"・","日数・回数・理由（３０字以内）を入力してください。"]
[]
[null,null,"⑤健康・特活・転校・所見",null,"シート"]
[null,null,"・","健康状態は１２０字以内で入力してください。"]
[null,null,"・","特別活動等の記録は２００字以内で入力してください。"]
[null,null,"・","転入学者は（例）のように入力してください。"]
[null,null,"・","推薦所見は２００字以内で入力してください。"]
[]
[null,null,"推薦書印刷","シート"]
[null,null,"・","Ａ４版の印刷用紙をセットしてください。"]
[null,null,"・","プリンターの排紙設定などを行ってください。"]
[null,null,"＜連続印刷（全員）をする場合＞"]
[null,null,"・","「連続印刷(全員)印刷プレビュー付」ボタンをクリックすると、印刷プレビューが開きます。"]
[null,null,"・","1枚ずつプレビューが開きますので、入力事項を確認して、印刷ボタンを押してください。"]
[null,null,"※","「連続印刷(全員)プレビューなし」ボタンをクリックすると、印刷プレビューなしで印刷できます。"]
[null,null,"＜指定した表示番号の推薦書を印刷する場合＞"]
[null,null,"・","EK2セルに指定したい表示番号を入力してください。"]
[null,null,null,"→表示番号は「②氏名・生年月日・入卒」シートのA列に記載されている番号"]
[null,null,"・","「番号指定印刷」ボタンをクリックすると、印刷プレビューが開きます。"]

{"sheet":"①中学校名","index":1,"n_rows":18,"n_cols":12,"rows_kept":18,"cut":false,"hidden":false,"merged":[[8,3,8,5],[16,3,16,5],[0,0,0,2],[12,3,12,5],[7,2,8,2]]}
["①中学校名などの入力"]
[]
[]
[null,null,null,"令和　  年","月","日"]
[null,null,"提出年月日"]
[null,null,"（入力例）",8,1,4]
[]
[null,null,"中学校・義務教育学校名"]
[]
[null,null,"（入力例）","○○町立○○中学校"]
[]
[null,null,null,null,null,null,null,null,null,"中学校","（中学校用）","中学校名"]
[null,null,"学校の区分",null,null,null,null,null,null,"義務教育学校","（義務教育学校用）","義務教育学校名"]
[null,null,null,"※中学校・義務教育学校をリストから選択"]
[]
[]
[null,null,"校長名"]
[null,null,"（入力例）","山田　太郎"]

{"sheet":"②氏名・生年月日・入卒","index":2,"n_rows":1510,"n_cols":27,"rows_kept":1510,"cut":false,"hidden":false,"merged":[[2,15,2,17],[2,24,3,24],[2,19,2,22],[0,0,0,7],[3,19,3,20],[2,11,2,13],[3,11,3,12]]}
["②氏名・生年月日・入学卒業に関する入力"]
[null,null,null,null,null,null,null,null,1,"男"]
[null,null,null,null,null,null,null,null,2,"女",null,"入学",null,null,null,"卒業見込み",null,null,null,"過年度卒業者",null,null,null,null,"記載責任者"]
["NO","組","番","生徒名","ふりがな","生年","生月","生日","性別","男",null,"入学年",null,"入学校",null,"卒年","卒月","卒学校",null,"卒業年",null,"卒月","中学校"]
["（例）",3,2,"私学　協子","しがく　きょうこ",21,4,8,2,"女",null,"令和",5,"〇〇町立△△中学校",null,8,3,"〇〇町立△△中学校",null,"令和",7,3,"〇〇町立△△中学校",null,"私学　協太郎"]
[1,null,null,null,null,null,null,null,null,{"$f":"IFERROR(VLOOKUP(I6,$I$2:$J$3,2),\"\")","v":""},null,null,null,null,null,null,null,null,null,null,null,null,null,null,null,null,{"$f":"IF(B6=\"\",\"\",1)","v":""}]
[2,null,null,null,null,null,null,null,null,{"$f":"IFERROR(VLOOKUP(I7,$I$2:$J$3,2),\"\")","v":""},null,null,null,null,null,null,null,null,null,null,null,null,null,null,null,null,{"$f":"IF(B7=\"\",\"\",1)","v":""}]
[3,null,null,null,null,null,null,null,null,"",null,null,null,null,null,null,null,null,null,null,null,null,null,null,null,null,""]
[4,null,null,null,null,null,null,null,null,"",null,null,null,null,null,null,null,null,null,null,null,null,null,null,null,null,""]
[5,null,null,null,null,null,null,null,null,"",null,null,null,null,null,null,null,null,null,null,null,null,null,null,null,null,""]
[6,null,null,null,null,null,null,null,null,"",null,null,null,null,null,null,null,null,null,null,null,null,null,null,null,null,""]
[7,null,null,null,null,null,null,null,null,"",null,null,null,null,null,null,null,null,null,null,null,null,null,null,null,null,""]
[8,null,null,null,null,null,null,null,null,"",null,null,null,null,null,null,null,null,null,null,null,null,null,null,null,null,""]
[9,null,null,null,null,null,null,null,null,"",null,null,null,null,null,null,null,null,null,null,null,null,null,null,null,null,""]
[10,null,null,null,null,null,null,null,null,"",null,null,null,null,null,null,null,null,null,null,null,null,null,null,null,null,""]
[11,null,null,null,null,null,null,null,null,"",null,null,null,null,null,null,null,null,null,null,null,null,null,null,null,null,""]
[12,null,null,null,null,null,null,null,null,"",null,null,null,null,null,null,null,null,null,null,null,null,null,null,null,null,""]
[13,null,null,null,null,null,null,null,null,"",null,null,null,null,null,null,null,null,null,null,null,null,null,null,null,null,""]
[14,null,null,null,null,null,null,null,null,"",null,null,null,null,null,null,null,null,null,null,null,null,null,null,null,null,""]
[15,null,null,null,null,null,null,null,null,"",null,null,null,null,null,null,null,null,null,null,null,null,null,null,null,null,""]
[16,null,null,null,null,null,null,null,null,"",null,null,null,null,null,null,null,null,null,null,null,null,null,null,null,null,""]
[17,null,null,null,null,null,null,null,null,"",null,null,null,null,null,null,null,null,null,null,null,null,null,null,null,null,""]
[18,null,null,null,null,null,null,null,null,"",null,null,null,null,null,null,null,null,null,null,null,null,null,null,null,null,""]
[19,null,null,null,null,null,null,null,null,"",null,null,null,null,null,null,null,null,null,null,null,null,null,null,null,null,""]
[20,null,null,null,null,null,null,null,null,"",null,null,null,null,null,null,null,null,null,null,null,null,null,null,null,null,""]
[21,null,null,null,null,null,null,null,null,"",null,null,null,null,null,null,null,null,null,null,null,null,null,null,null,null,""]
[22,null,null,null,null,null,null,null,null,"",null,null,null,null,null,null,null,null,null,null,null,null,null,null,null,null,""]
[23,null,null,null,null,null,null,null,null,"",null,null,null,null,null,null,null,null,null,null,null,null,null,null,null,null,""]
[24,null,null,null,null,null,null,null,null,"",null,null,null,null,null,null,null,null,null,null,null,null,null,null,null,null,""]
[25,null,null,null,null,null,null,null,null,"",null,null,null,null,null,null,null,null,null,null,null,null,null,null,null,null,""]
[26,null,null,null,null,null,null,null,null,"",null,null,null,null,null,null,null,null,null,null,null,null,null,null,null,null,""]
[27,null,null,null,null,null,null,null,null,"",null,null,null,null,null,null,null,null,null,null,null,null,null,null,null,null,""]
[28,null,null,null,null,null,null,null,null,"",null,null,null,null,null,null,null,null,null,null,null,null,null,null,null,null,""]
[29,null,null,null,null,null,null,null,null,"",null,null,null,null,null,null,null,null,null,null,null,null,null,null,null,null,""]
[30,null,null,null,null,null,null,null,null,"",null,null,null,null,null,null,null,null,null,null,null,null,null,null,null,null,""]
[31,null,null,null,null,null,null,null,null,"",null,null,null,null,null,null,null,null,null,null,null,null,null,null,null,null,""]
[32,null,null,null,null,null,null,null,null,"",null,null,null,null,null,null,null,null,null,null,null,null,null,null,null,null,""]
[33,null,null,null,null,null,null,null,null,"",null,null,null,null,null,null,null,null,null,null,null,null,null,null,null,null,""]
[34,null,null,null,null,null,null,null,null,"",null,null,null,null,null,null,null,null,null,null,null,null,null,null,null,null,""]
[35,null,null,null,null,null,null,null,null,"",null,null,null,null,null,null,null,null,null,null,null,null,null,null,null,null,""]
[36,null,null,null,null,null,null,null,null,"",null,null,null,null,null,null,null,null,null,null,null,null,null,null,null,null,""]
[37,null,null,null,null,null,null,null,null,"",null,null,null,null,null,null,null,null,null,null,null,null,null,null,null,null,""]
[38,null,null,null,null,null,null,null,null,"",null,null,null,null,null,null,null,null,null,null,null,null,null,null,null,null,""]
[39,null,null,null,null,null,null,null,null,"",null,null,null,null,null,null,null,null,null,null,null,null,null,null,null,null,""]
[40,null,null,null,null,null,null,null,null,"",null,null,null,null,null,null,null,null,null,null,null,null,null,null,null,null,""]
[41,null,null,null,null,null,null,null,null,"",null,null,null,null,null,null,null,null,null,null,null,null,null,null,null,null,""]
[42,null,null,null,null,null,null,null,null,"",null,null,null,null,null,null,null,null,null,null,null,null,null,null,null,null,""]
[43,null,null,null,null,null,null,null,null,"",null,null,null,null,null,null,null,null,null,null,null,null,null,null,null,null,""]
[44,null,null,null,null,null,null,null,null,"",null,null,null,null,null,null,null,null,null,null,null,null,null,null,null,null,""]
[45,null,null,null,null,null,null,null,null,"",null,null,null,null,null,null,null,null,null,null,null,null,null,null,null,null,""]
[46,null,null,null,null,null,null,null,null,"",null,null,null,null,null,null,null,null,null,null,null,null,null,null,null,null,""]
[47,null,null,null,null,null,null,null,null,"",null,null,null,null,null,null,null,null,null,null,null,null,null,null,null,null,""]
[48,null,null,null,null,null,null,null,null,"",null,null,null,null,null,null,null,null,null,null,null,null,null,null,null,null,""]
[49,null,null,null,null,null,null,null,null,"",null,null,null,null,null,null,null,null,null,null,null,null,null,null,null,null,""]
[50,null,null,null,null,null,null,null,null,"",null,null,null,null,null,null,null,null,null,null,null,null,null,null,null,null,""]
[51,null,null,null,null,null,null,null,null,"",null,null,null,null,null,null,null,null,null,null,null,null,null,null,null,null,""]
[52,null,null,null,null,null,null,null,null,"",null,null,null,null,null,null,null,null,null,null,null,null,null,null,null,null,""]
[53,null,null,null,null,null,null,null,null,"",null,null,null,null,null,null,null,null,null,null,null,null,null,null,null,null,""]
[54,null,null,null,null,null,null,null,null,"",null,null,null,null,null,null,null,null,null,null,null,null,null,null,null,null,""]
[55,null,null,null,null,null,null,null,null,"",null,null,null,null,null,null,null,null,null,null,null,null,null,null,null,null,""]
[56,null,null,null,null,null,null,null,null,"",null,null,null,null,null,null,null,null,null,null,null,null,null,null,null,null,""]
[57,null,null,null,null,null,null,null,null,"",null,null,null,null,null,null,null,null,null,null,null,null,null,null,null,null,""]
[58,null,null,null,null,null,null,null,null,"",null,null,null,null,null,null,null,null,null,null,null,null,null,null,null,null,""]
[59,null,null,null,null,null,null,null,null,"",null,null,null,null,null,null,null,null,null,null,null,null,null,null,null,null,""]
[60,null,null,null,null,null,null,null,null,"",null,null,null,null,null,null,null,null,null,null,null,null,null,null,null,null,""]
[61,null,null,null,null,null,null,null,null,"",null,null,null,null,null,null,null,null,null,null,null,null,null,null,null,null,""]
[62,null,null,null,null,null,null,null,null,"",null,null,null,null,null,null,null,null,null,null,null,null,null,null,null,null,""]
[63,null,null,null,null,null,null,null,null,"",null,null,null,null,null,null,null,null,null,null,null,null,null,null,null,null,""]
[64,null,null,null,null,null,null,null,null,"",null,null,null,null,null,null,null,null,null,null,null,null,null,null,null,null,""]
[65,null,null,null,null,null,null,null,null,"",null,null,null,null,null,null,null,null,null,null,null,null,null,null,null,null,""]
[66,null,null,null,null,null,null,null,null,{"$f":"IFERROR(VLOOKUP(I71,$I$2:$J$3,2),\"\")","v":""},null,null,null,null,null,null,null,null,null,null,null,null,null,null,null,null,{"$f":"IF(B71=\"\",\"\",1)","v":""}]
[67,null,null,null,null,null,null,null,null,"",null,null,null,null,null,null,null,null,null,null,null,null,null,null,null,null,""]
[68,null,null,null,null,null,null,null,null,"",null,null,null,null,null,null,null,null,null,null,null,null,null,null,null,null,""]
[69,null,null,null,null,null,null,null,null,"",null,null,null,null,null,null,null,null,null,null,null,null,null,null,null,null,""]
[70,null,null,null,null,null,null,null,null,"",null,null,null,null,null,null,null,null,null,null,null,null,null,null,null,null,""]
[71,null,null,null,null,null,null,null,null,"",null,null,null,null,null,null,null,null,null,null,null,null,null,null,null,null,""]
[72,null,null,null,null,null,null,null,null,"",null,null,null,null,null,null,null,null,null,null,null,null,null,null,null,null,""]
[73,null,null,null,null,null,null,null,null,"",null,null,null,null,null,null,null,null,null,null,null,null,null,null,null,null,""]
[74,null,null,null,null,null,null,null,null,"",null,null,null,null,null,null,null,null,null,null,null,null,null,null,null,null,""]
[75,null,null,null,null,null,null,null,null,"",null,null,null,null,null,null,null,null,null,null,null,null,null,null,null,null,""]
[76,null,null,null,null,null,null,null,null,"",null,null,null,null,null,null,null,null,null,null,null,null,null,null,null,null,""]
[77,null,null,null,null,null,null,null,null,"",null,null,null,null,null,null,null,null,null,null,null,null,null,null,null,null,""]
[78,null,null,null,null,null,null,null,null,"",null,null,null,null,null,null,null,null,null,null,null,null,null,null,null,null,""]
[79,null,null,null,null,null,null,null,null,"",null,null,null,null,null,null,null,null,null,null,null,null,null,null,null,null,""]
[80,null,null,null,null,null,null,null,null,"",null,null,null,null,null,null,null,null,null,null,null,null,null,null,null,null,""]
[81,null,null,null,null,null,null,null,null,"",null,null,null,null,null,null,null,null,null,null,null,null,null,null,null,null,""]
[82,null,null,null,null,null,null,null,null,"",null,null,null,null,null,null,null,null,null,null,null,null,null,null,null,null,""]
[83,null,null,null,null,null,null,null,null,"",null,null,null,null,null,null,null,null,null,null,null,null,null,null,null,null,""]
[84,null,null,null,null,null,null,null,null,"",null,null,null,null,null,null,null,null,null,null,null,null,null,null,null,null,""]
[85,null,null,null,null,null,null,null,null,"",null,null,null,null,null,null,null,null,null,null,null,null,null,null,null,null,""]
[86,null,null,null,null,null,null,null,null,"",null,null,null,null,null,null,null,null,null,null,null,null,null,null,null,null,""]
[87,null,null,null,null,null,null,null,null,"",null,null,null,null,null,null,null,null,null,null,null,null,null,null,null,null,""]
[88,null,null,null,null,null,null,null,null,"",null,null,null,null,null,null,null,null,null,null,null,null,null,null,null,null,""]
[89,null,null,null,null,null,null,null,null,"",null,null,null,null,null,null,null,null,null,null,null,null,null,null,null,null,""]
[90,null,null,null,null,null,null,null,null,"",null,null,null,null,null,null,null,null,null,null,null,null,null,null,null,null,""]
[91,null,null,null,null,null,null,null,null,"",null,null,null,null,null,null,null,null,null,null,null,null,null,null,null,null,""]
[92,null,null,null,null,null,null,null,null,"",null,null,null,null,null,null,null,null,null,null,null,null,null,null,null,null,""]
[93,null,null,null,null,null,null,null,null,"",null,null,null,null,null,null,null,null,null,null,null,null,null,null,null,null,""]
[94,null,null,null,null,null,null,null,null,"",null,null,null,null,null,null,null,null,null,null,null,null,null,null,null,null,""]
[95,null,null,null,null,null,null,null,null,"",null,null,null,null,null,null,null,null,null,null,null,null,null,null,null,null,""]
[96,null,null,null,null,null,null,null,null,"",null,null,null,null,null,null,null,null,null,null,null,null,null,null,null,null,""]
[97,null,null,null,null,null,null,null,null,"",null,null,null,null,null,null,null,null,null,null,null,null,null,null,null,null,""]
[98,null,null,null,null,null,null,null,null,"",null,null,null,null,null,null,null,null,null,null,null,null,null,null,null,null,""]
[99,null,null,null,null,null,null,null,null,"",null,null,null,null,null,null,null,null,null,null,null,null,null,null,null,null,""]
[100,null,null,null,null,null,null,null,null,"",null,null,null,null,null,null,null,null,null,null,null,null,null,null,null,null,""]
[null,null,null,null,null,null,null,null,null,null,null,null,null,null,null,null,null,null,null,null,null,null,null,null,null,null,""]
[null,null,null,null,null,null,null,null,null,null,null,null,null,null,null,null,null,null,null,null,null,null,null,null,null,null,""]
[null,null,null,null,null,null,null,null,null,null,null,null,null,null,null,null,null,null,null,null,null,null,null,null,null,null,""]
[null,null,null,null,null,null,null,null,null,null,null,null,null,null,null,null,null,null,null,null,null,null,null,null,null,null,""]
[null,null,null,null,null,null,null,null,null,null,null,null,null,null,null,null,null,null,null,null,null,null,null,null,null,null,""]
[null,null,null,null,null,null,null,null,null,null,null,null,null,null,null,null,null,null,null,null,null,null,null,null,null,null,""]
[null,null,null,null,null,null,null,null,null,null,null,null,null,null,null,null,null,null,null,null,null,null,null,null,null,null,""]
[null,null,null,null,null,null,null,null,null,null,null,null,null,null,null,null,null,null,null,null,null,null,null,null,null,null,""]
[null,null,null,null,null,null,null,null,null,null,null,null,null,null,null,null,null,null,null,null,null,null,null,null,null,null,""]
[null,null,null,null,null,null,null,null,null,null,null,null,null,null,null,null,null,null,null,null,null,null,null,null,null,null,""]
[null,null,null,null,null,null,null,null,null,null,null,null,null,null,null,null,null,null,null,null,null,null,null,null,null,null,""]
[null,null,null,null,null,null,null,null,null,null,null,null,null,null,null,null,null,null,null,null,null,null,null,null,null,null,""]
[null,null,null,null,null,null,null,null,null,null,null,null,null,null,null,null,null,null,null,null,null,null,null,null,null,null,""]
[null,null,null,null,null,null,null,null,null,null,null,null,null,null,null,null,null,null,null,null,null,null,null,null,null,null,""]
[null,null,null,null,null,null,null,null,null,null,null,null,null,null,null,null,null,null,null,null,null,null,null,null,null,null,""]
[null,null,null,null,null,null,null,null,null,null,null,null,null,null,null,null,null,null,null,null,null,null,null,null,null,null,""]
[null,null,null,null,null,null,null,null,null,null,null,null,null,null,null,null,null,null,null,null,null,null,null,null,null,null,""]
[null,null,null,null,null,null,null,null,null,null,null,null,null,null,null,null,null,null,null,null,null,null,null,null,null,null,""]
[null,null,null,null,null,null,null,null,null,null,null,null,null,null,null,null,null,null,null,null,null,null,null,null,null,null,""]
[null,null,null,null,null,null,null,null,null,null,null,null,null,null,null,null,null,null,null,null,null,null,null,null,null,null,""]
[null,null,null,null,null,null,null,null,null,null,null,null,null,null,null,null,null,null,null,null,null,null,null,null,null,null,""]
[null,null,null,null,null,null,null,null,null,null,null,null,null,null,null,null,null,null,null,null,null,null,null,null,null,null,""]
[null,null,null,null,null,null,null,null,null,null,null,null,null,null,null,null,null,null,null,null,null,null,null,null,null,null,""]
[null,null,null,null,null,null,null,null,null,null,null,null,null,null,null,null,null,null,null,null,null,null,null,null,null,null,""]
[null,null,null,null,null,null,null,null,null,null,null,null,null,null,null,null,null,null,null,null,null,null,null,null,null,null,""]
[null,null,null,null,null,null,null,null,null,null,null,null,null,null,null,null,null,null,null,null,null,null,null,null,null,null,""]
[null,null,null,null,null,null,null,null,null,null,null,null,null,null,null,null,null,null,null,null,null,null,null,null,null,null,""]
[null,null,null,null,null,null,null,null,null,null,null,null,null,null,null,null,null,null,null,null,null,null,null,null,null,null,""]
[null,null,null,null,null,null,null,null,null,null,null,null,null,null,null,null,null,null,null,null,null,null,null,null,null,null,""]
[null,null,null,null,null,null,null,null,null,null,null,null,null,null,null,null,null,null,null,null,null,null,null,null,null,null,{"$f":"IF(B135=\"\",\"\",1)","v":""}]
[null,null,null,null,null,null,null,null,null,null,null,null,null,null,null,null,null,null,null,null,null,null,null,null,null,null,""]
[null,null,null,null,null,null,null,null,null,null,null,null,null,null,null,null,null,null,null,null,null,null,null,null,null,null,""]
[null,null,null,null,null,null,null,null,null,null,null,null,null,null,null,null,null,null,null,null,null,null,null,null,null,null,""]
[null,null,null,null,null,null,null,null,null,null,null,null,null,null,null,null,null,null,null,null,null,null,null,null,null,null,""]
[null,null,null,null,null,null,null,null,null,null,null,null,null,null,null,null,null,null,null,null,null,null,null,null,null,null,""]
[null,null,null,null,null,null,null,null,null,null,null,null,null,null,null,null,null,null,null,null,null,null,null,null,null,null,""]
[null,null,null,null,null,null,null,null,null,null,null,null,null,null,null,null,null,null,null,null,null,null,null,null,null,null,""]
[null,null,null,null,null,null,null,null,null,null,null,null,null,null,null,null,null,null,null,null,null,null,null,null,null,null,""]
[null,null,null,null,null,null,null,null,null,null,null,null,null,null,null,null,null,null,null,null,null,null,null,null,null,null,""]
[null,null,null,null,null,null,null,null,null,null,null,null,null,null,null,null,null,null,null,null,null,null,null,null,null,null,""]
[null,null,null,null,null,null,null,null,null,null,null,null,null,null,null,null,null,null,null,null,null,null,null,null,null,null,""]
[null,null,null,null,null,null,null,null,null,null,null,null,null,null,null,null,null,null,null,null,null,null,null,null,null,null,""]
[null,null,null,null,null,null,null,null,null,null,null,null,null,null,null,null,null,null,null,null,null,null,null,null,null,null,""]
[null,null,null,null,null,null,null,null,null,null,null,null,null,null,null,null,null,null,null,null,null,null,null,null,null,null,""]
[null,null,null,null,null,null,null,null,null,null,null,null,null,null,null,null,null,null,null,null,null,null,null,null,null,null,""]
[null,null,null,null,null,null,null,null,null,null,null,null,null,null,null,null,null,null,null,null,null,null,null,null,null,null,""]
[null,null,null,null,null,null,null,null,null,null,null,null,null,null,null,null,null,null,null,null,null,null,null,null,null,null,""]
[null,null,null,null,null,null,null,null,null,null,null,null,null,null,null,null,null,null,null,null,null,null,null,null,null,null,""]
[null,null,null,null,null,null,null,null,null,null,null,null,null,null,null,null,null,null,null,null,null,null,null,null,null,null,""]
[null,null,null,null,null,null,null,null,null,null,null,null,null,null,null,null,null,null,null,null,null,null,null,null,null,null,""]
[null,null,null,null,null,null,null,null,null,null,null,null,null,null,null,null,null,null,null,null,null,null,null,null,null,null,""]
[null,null,null,null,null,null,null,null,null,null,null,null,null,null,null,null,null,null,null,null,null,null,null,null,null,null,""]
[null,null,null,null,null,null,null,null,null,null,null,null,null,null,null,null,null,null,null,null,null,null,null,null,null,null,""]
[null,null,null,null,null,null,null,null,null,null,null,null,null,null,null,null,null,null,null,null,null,null,null,null,null,null,""]
[null,null,null,null,null,null,null,null,null,null,null,null,null,null,null,null,null,null,null,null,null,null,null,null,null,null,""]
[null,null,null,null,null,null,null,null,null,null,null,null,null,null,null,null,null,null,null,null,null,null,null,null,null,null,""]
[null,null,null,null,null,null,null,null,null,null,null,null,null,null,null,null,null,null,null,null,null,null,null,null,null,null,""]
[null,null,null,null,null,null,null,null,null,null,null,null,null,null,null,null,null,null,null,null,null,null,null,null,null,null,""]
[null,null,null,null,null,null,null,null,null,null,null,null,null,null,null,null,null,null,null,null,null,null,null,null,null,null,""]
[null,null,null,null,null,null,null,null,null,null,null,null,null,null,null,null,null,null,null,null,null,null,null,null,null,null,""]
[null,null,null,null,null,null,null,null,null,null,null,null,null,null,null,null,null,null,null,null,null,null,null,null,null,null,""]
[null,null,null,null,null,null,null,null,null,null,null,null,null,null,null,null,null,null,null,null,null,null,null,null,null,null,""]
[null,null,null,null,null,null,null,null,null,null,null,null,null,null,null,null,null,null,null,null,null,null,null,null,null,null,""]
[null,null,null,null,null,null,null,null,null,null,null,null,null,null,null,null,null,null,null,null,null,null,null,null,null,null,""]
[null,null,null,null,null,null,null,null,null,null,null,null,null,null,null,null,null,null,null,null,null,null,null,null,null,null,""]
[null,null,null,null,null,null,null,null,null,null,null,null,null,null,null,null,null,null,null,null,null,null,null,null,null,null,""]
[null,null,null,null,null,null,null,null,null,null,null,null,null,null,null,null,null,null,null,null,null,null,null,null,null,null,""]
[null,null,null,null,null,null,null,null,null,null,null,null,null,null,null,null,null,null,null,null,null,null,null,null,null,null,""]
[null,null,null,null,null,null,null,null,null,null,null,null,null,null,null,null,null,null,null,null,null,null,null,null,null,null,""]
[null,null,null,null,null,null,null,null,null,null,null,null,null,null,null,null,null,null,null,null,null,null,null,null,null,null,""]
[null,null,null,null,null,null,null,null,null,null,null,null,null,null,null,null,null,null,null,null,null,null,null,null,null,null,""]
[null,null,null,null,null,null,null,null,null,null,null,null,null,null,null,null,null,null,null,null,null,null,null,null,null,null,""]
[null,null,null,null,null,null,null,null,null,null,null,null,null,null,null,null,null,null,null,null,null,null,null,null,null,null,""]
[null,null,null,null,null,null,null,null,null,null,null,null,null,null,null,null,null,null,null,null,null,null,null,null,null,null,""]
[null,null,null,null,null,null,null,null,null,null,null,null,null,null,null,null,null,null,null,null,null,null,null,null,null,null,""]
[null,null,null,null,null,null,null,null,null,null,null,null,null,null,null,null,null,null,null,null,null,null,null,null,null,null,""]
[null,null,null,null,null,null,null,null,null,null,null,null,null,null,null,null,null,null,null,null,null,null,null,null,null,null,""]
[null,null,null,null,null,null,null,null,null,null,null,null,null,null,null,null,null,null,null,null,null,null,null,null,null,null,""]
[null,null,null,null,null,null,null,null,null,null,null,null,null,null,null,null,null,null,null,null,null,null,null,null,null,null,""]
[null,null,null,null,null,null,null,null,null,null,null,null,null,null,null,null,null,null,null,null,null,null,null,null,null,null,""]
[null,null,null,null,null,null,null,null,null,null,null,null,null,null,null,null,null,null,null,null,null,null,null,null,null,null,""]
[null,null,null,null,null,null,null,null,null,null,null,null,null,null,null,null,null,null,null,null,null,null,null,null,null,null,""]
[null,null,null,null,null,null,null,null,null,null,null,null,null,null,null,null,null,null,null,null,null,null,null,null,null,null,""]
[null,null,null,null,null,null,null,null,null,null,null,null,null,null,null,null,null,null,null,null,null,null,null,null,null,null,""]
[null,null,null,null,null,null,null,null,null,null,null,null,null,null,null,null,null,null,null,null,null,null,null,null,null,null,""]
[null,null,null,null,null,null,null,null,null,null,null,null,null,null,null,null,null,null,null,null,null,null,null,null,null,null,""]
[null,null,null,null,null,null,null,null,null,null,null,null,null,null,null,null,null,null,null,null,null,null,null,null,null,null,""]
[null,null,null,null,null,null,null,null,null,null,null,null,null,null,null,null,null,null,null,null,null,null,null,null,null,null,""]
[null,null,null,null,null,null,null,null,null,null,null,null,null,null,null,null,null,null,null,null,null,null,null,null,null,null,""]
[null,null,null,null,null,null,null,null,null,null,null,null,null,null,null,null,null,null,null,null,null,null,null,null,null,null,""]
[null,null,null,null,null,null,null,null,null,null,null,null,null,null,null,null,null,null,null,null,null,null,null,null,null,null,""]
[null,null,null,null,null,null,null,null,null,null,null,null,null,null,null,null,null,null,null,null,null,null,null,null,null,null,""]
[null,null,null,null,null,null,null,null,null,null,null,null,null,null,null,null,null,null,null,null,null,null,null,null,null,null,""]
[null,null,null,null,null,null,null,null,null,null,null,null,null,null,null,null,null,null,null,null,null,null,null,null,null,null,{"$f":"IF(B199=\"\",\"\",1)","v":""}]
[null,null,null,null,null,null,null,null,null,null,null,null,null,null,null,null,null,null,null,null,null,null,null,null,null,null,""]
[null,null,null,null,null,null,null,null,null,null,null,null,null,null,null,null,null,null,null,null,null,null,null,null,null,null,""]
[null,null,null,null,null,null,null,null,null,null,null,null,null,null,null,null,null,null,null,null,null,null,null,null,null,null,""]
[null,null,null,null,null,null,null,null,null,null,null,null,null,null,null,null,null,null,null,null,null,null,null,null,null,null,""]
[null,null,null,null,null,null,null,null,null,null,null,null,null,null,null,null,null,null,null,null,null,null,null,null,null,null,""]
[null,null,null,null,null,null,null,null,null,null,null,null,null,null,null,null,null,null,null,null,null,null,null,null,null,null,""]
[null,null,null,null,null,null,null,null,null,null,null,null,null,null,null,null,null,null,null,null,null,null,null,null,null,null,""]
[null,null,null,null,null,null,null,null,null,null,null,null,null,null,null,null,null,null,null,null,null,null,null,null,null,null,""]
[null,null,null,null,null,null,null,null,null,null,null,null,null,null,null,null,null,null,null,null,null,null,null,null,null,null,""]
[null,null,null,null,null,null,null,null,null,null,null,null,null,null,null,null,null,null,null,null,null,null,null,null,null,null,""]
[null,null,null,null,null,null,null,null,null,null,null,null,null,null,null,null,null,null,null,null,null,null,null,null,null,null,""]
[null,null,null,null,null,null,null,null,null,null,null,null,null,null,null,null,null,null,null,null,null,null,null,null,null,null,""]
[null,null,null,null,null,null,null,null,null,null,null,null,null,null,null,null,null,null,null,null,null,null,null,null,null,null,""]
[null,null,null,null,null,null,null,null,null,null,null,null,null,null,null,null,null,null,null,null,null,null,null,null,null,null,""]
[null,null,null,null,null,null,null,null,null,null,null,null,null,null,null,null,null,null,null,null,null,null,null,null,null,null,""]
[null,null,null,null,null,null,null,null,null,null,null,null,null,null,null,null,null,null,null,null,null,null,null,null,null,null,""]
[null,null,null,null,null,null,null,null,null,null,null,null,null,null,null,null,null,null,null,null,null,null,null,null,null,null,""]
[null,null,null,null,null,null,null,null,null,null,null,null,null,null,null,null,null,null,null,null,null,null,null,null,null,null,""]
[null,null,null,null,null,null,null,null,null,null,null,null,null,null,null,null,null,null,null,null,null,null,null,null,null,null,""]
[null,null,null,null,null,null,null,null,null,null,null,null,null,null,null,null,null,null,null,null,null,null,null,null,null,null,""]
[null,null,null,null,null,null,null,null,null,null,null,null,null,null,null,null,null,null,null,null,null,null,null,null,null,null,""]
[null,null,null,null,null,null,null,null,null,null,null,null,null,null,null,null,null,null,null,null,null,null,null,null,null,null,""]
[null,null,null,null,null,null,null,null,null,null,null,null,null,null,null,null,null,null,null,null,null,null,null,null,null,null,""]
[null,null,null,null,null,null,null,null,null,null,null,null,null,null,null,null,null,null,null,null,null,null,null,null,null,null,""]
[null,null,null,null,null,null,null,null,null,null,null,null,null,null,null,null,null,null,null,null,null,null,null,null,null,null,""]
[null,null,null,null,null,null,null,null,null,null,null,null,null,null,null,null,null,null,null,null,null,null,null,null,null,null,""]
[null,null,null,null,null,null,null,null,null,null,null,null,null,null,null,null,null,null,null,null,null,null,null,null,null,null,""]
[null,null,null,null,null,null,null,null,null,null,null,null,null,null,null,null,null,null,null,null,null,null,null,null,null,null,""]
[null,null,null,null,null,null,null,null,null,null,null,null,null,null,null,null,null,null,null,null,null,null,null,null,null,null,""]
[null,null,null,null,null,null,null,null,null,null,null,null,null,null,null,null,null,null,null,null,null,null,null,null,null,null,""]
[null,null,null,null,null,null,null,null,null,null,null,null,null,null,null,null,null,null,null,null,null,null,null,null,null,null,""]
[null,null,null,null,null,null,null,null,null,null,null,null,null,null,null,null,null,null,null,null,null,null,null,null,null,null,""]
[null,null,null,null,null,null,null,null,null,null,null,null,null,null,null,null,null,null,null,null,null,null,null,null,null,null,""]
[null,null,null,null,null,null,null,null,null,null,null,null,null,null,null,null,null,null,null,null,null,null,null,null,null,null,""]
[null,null,null,null,null,null,null,null,null,null,null,null,null,null,null,null,null,null,null,null,null,null,null,null,null,null,""]
[null,null,null,null,null,null,null,null,null,null,null,null,null,null,null,null,null,null,null,null,null,null,null,null,null,null,""]
[null,null,null,null,null,null,null,null,null,null,null,null,null,null,null,null,null,null,null,null,null,null,null,null,null,null,""]
[null,null,null,null,null,null,null,null,null,null,null,null,null,null,null,null,null,null,null,null,null,null,null,null,null,null,""]
[null,null,null,null,null,null,null,null,null,null,null,null,null,null,null,null,null,null,null,null,null,null,null,null,null,null,""]
[null,null,null,null,null,null,null,null,null,null,null,null,null,null,null,null,null,null,null,null,null,null,null,null,null,null,""]
[null,null,null,null,null,null,null,null,null,null,null,null,null,null,null,null,null,null,null,null,null,null,null,null,null,null,""]
[null,null,null,null,null,null,null,null,null,null,null,null,null,null,null,null,null,null,null,null,null,null,null,null,null,null,""]
[null,null,null,null,null,null,null,null,null,null,null,null,null,null,null,null,null,null,null,null,null,null,null,null,null,null,""]
[null,null,null,null,null,null,null,null,null,null,null,null,null,null,null,null,null,null,null,null,null,null,null,null,null,null,""]
[null,null,null,null,null,null,null,null,null,null,null,null,null,null,null,null,null,null,null,null,null,null,null,null,null,null,""]
[null,null,null,null,null,null,null,null,null,null,null,null,null,null,null,null,null,null,null,null,null,null,null,null,null,null,""]
[null,null,null,null,null,null,null,null,null,null,null,null,null,null,null,null,null,null,null,null,null,null,null,null,null,null,""]
[null,null,null,null,null,null,null,null,null,null,null,null,null,null,null,null,null,null,null,null,null,null,null,null,null,null,""]
[null,null,null,null,null,null,null,null,null,null,null,null,null,null,null,null,null,null,null,null,null,null,null,null,null,null,""]
[null,null,null,null,null,null,null,null,null,null,null,null,null,null,null,null,null,null,null,null,null,null,null,null,null,null,""]
[null,null,null,null,null,null,null,null,null,null,null,null,null,null,null,null,null,null,null,null,null,null,null,null,null,null,""]
[null,null,null,null,null,null,null,null,null,null,null,null,null,null,null,null,null,null,null,null,null,null,null,null,null,null,""]
[null,null,null,null,null,null,null,null,null,null,null,null,null,null,null,null,null,null,null,null,null,null,null,null,null,null,""]
[null,null,null,null,null,null,null,null,null,null,null,null,null,null,null,null,null,null,null,null,null,null,null,null,null,null,""]
[null,null,null,null,null,null,null,null,null,null,null,null,null,null,null,null,null,null,null,null,null,null,null,null,null,null,""]
[null,null,null,null,null,null,null,null,null,null,null,null,null,null,null,null,null,null,null,null,null,null,null,null,null,null,""]
[null,null,null,null,null,null,null,null,null,null,null,null,null,null,null,null,null,null,null,null,null,null,null,null,null,null,""]
[null,null,null,null,null,null,null,null,null,null,null,null,null,null,null,null,null,null,null,null,null,null,null,null,null,null,""]
[null,null,null,null,null,null,null,null,null,null,null,null,null,null,null,null,null,null,null,null,null,null,null,null,null,null,""]
[null,null,null,null,null,null,null,null,null,null,null,null,null,null,null,null,null,null,null,null,null,null,null,null,null,null,""]
[null,null,null,null,null,null,null,null,null,null,null,null,null,null,null,null,null,null,null,null,null,null,null,null,null,null,""]
[null,null,null,null,null,null,null,null,null,null,null,null,null,null,null,null,null,null,null,null,null,null,null,null,null,null,""]
[null,null,null,null,null,null,null,null,null,null,null,null,null,null,null,null,null,null,null,null,null,null,null,null,null,null,""]
[null,null,null,null,null,null,null,null,null,null,null,null,null,null,null,null,null,null,null,null,null,null,null,null,null,null,{"$f":"IF(B263=\"\",\"\",1)","v":""}]
[null,null,null,null,null,null,null,null,null,null,null,null,null,null,null,null,null,null,null,null,null,null,null,null,null,null,""]
[null,null,null,null,null,null,null,null,null,null,null,null,null,null,null,null,null,null,null,null,null,null,null,null,null,null,""]
[null,null,null,null,null,null,null,null,null,null,null,null,null,null,null,null,null,null,null,null,null,null,null,null,null,null,""]
[null,null,null,null,null,null,null,null,null,null,null,null,null,null,null,null,null,null,null,null,null,null,null,null,null,null,""]
[null,null,null,null,null,null,null,null,null,null,null,null,null,null,null,null,null,null,null,null,null,null,null,null,null,null,""]
[null,null,null,null,null,null,null,null,null,null,null,null,null,null,null,null,null,null,null,null,null,null,null,null,null,null,""]
[null,null,null,null,null,null,null,null,null,null,null,null,null,null,null,null,null,null,null,null,null,null,null,null,null,null,""]
[null,null,null,null,null,null,null,null,null,null,null,null,null,null,null,null,null,null,null,null,null,null,null,null,null,null,""]
[null,null,null,null,null,null,null,null,null,null,null,null,null,null,null,null,null,null,null,null,null,null,null,null,null,null,""]
[null,null,null,null,null,null,null,null,null,null,null,null,null,null,null,null,null,null,null,null,null,null,null,null,null,null,""]
[null,null,null,null,null,null,null,null,null,null,null,null,null,null,null,null,null,null,null,null,null,null,null,null,null,null,""]
[null,null,null,null,null,null,null,null,null,null,null,null,null,null,null,null,null,null,null,null,null,null,null,null,null,null,""]
[null,null,null,null,null,null,null,null,null,null,null,null,null,null,null,null,null,null,null,null,null,null,null,null,null,null,""]
[null,null,null,null,null,null,null,null,null,null,null,null,null,null,null,null,null,null,null,null,null,null,null,null,null,null,""]
[null,null,null,null,null,null,null,null,null,null,null,null,null,null,null,null,null,null,null,null,null,null,null,null,null,null,""]
[null,null,null,null,null,null,null,null,null,null,null,null,null,null,null,null,null,null,null,null,null,null,null,null,null,null,""]
[null,null,null,null,null,null,null,null,null,null,null,null,null,null,null,null,null,null,null,null,null,null,null,null,null,null,""]
[null,null,null,null,null,null,null,null,null,null,null,null,null,null,null,null,null,null,null,null,null,null,null,null,null,null,""]
[null,null,null,null,null,null,null,null,null,null,null,null,null,null,null,null,null,null,null,null,null,null,null,null,null,null,""]
[null,null,null,null,null,null,null,null,null,null,null,null,null,null,null,null,null,null,null,null,null,null,null,null,null,null,""]
[null,null,null,null,null,null,null,null,null,null,null,null,null,null,null,null,null,null,null,null,null,null,null,null,null,null,""]
[null,null,null,null,null,null,null,null,null,null,null,null,null,null,null,null,null,null,null,null,null,null,null,null,null,null,""]
[null,null,null,null,null,null,null,null,null,null,null,null,null,null,null,null,null,null,null,null,null,null,null,null,null,null,""]
[null,null,null,null,null,null,null,null,null,null,null,null,null,null,null,null,null,null,null,null,null,null,null,null,null,null,""]
[null,null,null,null,null,null,null,null,null,null,null,null,null,null,null,null,null,null,null,null,null,null,null,null,null,null,""]
[null,null,null,null,null,null,null,null,null,null,null,null,null,null,null,null,null,null,null,null,null,null,null,null,null,null,""]
[null,null,null,null,null,null,null,null,null,null,null,null,null,null,null,null,null,null,null,null,null,null,null,null,null,null,""]
[null,null,null,null,null,null,null,null,null,null,null,null,null,null,null,null,null,null,null,null,null,null,null,null,null,null,""]
[null,null,null,null,null,null,null,null,null,null,null,null,null,null,null,null,null,null,null,null,null,null,null,null,null,null,""]
[null,null,null,null,null,null,null,null,null,null,null,null,null,null,null,null,null,null,null,null,null,null,null,null,null,null,""]
[null,null,null,null,null,null,null,null,null,null,null,null,null,null,null,null,null,null,null,null,null,null,null,null,null,null,""]
[null,null,null,null,null,null,null,null,null,null,null,null,null,null,null,null,null,null,null,null,null,null,null,null,null,null,""]
[null,null,null,null,null,null,null,null,null,null,null,null,null,null,null,null,null,null,null,null,null,null,null,null,null,null,""]
[null,null,null,null,null,null,null,null,null,null,null,null,null,null,null,null,null,null,null,null,null,null,null,null,null,null,""]
[null,null,null,null,null,null,null,null,null,null,null,null,null,null,null,null,null,null,null,null,null,null,null,null,null,null,""]
[null,null,null,null,null,null,null,null,null,null,null,null,null,null,null,null,null,null,null,null,null,null,null,null,null,null,""]
[null,null,null,null,null,null,null,null,null,null,null,null,null,null,null,null,null,null,null,null,null,null,null,null,null,null,""]
[null,null,null,null,null,null,null,null,null,null,null,null,null,null,null,null,null,null,null,null,null,null,null,null,null,null,""]
[null,null,null,null,null,null,null,null,null,null,null,null,null,null,null,null,null,null,null,null,null,null,null,null,null,null,""]
[null,null,null,null,null,null,null,null,null,null,null,null,null,null,null,null,null,null,null,null,null,null,null,null,null,null,""]
[null,null,null,null,null,null,null,null,null,null,null,null,null,null,null,null,null,null,null,null,null,null,null,null,null,null,""]
[null,null,null,null,null,null,null,null,null,null,null,null,null,null,null,null,null,null,null,null,null,null,null,null,null,null,""]
[null,null,null,null,null,null,null,null,null,null,null,null,null,null,null,null,null,null,null,null,null,null,null,null,null,null,""]
[null,null,null,null,null,null,null,null,null,null,null,null,null,null,null,null,null,null,null,null,null,null,null,null,null,null,""]
[null,null,null,null,null,null,null,null,null,null,null,null,null,null,null,null,null,null,null,null,null,null,null,null,null,null,""]
[null,null,null,null,null,null,null,null,null,null,null,null,null,null,null,null,null,null,null,null,null,null,null,null,null,null,""]
[null,null,null,null,null,null,null,null,null,null,null,null,null,null,null,null,null,null,null,null,null,null,null,null,null,null,""]
[null,null,null,null,null,null,null,null,null,null,null,null,null,null,null,null,null,null,null,null,null,null,null,null,null,null,""]
[null,null,null,null,null,null,null,null,null,null,null,null,null,null,null,null,null,null,null,null,null,null,null,null,null,null,""]
[null,null,null,null,null,null,null,null,null,null,null,null,null,null,null,null,null,null,null,null,null,null,null,null,null,null,""]
[null,null,null,null,null,null,null,null,null,null,null,null,null,null,null,null,null,null,null,null,null,null,null,null,null,null,""]
[null,null,null,null,null,null,null,null,null,null,null,null,null,null,null,null,null,null,null,null,null,null,null,null,null,null,""]
[null,null,null,null,null,null,null,null,null,null,null,null,null,null,null,null,null,null,null,null,null,null,null,null,null,null,""]
[null,null,null,null,null,null,null,null,null,null,null,null,null,null,null,null,null,null,null,null,null,null,null,null,null,null,""]
[null,null,null,null,null,null,null,null,null,null,null,null,null,null,null,null,null,null,null,null,null,null,null,null,null,null,""]
[null,null,null,null,null,null,null,null,null,null,null,null,null,null,null,null,null,null,null,null,null,null,null,null,null,null,""]
[null,null,null,null,null,null,null,null,null,null,null,null,null,null,null,null,null,null,null,null,null,null,null,null,null,null,""]
[null,null,null,null,null,null,null,null,null,null,null,null,null,null,null,null,null,null,null,null,null,null,null,null,null,null,""]
[null,null,null,null,null,null,null,null,null,null,null,null,null,null,null,null,null,null,null,null,null,null,null,null,null,null,""]
[null,null,null,null,null,null,null,null,null,null,null,null,null,null,null,null,null,null,null,null,null,null,null,null,null,null,""]
[null,null,null,null,null,null,null,null,null,null,null,null,null,null,null,null,null,null,null,null,null,null,null,null,null,null,""]
[null,null,null,null,null,null,null,null,null,null,null,null,null,null,null,null,null,null,null,null,null,null,null,null,null,null,""]
[null,null,null,null,null,null,null,null,null,null,null,null,null,null,null,null,null,null,null,null,null,null,null,null,null,null,""]
[null,null,null,null,null,null,null,null,null,null,null,null,null,null,null,null,null,null,null,null,null,null,null,null,null,null,{"$f":"IF(B327=\"\",\"\",1)","v":""}]
[null,null,null,null,null,null,null,null,null,null,null,null,null,null,null,null,null,null,null,null,null,null,null,null,null,null,""]
[null,null,null,null,null,null,null,null,null,null,null,null,null,null,null,null,null,null,null,null,null,null,null,null,null,null,""]
[null,null,null,null,null,null,null,null,null,null,null,null,null,null,null,null,null,null,null,null,null,null,null,null,null,null,""]
[null,null,null,null,null,null,null,null,null,null,null,null,null,null,null,null,null,null,null,null,null,null,null,null,null,null,""]
[null,null,null,null,null,null,null,null,null,null,null,null,null,null,null,null,null,null,null,null,null,null,null,null,null,null,""]
[null,null,null,null,null,null,null,null,null,null,null,null,null,null,null,null,null,null,null,null,null,null,null,null,null,null,""]
[null,null,null,null,null,null,null,null,null,null,null,null,null,null,null,null,null,null,null,null,null,null,null,null,null,null,""]
[null,null,null,null,null,null,null,null,null,null,null,null,null,null,null,null,null,null,null,null,null,null,null,null,null,null,""]
[null,null,null,null,null,null,null,null,null,null,null,null,null,null,null,null,null,null,null,null,null,null,null,null,null,null,""]
[null,null,null,null,null,null,null,null,null,null,null,null,null,null,null,null,null,null,null,null,null,null,null,null,null,null,""]
[null,null,null,null,null,null,null,null,null,null,null,null,null,null,null,null,null,null,null,null,null,null,null,null,null,null,""]
[null,null,null,null,null,null,null,null,null,null,null,null,null,null,null,null,null,null,null,null,null,null,null,null,null,null,""]
[null,null,null,null,null,null,null,null,null,null,null,null,null,null,null,null,null,null,null,null,null,null,null,null,null,null,""]
[null,null,null,null,null,null,null,null,null,null,null,null,null,null,null,null,null,null,null,null,null,null,null,null,null,null,""]
[null,null,null,null,null,null,null,null,null,null,null,null,null,null,null,null,null,null,null,null,null,null,null,null,null,null,""]
[null,null,null,null,null,null,null,null,null,null,null,null,null,null,null,null,null,null,null,null,null,null,null,null,null,null,""]
[null,null,null,null,null,null,null,null,null,null,null,null,null,null,null,null,null,null,null,null,null,null,null,null,null,null,""]
[null,null,null,null,null,null,null,null,null,null,null,null,null,null,null,null,null,null,null,null,null,null,null,null,null,null,""]
[null,null,null,null,null,null,null,null,null,null,null,null,null,null,null,null,null,null,null,null,null,null,null,null,null,null,""]
[null,null,null,null,null,null,null,null,null,null,null,null,null,null,null,null,null,null,null,null,null,null,null,null,null,null,""]
[null,null,null,null,null,null,null,null,null,null,null,null,null,null,null,null,null,null,null,null,null,null,null,null,null,null,""]
[null,null,null,null,null,null,null,null,null,null,null,null,null,null,null,null,null,null,null,null,null,null,null,null,null,null,""]
[null,null,null,null,null,null,null,null,null,null,null,null,null,null,null,null,null,null,null,null,null,null,null,null,null,null,""]
[null,null,null,null,null,null,null,null,null,null,null,null,null,null,null,null,null,null,null,null,null,null,null,null,null,null,""]
[null,null,null,null,null,null,null,null,null,null,null,null,null,null,null,null,null,null,null,null,null,null,null,null,null,null,""]
[null,null,null,null,null,null,null,null,null,null,null,null,null,null,null,null,null,null,null,null,null,null,null,null,null,null,""]
[null,null,null,null,null,null,null,null,null,null,null,null,null,null,null,null,null,null,null,null,null,null,null,null,null,null,""]
[null,null,null,null,null,null,null,null,null,null,null,null,null,null,null,null,null,null,null,null,null,null,null,null,null,null,""]
[null,null,null,null,null,null,null,null,null,null,null,null,null,null,null,null,null,null,null,null,null,null,null,null,null,null,""]
[null,null,null,null,null,null,null,null,null,null,null,null,null,null,null,null,null,null,null,null,null,null,null,null,null,null,""]
[null,null,null,null,null,null,null,null,null,null,null,null,null,null,null,null,null,null,null,null,null,null,null,null,null,null,""]
[null,null,null,null,null,null,null,null,null,null,null,null,null,null,null,null,null,null,null,null,null,null,null,null,null,null,""]
[null,null,null,null,null,null,null,null,null,null,null,null,null,null,null,null,null,null,null,null,null,null,null,null,null,null,""]
[null,null,null,null,null,null,null,null,null,null,null,null,null,null,null,null,null,null,null,null,null,null,null,null,null,null,""]
[null,null,null,null,null,null,null,null,null,null,null,null,null,null,null,null,null,null,null,null,null,null,null,null,null,null,""]
[null,null,null,null,null,null,null,null,null,null,null,null,null,null,null,null,null,null,null,null,null,null,null,null,null,null,""]
[null,null,null,null,null,null,null,null,null,null,null,null,null,null,null,null,null,null,null,null,null,null,null,null,null,null,""]
[null,null,null,null,null,null,null,null,null,null,null,null,null,null,null,null,null,null,null,null,null,null,null,null,null,null,""]
[null,null,null,null,null,null,null,null,null,null,null,null,null,null,null,null,null,null,null,null,null,null,null,null,null,null,""]
[null,null,null,null,null,null,null,null,null,null,null,null,null,null,null,null,null,null,null,null,null,null,null,null,null,null,""]
[null,null,null,null,null,null,null,null,null,null,null,null,null,null,null,null,null,null,null,null,null,null,null,null,null,null,""]
[null,null,null,null,null,null,null,null,null,null,null,null,null,null,null,null,null,null,null,null,null,null,null,null,null,null,""]
[null,null,null,null,null,null,null,null,null,null,null,null,null,null,null,null,null,null,null,null,null,null,null,null,null,null,""]
[null,null,null,null,null,null,null,null,null,null,null,null,null,null,null,null,null,null,null,null,null,null,null,null,null,null,""]
[null,null,null,null,null,null,null,null,null,null,null,null,null,null,null,null,null,null,null,null,null,null,null,null,null,null,""]
[null,null,null,null,null,null,null,null,null,null,null,null,null,null,null,null,null,null,null,null,null,null,null,null,null,null,""]
[null,null,null,null,null,null,null,null,null,null,null,null,null,null,null,null,null,null,null,null,null,null,null,null,null,null,""]
[null,null,null,null,null,null,null,null,null,null,null,null,null,null,null,null,null,null,null,null,null,null,null,null,null,null,""]
[null,null,null,null,null,null,null,null,null,null,null,null,null,null,null,null,null,null,null,null,null,null,null,null,null,null,""]
[null,null,null,null,null,null,null,null,null,null,null,null,null,null,null,null,null,null,null,null,null,null,null,null,null,null,""]
[null,null,null,null,null,null,null,null,null,null,null,null,null,null,null,null,null,null,null,null,null,null,null,null,null,null,""]
[null,null,null,null,null,null,null,null,null,null,null,null,null,null,null,null,null,null,null,null,null,null,null,null,null,null,""]
[null,null,null,null,null,null,null,null,null,null,null,null,null,null,null,null,null,null,null,null,null,null,null,null,null,null,""]
[null,null,null,null,null,null,null,null,null,null,null,null,null,null,null,null,null,null,null,null,null,null,null,null,null,null,""]
[null,null,null,null,null,null,null,null,null,null,null,null,null,null,null,null,null,null,null,null,null,null,null,null,null,null,""]
[null,null,null,null,null,null,null,null,null,null,null,null,null,null,null,null,null,null,null,null,null,null,null,null,null,null,""]
[null,null,null,null,null,null,null,null,null,null,null,null,null,null,null,null,null,null,null,null,null,null,null,null,null,null,""]
[null,null,null,null,null,null,null,null,null,null,null,null,null,null,null,null,null,null,null,null,null,null,null,null,null,null,""]
[null,null,null,null,null,null,null,null,null,null,null,null,null,null,null,null,null,null,null,null,null,null,null,null,null,null,""]
[null,null,null,null,null,null,null,null,null,null,null,null,null,null,null,null,null,null,null,null,null,null,null,null,null,null,""]
[null,null,null,null,null,null,null,null,null,null,null,null,null,null,null,null,null,null,null,null,null,null,null,null,null,null,""]
[null,null,null,null,null,null,null,null,null,null,null,null,null,null,null,null,null,null,null,null,null,null,null,null,null,null,""]
[null,null,null,null,null,null,null,null,null,null,null,null,null,null,null,null,null,null,null,null,null,null,null,null,null,null,""]
[null,null,null,null,null,null,null,null,null,null,null,null,null,null,null,null,null,null,null,null,null,null,null,null,null,null,{"$f":"IF(B391=\"\",\"\",1)","v":""}]
[null,null,null,null,null,null,null,null,null,null,null,null,null,null,null,null,null,null,null,null,null,null,null,null,null,null,""]
[null,null,null,null,null,null,null,null,null,null,null,null,null,null,null,null,null,null,null,null,null,null,null,null,null,null,""]
[null,null,null,null,null,null,null,null,null,null,null,null,null,null,null,null,null,null,null,null,null,null,null,null,null,null,""]
[null,null,null,null,null,null,null,null,null,null,null,null,null,null,null,null,null,null,null,null,null,null,null,null,null,null,""]
[null,null,null,null,null,null,null,null,null,null,null,null,null,null,null,null,null,null,null,null,null,null,null,null,null,null,""]
[null,null,null,null,null,null,null,null,null,null,null,null,null,null,null,null,null,null,null,null,null,null,null,null,null,null,""]
[null,null,null,null,null,null,null,null,null,null,null,null,null,null,null,null,null,null,null,null,null,null,null,null,null,null,""]
[null,null,null,null,null,null,null,null,null,null,null,null,null,null,null,null,null,null,null,null,null,null,null,null,null,null,""]
[null,null,null,null,null,null,null,null,null,null,null,null,null,null,null,null,null,null,null,null,null,null,null,null,null,null,""]
[null,null,null,null,null,null,null,null,null,null,null,null,null,null,null,null,null,null,null,null,null,null,null,null,null,null,""]
[null,null,null,null,null,null,null,null,null,null,null,null,null,null,null,null,null,null,null,null,null,null,null,null,null,null,""]
[null,null,null,null,null,null,null,null,null,null,null,null,null,null,null,null,null,null,null,null,null,null,null,null,null,null,""]
[null,null,null,null,null,null,null,null,null,null,null,null,null,null,null,null,null,null,null,null,null,null,null,null,null,null,""]
[null,null,null,null,null,null,null,null,null,null,null,null,null,null,null,null,null,null,null,null,null,null,null,null,null,null,""]
[null,null,null,null,null,null,null,null,null,null,null,null,null,null,null,null,null,null,null,null,null,null,null,null,null,null,""]
[null,null,null,null,null,null,null,null,null,null,null,null,null,null,null,null,null,null,null,null,null,null,null,null,null,null,""]
[null,null,null,null,null,null,null,null,null,null,null,null,null,null,null,null,null,null,null,null,null,null,null,null,null,null,""]
[null,null,null,null,null,null,null,null,null,null,null,null,null,null,null,null,null,null,null,null,null,null,null,null,null,null,""]
[null,null,null,null,null,null,null,null,null,null,null,null,null,null,null,null,null,null,null,null,null,null,null,null,null,null,""]
[null,null,null,null,null,null,null,null,null,null,null,null,null,null,null,null,null,null,null,null,null,null,null,null,null,null,""]
[null,null,null,null,null,null,null,null,null,null,null,null,null,null,null,null,null,null,null,null,null,null,null,null,null,null,""]
[null,null,null,null,null,null,null,null,null,null,null,null,null,null,null,null,null,null,null,null,null,null,null,null,null,null,""]
[null,null,null,null,null,null,null,null,null,null,null,null,null,null,null,null,null,null,null,null,null,null,null,null,null,null,""]
[null,null,null,null,null,null,null,null,null,null,null,null,null,null,null,null,null,null,null,null,null,null,null,null,null,null,""]
[null,null,null,null,null,null,null,null,null,null,null,null,null,null,null,null,null,null,null,null,null,null,null,null,null,null,""]
[null,null,null,null,null,null,null,null,null,null,null,null,null,null,null,null,null,null,null,null,null,null,null,null,null,null,""]
[null,null,null,null,null,null,null,null,null,null,null,null,null,null,null,null,null,null,null,null,null,null,null,null,null,null,""]
[null,null,null,null,null,null,null,null,null,null,null,null,null,null,null,null,null,null,null,null,null,null,null,null,null,null,""]
[null,null,null,null,null,null,null,null,null,null,null,null,null,null,null,null,null,null,null,null,null,null,null,null,null,null,""]
[null,null,null,null,null,null,null,null,null,null,null,null,null,null,null,null,null,null,null,null,null,null,null,null,null,null,""]
[null,null,null,null,null,null,null,null,null,null,null,null,null,null,null,null,null,null,null,null,null,null,null,null,null,null,""]
[null,null,null,null,null,null,null,null,null,null,null,null,null,null,null,null,null,null,null,null,null,null,null,null,null,null,""]
[null,null,null,null,null,null,null,null,null,null,null,null,null,null,null,null,null,null,null,null,null,null,null,null,null,null,""]
[null,null,null,null,null,null,null,null,null,null,null,null,null,null,null,null,null,null,null,null,null,null,null,null,null,null,""]
[null,null,null,null,null,null,null,null,null,null,null,null,null,null,null,null,null,null,null,null,null,null,null,null,null,null,""]
[null,null,null,null,null,null,null,null,null,null,null,null,null,null,null,null,null,null,null,null,null,null,null,null,null,null,""]
[null,null,null,null,null,null,null,null,null,null,null,null,null,null,null,null,null,null,null,null,null,null,null,null,null,null,""]
[null,null,null,null,null,null,null,null,null,null,null,null,null,null,null,null,null,null,null,null,null,null,null,null,null,null,""]
[null,null,null,null,null,null,null,null,null,null,null,null,null,null,null,null,null,null,null,null,null,null,null,null,null,null,""]
[null,null,null,null,null,null,null,null,null,null,null,null,null,null,null,null,null,null,null,null,null,null,null,null,null,null,""]
[null,null,null,null,null,null,null,null,null,null,null,null,null,null,null,null,null,null,null,null,null,null,null,null,null,null,""]
[null,null,null,null,null,null,null,null,null,null,null,null,null,null,null,null,null,null,null,null,null,null,null,null,null,null,""]
[null,null,null,null,null,null,null,null,null,null,null,null,null,null,null,null,null,null,null,null,null,null,null,null,null,null,""]
[null,null,null,null,null,null,null,null,null,null,null,null,null,null,null,null,null,null,null,null,null,null,null,null,null,null,""]
[null,null,null,null,null,null,null,null,null,null,null,null,null,null,null,null,null,null,null,null,null,null,null,null,null,null,""]
[null,null,null,null,null,null,null,null,null,null,null,null,null,null,null,null,null,null,null,null,null,null,null,null,null,null,""]
[null,null,null,null,null,null,null,null,null,null,null,null,null,null,null,null,null,null,null,null,null,null,null,null,null,null,""]
[null,null,null,null,null,null,null,null,null,null,null,null,null,null,null,null,null,null,null,null,null,null,null,null,null,null,""]
[null,null,null,null,null,null,null,null,null,null,null,null,null,null,null,null,null,null,null,null,null,null,null,null,null,null,""]
[null,null,null,null,null,null,null,null,null,null,null,null,null,null,null,null,null,null,null,null,null,null,null,null,null,null,""]
[null,null,null,null,null,null,null,null,null,null,null,null,null,null,null,null,null,null,null,null,null,null,null,null,null,null,""]
[null,null,null,null,null,null,null,null,null,null,null,null,null,null,null,null,null,null,null,null,null,null,null,null,null,null,""]
[null,null,null,null,null,null,null,null,null,null,null,null,null,null,null,null,null,null,null,null,null,null,null,null,null,null,""]
[null,null,null,null,null,null,null,null,null,null,null,null,null,null,null,null,null,null,null,null,null,null,null,null,null,null,""]
[null,null,null,null,null,null,null,null,null,null,null,null,null,null,null,null,null,null,null,null,null,null,null,null,null,null,""]
[null,null,null,null,null,null,null,null,null,null,null,null,null,null,null,null,null,null,null,null,null,null,null,null,null,null,""]
[null,null,null,null,null,null,null,null,null,null,null,null,null,null,null,null,null,null,null,null,null,null,null,null,null,null,""]
[null,null,null,null,null,null,null,null,null,null,null,null,null,null,null,null,null,null,null,null,null,null,null,null,null,null,""]
[null,null,null,null,null,null,null,null,null,null,null,null,null,null,null,null,null,null,null,null,null,null,null,null,null,null,""]
[null,null,null,null,null,null,null,null,null,null,null,null,null,null,null,null,null,null,null,null,null,null,null,null,null,null,""]
[null,null,null,null,null,null,null,null,null,null,null,null,null,null,null,null,null,null,null,null,null,null,null,null,null,null,""]
[null,null,null,null,null,null,null,null,null,null,null,null,null,null,null,null,null,null,null,null,null,null,null,null,null,null,""]
[null,null,null,null,null,null,null,null,null,null,null,null,null,null,null,null,null,null,null,null,null,null,null,null,null,null,""]
[null,null,null,null,null,null,null,null,null,null,null,null,null,null,null,null,null,null,null,null,null,null,null,null,null,null,{"$f":"IF(B455=\"\",\"\",1)","v":""}]
[null,null,null,null,null,null,null,null,null,null,null,null,null,null,null,null,null,null,null,null,null,null,null,null,null,null,""]
[null,null,null,null,null,null,null,null,null,null,null,null,null,null,null,null,null,null,null,null,null,null,null,null,null,null,""]
[null,null,null,null,null,null,null,null,null,null,null,null,null,null,null,null,null,null,null,null,null,null,null,null,null,null,""]
[null,null,null,null,null,null,null,null,null,null,null,null,null,null,null,null,null,null,null,null,null,null,null,null,null,null,""]
[null,null,null,null,null,null,null,null,null,null,null,null,null,null,null,null,null,null,null,null,null,null,null,null,null,null,""]
[null,null,null,null,null,null,null,null,null,null,null,null,null,null,null,null,null,null,null,null,null,null,null,null,null,null,""]
[null,null,null,null,null,null,null,null,null,null,null,null,null,null,null,null,null,null,null,null,null,null,null,null,null,null,""]
[null,null,null,null,null,null,null,null,null,null,null,null,null,null,null,null,null,null,null,null,null,null,null,null,null,null,""]
[null,null,null,null,null,null,null,null,null,null,null,null,null,null,null,null,null,null,null,null,null,null,null,null,null,null,""]
[null,null,null,null,null,null,null,null,null,null,null,null,null,null,null,null,null,null,null,null,null,null,null,null,null,null,""]
[null,null,null,null,null,null,null,null,null,null,null,null,null,null,null,null,null,null,null,null,null,null,null,null,null,null,""]
[null,null,null,null,null,null,null,null,null,null,null,null,null,null,null,null,null,null,null,null,null,null,null,null,null,null,""]
[null,null,null,null,null,null,null,null,null,null,null,null,null,null,null,null,null,null,null,null,null,null,null,null,null,null,""]
[null,null,null,null,null,null,null,null,null,null,null,null,null,null,null,null,null,null,null,null,null,null,null,null,null,null,""]
[null,null,null,null,null,null,null,null,null,null,null,null,null,null,null,null,null,null,null,null,null,null,null,null,null,null,""]
[null,null,null,null,null,null,null,null,null,null,null,null,null,null,null,null,null,null,null,null,null,null,null,null,null,null,""]
[null,null,null,null,null,null,null,null,null,null,null,null,null,null,null,null,null,null,null,null,null,null,null,null,null,null,""]
[null,null,null,null,null,null,null,null,null,null,null,null,null,null,null,null,null,null,null,null,null,null,null,null,null,null,""]
[null,null,null,null,null,null,null,null,null,null,null,null,null,null,null,null,null,null,null,null,null,null,null,null,null,null,""]
[null,null,null,null,null,null,null,null,null,null,null,null,null,null,null,null,null,null,null,null,null,null,null,null,null,null,""]
[null,null,null,null,null,null,null,null,null,null,null,null,null,null,null,null,null,null,null,null,null,null,null,null,null,null,""]
[null,null,null,null,null,null,null,null,null,null,null,null,null,null,null,null,null,null,null,null,null,null,null,null,null,null,""]
[null,null,null,null,null,null,null,null,null,null,null,null,null,null,null,null,null,null,null,null,null,null,null,null,null,null,""]
[null,null,null,null,null,null,null,null,null,null,null,null,null,null,null,null,null,null,null,null,null,null,null,null,null,null,""]
[null,null,null,null,null,null,null,null,null,null,null,null,null,null,null,null,null,null,null,null,null,null,null,null,null,null,""]
[null,null,null,null,null,null,null,null,null,null,null,null,null,null,null,null,null,null,null,null,null,null,null,null,null,null,""]
[null,null,null,null,null,null,null,null,null,null,null,null,null,null,null,null,null,null,null,null,null,null,null,null,null,null,""]
[null,null,null,null,null,null,null,null,null,null,null,null,null,null,null,null,null,null,null,null,null,null,null,null,null,null,""]
[null,null,null,null,null,null,null,null,null,null,null,null,null,null,null,null,null,null,null,null,null,null,null,null,null,null,""]
[null,null,null,null,null,null,null,null,null,null,null,null,null,null,null,null,null,null,null,null,null,null,null,null,null,null,""]
[null,null,null,null,null,null,null,null,null,null,null,null,null,null,null,null,null,null,null,null,null,null,null,null,null,null,""]
[null,null,null,null,null,null,null,null,null,null,null,null,null,null,null,null,null,null,null,null,null,null,null,null,null,null,""]
[null,null,null,null,null,null,null,null,null,null,null,null,null,null,null,null,null,null,null,null,null,null,null,null,null,null,""]
[null,null,null,null,null,null,null,null,null,null,null,null,null,null,null,null,null,null,null,null,null,null,null,null,null,null,""]
[null,null,null,null,null,null,null,null,null,null,null,null,null,null,null,null,null,null,null,null,null,null,null,null,null,null,""]
[null,null,null,null,null,null,null,null,null,null,null,null,null,null,null,null,null,null,null,null,null,null,null,null,null,null,""]
[null,null,null,null,null,null,null,null,null,null,null,null,null,null,null,null,null,null,null,null,null,null,null,null,null,null,""]
[null,null,null,null,null,null,null,null,null,null,null,null,null,null,null,null,null,null,null,null,null,null,null,null,null,null,""]
[null,null,null,null,null,null,null,null,null,null,null,null,null,null,null,null,null,null,null,null,null,null,null,null,null,null,""]
[null,null,null,null,null,null,null,null,null,null,null,null,null,null,null,null,null,null,null,null,null,null,null,null,null,null,""]
[null,null,null,null,null,null,null,null,null,null,null,null,null,null,null,null,null,null,null,null,null,null,null,null,null,null,""]
[null,null,null,null,null,null,null,null,null,null,null,null,null,null,null,null,null,null,null,null,null,null,null,null,null,null,""]
[null,null,null,null,null,null,null,null,null,null,null,null,null,null,null,null,null,null,null,null,null,null,null,null,null,null,""]
[null,null,null,null,null,null,null,null,null,null,null,null,null,null,null,null,null,null,null,null,null,null,null,null,null,null,""]
[null,null,null,null,null,null,null,null,null,null,null,null,null,null,null,null,null,null,null,null,null,null,null,null,null,null,""]
[null,null,null,null,null,null,null,null,null,null,null,null,null,null,null,null,null,null,null,null,null,null,null,null,null,null,""]
[null,null,null,null,null,null,null,null,null,null,null,null,null,null,null,null,null,null,null,null,null,null,null,null,null,null,""]
[null,null,null,null,null,null,null,null,null,null,null,null,null,null,null,null,null,null,null,null,null,null,null,null,null,null,""]
[null,null,null,null,null,null,null,null,null,null,null,null,null,null,null,null,null,null,null,null,null,null,null,null,null,null,""]
[null,null,null,null,null,null,null,null,null,null,null,null,null,null,null,null,null,null,null,null,null,null,null,null,null,null,""]
[null,null,null,null,null,null,null,null,null,null,null,null,null,null,null,null,null,null,null,null,null,null,null,null,null,null,""]
[null,null,null,null,null,null,null,null,null,null,null,null,null,null,null,null,null,null,null,null,null,null,null,null,null,null,""]
[null,null,null,null,null,null,null,null,null,null,null,null,null,null,null,null,null,null,null,null,null,null,null,null,null,null,""]
[null,null,null,null,null,null,null,null,null,null,null,null,null,null,null,null,null,null,null,null,null,null,null,null,null,null,""]
[null,null,null,null,null,null,null,null,null,null,null,null,null,null,null,null,null,null,null,null,null,null,null,null,null,null,""]
[null,null,null,null,null,null,null,null,null,null,null,null,null,null,null,null,null,null,null,null,null,null,null,null,null,null,""]
[null,null,null,null,null,null,null,null,null,null,null,null,null,null,null,null,null,null,null,null,null,null,null,null,null,null,""]
[null,null,null,null,null,null,null,null,null,null,null,null,null,null,null,null,null,null,null,null,null,null,null,null,null,null,""]
[null,null,null,null,null,null,null,null,null,null,null,null,null,null,null,null,null,null,null,null,null,null,null,null,null,null,""]
[null,null,null,null,null,null,null,null,null,null,null,null,null,null,null,null,null,null,null,null,null,null,null,null,null,null,""]
[null,null,null,null,null,null,null,null,null,null,null,null,null,null,null,null,null,null,null,null,null,null,null,null,null,null,""]
[null,null,null,null,null,null,null,null,null,null,null,null,null,null,null,null,null,null,null,null,null,null,null,null,null,null,""]
[null,null,null,null,null,null,null,null,null,null,null,null,null,null,null,null,null,null,null,null,null,null,null,null,null,null,""]
[null,null,null,null,null,null,null,null,null,null,null,null,null,null,null,null,null,null,null,null,null,null,null,null,null,null,{"$f":"IF(B519=\"\",\"\",1)","v":""}]
[null,null,null,null,null,null,null,null,null,null,null,null,null,null,null,null,null,null,null,null,null,null,null,null,null,null,""]
[null,null,null,null,null,null,null,null,null,null,null,null,null,null,null,null,null,null,null,null,null,null,null,null,null,null,""]
[null,null,null,null,null,null,null,null,null,null,null,null,null,null,null,null,null,null,null,null,null,null,null,null,null,null,""]
[null,null,null,null,null,null,null,null,null,null,null,null,null,null,null,null,null,null,null,null,null,null,null,null,null,null,""]
[null,null,null,null,null,null,null,null,null,null,null,null,null,null,null,null,null,null,null,null,null,null,null,null,null,null,""]
[null,null,null,null,null,null,null,null,null,null,null,null,null,null,null,null,null,null,null,null,null,null,null,null,null,null,""]
[null,null,null,null,null,null,null,null,null,null,null,null,null,null,null,null,null,null,null,null,null,null,null,null,null,null,""]
[null,null,null,null,null,null,null,null,null,null,null,null,null,null,null,null,null,null,null,null,null,null,null,null,null,null,""]
[null,null,null,null,null,null,null,null,null,null,null,null,null,null,null,null,null,null,null,null,null,null,null,null,null,null,""]
[null,null,null,null,null,null,null,null,null,null,null,null,null,null,null,null,null,null,null,null,null,null,null,null,null,null,""]
[null,null,null,null,null,null,null,null,null,null,null,null,null,null,null,null,null,null,null,null,null,null,null,null,null,null,""]
[null,null,null,null,null,null,null,null,null,null,null,null,null,null,null,null,null,null,null,null,null,null,null,null,null,null,""]
[null,null,null,null,null,null,null,null,null,null,null,null,null,null,null,null,null,null,null,null,null,null,null,null,null,null,""]
[null,null,null,null,null,null,null,null,null,null,null,null,null,null,null,null,null,null,null,null,null,null,null,null,null,null,""]
[null,null,null,null,null,null,null,null,null,null,null,null,null,null,null,null,null,null,null,null,null,null,null,null,null,null,""]
[null,null,null,null,null,null,null,null,null,null,null,null,null,null,null,null,null,null,null,null,null,null,null,null,null,null,""]
[null,null,null,null,null,null,null,null,null,null,null,null,null,null,null,null,null,null,null,null,null,null,null,null,null,null,""]
[null,null,null,null,null,null,null,null,null,null,null,null,null,null,null,null,null,null,null,null,null,null,null,null,null,null,""]
[null,null,null,null,null,null,null,null,null,null,null,null,null,null,null,null,null,null,null,null,null,null,null,null,null,null,""]
[null,null,null,null,null,null,null,null,null,null,null,null,null,null,null,null,null,null,null,null,null,null,null,null,null,null,""]
[null,null,null,null,null,null,null,null,null,null,null,null,null,null,null,null,null,null,null,null,null,null,null,null,null,null,""]
[null,null,null,null,null,null,null,null,null,null,null,null,null,null,null,null,null,null,null,null,null,null,null,null,null,null,""]
[null,null,null,null,null,null,null,null,null,null,null,null,null,null,null,null,null,null,null,null,null,null,null,null,null,null,""]
[null,null,null,null,null,null,null,null,null,null,null,null,null,null,null,null,null,null,null,null,null,null,null,null,null,null,""]
[null,null,null,null,null,null,null,null,null,null,null,null,null,null,null,null,null,null,null,null,null,null,null,null,null,null,""]
[null,null,null,null,null,null,null,null,null,null,null,null,null,null,null,null,null,null,null,null,null,null,null,null,null,null,""]
[null,null,null,null,null,null,null,null,null,null,null,null,null,null,null,null,null,null,null,null,null,null,null,null,null,null,""]
[null,null,null,null,null,null,null,null,null,null,null,null,null,null,null,null,null,null,null,null,null,null,null,null,null,null,""]
[null,null,null,null,null,null,null,null,null,null,null,null,null,null,null,null,null,null,null,null,null,null,null,null,null,null,""]
[null,null,null,null,null,null,null,null,null,null,null,null,null,null,null,null,null,null,null,null,null,null,null,null,null,null,""]
[null,null,null,null,null,null,null,null,null,null,null,null,null,null,null,null,null,null,null,null,null,null,null,null,null,null,""]
[null,null,null,null,null,null,null,null,null,null,null,null,null,null,null,null,null,null,null,null,null,null,null,null,null,null,""]
[null,null,null,null,null,null,null,null,null,null,null,null,null,null,null,null,null,null,null,null,null,null,null,null,null,null,""]
[null,null,null,null,null,null,null,null,null,null,null,null,null,null,null,null,null,null,null,null,null,null,null,null,null,null,""]
[null,null,null,null,null,null,null,null,null,null,null,null,null,null,null,null,null,null,null,null,null,null,null,null,null,null,""]
[null,null,null,null,null,null,null,null,null,null,null,null,null,null,null,null,null,null,null,null,null,null,null,null,null,null,""]
[null,null,null,null,null,null,null,null,null,null,null,null,null,null,null,null,null,null,null,null,null,null,null,null,null,null,""]
[null,null,null,null,null,null,null,null,null,null,null,null,null,null,null,null,null,null,null,null,null,null,null,null,null,null,""]
[null,null,null,null,null,null,null,null,null,null,null,null,null,null,null,null,null,null,null,null,null,null,null,null,null,null,""]
[null,null,null,null,null,null,null,null,null,null,null,null,null,null,null,null,null,null,null,null,null,null,null,null,null,null,""]
[null,null,null,null,null,null,null,null,null,null,null,null,null,null,null,null,null,null,null,null,null,null,null,null,null,null,""]
[null,null,null,null,null,null,null,null,null,null,null,null,null,null,null,null,null,null,null,null,null,null,null,null,null,null,""]
[null,null,null,null,null,null,null,null,null,null,null,null,null,null,null,null,null,null,null,null,null,null,null,null,null,null,""]
[null,null,null,null,null,null,null,null,null,null,null,null,null,null,null,null,null,null,null,null,null,null,null,null,null,null,""]
[null,null,null,null,null,null,null,null,null,null,null,null,null,null,null,null,null,null,null,null,null,null,null,null,null,null,""]
[null,null,null,null,null,null,null,null,null,null,null,null,null,null,null,null,null,null,null,null,null,null,null,null,null,null,""]
[null,null,null,null,null,null,null,null,null,null,null,null,null,null,null,null,null,null,null,null,null,null,null,null,null,null,""]
[null,null,null,null,null,null,null,null,null,null,null,null,null,null,null,null,null,null,null,null,null,null,null,null,null,null,""]
[null,null,null,null,null,null,null,null,null,null,null,null,null,null,null,null,null,null,null,null,null,null,null,null,null,null,""]
[null,null,null,null,null,null,null,null,null,null,null,null,null,null,null,null,null,null,null,null,null,null,null,null,null,null,""]
[null,null,null,null,null,null,null,null,null,null,null,null,null,null,null,null,null,null,null,null,null,null,null,null,null,null,""]
[null,null,null,null,null,null,null,null,null,null,null,null,null,null,null,null,null,null,null,null,null,null,null,null,null,null,""]
[null,null,null,null,null,null,null,null,null,null,null,null,null,null,null,null,null,null,null,null,null,null,null,null,null,null,""]
[null,null,null,null,null,null,null,null,null,null,null,null,null,null,null,null,null,null,null,null,null,null,null,null,null,null,""]
[null,null,null,null,null,null,null,null,null,null,null,null,null,null,null,null,null,null,null,null,null,null,null,null,null,null,""]
[null,null,null,null,null,null,null,null,null,null,null,null,null,null,null,null,null,null,null,null,null,null,null,null,null,null,""]
[null,null,null,null,null,null,null,null,null,null,null,null,null,null,null,null,null,null,null,null,null,null,null,null,null,null,""]
[null,null,null,null,null,null,null,null,null,null,null,null,null,null,null,null,null,null,null,null,null,null,null,null,null,null,""]
[null,null,null,null,null,null,null,null,null,null,null,null,null,null,null,null,null,null,null,null,null,null,null,null,null,null,""]
[null,null,null,null,null,null,null,null,null,null,null,null,null,null,null,null,null,null,null,null,null,null,null,null,null,null,""]
[null,null,null,null,null,null,null,null,null,null,null,null,null,null,null,null,null,null,null,null,null,null,null,null,null,null,""]
[null,null,null,null,null,null,null,null,null,null,null,null,null,null,null,null,null,null,null,null,null,null,null,null,null,null,""]
[null,null,null,null,null,null,null,null,null,null,null,null,null,null,null,null,null,null,null,null,null,null,null,null,null,null,""]
[null,null,null,null,null,null,null,null,null,null,null,null,null,null,null,null,null,null,null,null,null,null,null,null,null,null,{"$f":"IF(B583=\"\",\"\",1)","v":""}]
[null,null,null,null,null,null,null,null,null,null,null,null,null,null,null,null,null,null,null,null,null,null,null,null,null,null,""]
[null,null,null,null,null,null,null,null,null,null,null,null,null,null,null,null,null,null,null,null,null,null,null,null,null,null,""]
[null,null,null,null,null,null,null,null,null,null,null,null,null,null,null,null,null,null,null,null,null,null,null,null,null,null,""]
[null,null,null,null,null,null,null,null,null,null,null,null,null,null,null,null,null,null,null,null,null,null,null,null,null,null,""]
[null,null,null,null,null,null,null,null,null,null,null,null,null,null,null,null,null,null,null,null,null,null,null,null,null,null,""]
[null,null,null,null,null,null,null,null,null,null,null,null,null,null,null,null,null,null,null,null,null,null,null,null,null,null,""]
[null,null,null,null,null,null,null,null,null,null,null,null,null,null,null,null,null,null,null,null,null,null,null,null,null,null,""]
[null,null,null,null,null,null,null,null,null,null,null,null,null,null,null,null,null,null,null,null,null,null,null,null,null,null,""]
[null,null,null,null,null,null,null,null,null,null,null,null,null,null,null,null,null,null,null,null,null,null,null,null,null,null,""]
[null,null,null,null,null,null,null,null,null,null,null,null,null,null,null,null,null,null,null,null,null,null,null,null,null,null,""]
[null,null,null,null,null,null,null,null,null,null,null,null,null,null,null,null,null,null,null,null,null,null,null,null,null,null,""]
[null,null,null,null,null,null,null,null,null,null,null,null,null,null,null,null,null,null,null,null,null,null,null,null,null,null,""]
[null,null,null,null,null,null,null,null,null,null,null,null,null,null,null,null,null,null,null,null,null,null,null,null,null,null,""]
[null,null,null,null,null,null,null,null,null,null,null,null,null,null,null,null,null,null,null,null,null,null,null,null,null,null,""]
[null,null,null,null,null,null,null,null,null,null,null,null,null,null,null,null,null,null,null,null,null,null,null,null,null,null,""]
[null,null,null,null,null,null,null,null,null,null,null,null,null,null,null,null,null,null,null,null,null,null,null,null,null,null,""]
[null,null,null,null,null,null,null,null,null,null,null,null,null,null,null,null,null,null,null,null,null,null,null,null,null,null,""]
[null,null,null,null,null,null,null,null,null,null,null,null,null,null,null,null,null,null,null,null,null,null,null,null,null,null,""]
[null,null,null,null,null,null,null,null,null,null,null,null,null,null,null,null,null,null,null,null,null,null,null,null,null,null,""]
[null,null,null,null,null,null,null,null,null,null,null,null,null,null,null,null,null,null,null,null,null,null,null,null,null,null,""]
[null,null,null,null,null,null,null,null,null,null,null,null,null,null,null,null,null,null,null,null,null,null,null,null,null,null,""]
[null,null,null,null,null,null,null,null,null,null,null,null,null,null,null,null,null,null,null,null,null,null,null,null,null,null,""]
[null,null,null,null,null,null,null,null,null,null,null,null,null,null,null,null,null,null,null,null,null,null,null,null,null,null,""]
[null,null,null,null,null,null,null,null,null,null,null,null,null,null,null,null,null,null,null,null,null,null,null,null,null,null,""]
[null,null,null,null,null,null,null,null,null,null,null,null,null,null,null,null,null,null,null,null,null,null,null,null,null,null,""]
[null,null,null,null,null,null,null,null,null,null,null,null,null,null,null,null,null,null,null,null,null,null,null,null,null,null,""]
[null,null,null,null,null,null,null,null,null,null,null,null,null,null,null,null,null,null,null,null,null,null,null,null,null,null,""]
[null,null,null,null,null,null,null,null,null,null,null,null,null,null,null,null,null,null,null,null,null,null,null,null,null,null,""]
[null,null,null,null,null,null,null,null,null,null,null,null,null,null,null,null,null,null,null,null,null,null,null,null,null,null,""]
[null,null,null,null,null,null,null,null,null,null,null,null,null,null,null,null,null,null,null,null,null,null,null,null,null,null,""]
[null,null,null,null,null,null,null,null,null,null,null,null,null,null,null,null,null,null,null,null,null,null,null,null,null,null,""]
[null,null,null,null,null,null,null,null,null,null,null,null,null,null,null,null,null,null,null,null,null,null,null,null,null,null,""]
[null,null,null,null,null,null,null,null,null,null,null,null,null,null,null,null,null,null,null,null,null,null,null,null,null,null,""]
[null,null,null,null,null,null,null,null,null,null,null,null,null,null,null,null,null,null,null,null,null,null,null,null,null,null,""]
[null,null,null,null,null,null,null,null,null,null,null,null,null,null,null,null,null,null,null,null,null,null,null,null,null,null,""]
[null,null,null,null,null,null,null,null,null,null,null,null,null,null,null,null,null,null,null,null,null,null,null,null,null,null,""]
[null,null,null,null,null,null,null,null,null,null,null,null,null,null,null,null,null,null,null,null,null,null,null,null,null,null,""]
[null,null,null,null,null,null,null,null,null,null,null,null,null,null,null,null,null,null,null,null,null,null,null,null,null,null,""]
[null,null,null,null,null,null,null,null,null,null,null,null,null,null,null,null,null,null,null,null,null,null,null,null,null,null,""]
[null,null,null,null,null,null,null,null,null,null,null,null,null,null,null,null,null,null,null,null,null,null,null,null,null,null,""]
[null,null,null,null,null,null,null,null,null,null,null,null,null,null,null,null,null,null,null,null,null,null,null,null,null,null,""]
[null,null,null,null,null,null,null,null,null,null,null,null,null,null,null,null,null,null,null,null,null,null,null,null,null,null,""]
[null,null,null,null,null,null,null,null,null,null,null,null,null,null,null,null,null,null,null,null,null,null,null,null,null,null,""]
[null,null,null,null,null,null,null,null,null,null,null,null,null,null,null,null,null,null,null,null,null,null,null,null,null,null,""]
[null,null,null,null,null,null,null,null,null,null,null,null,null,null,null,null,null,null,null,null,null,null,null,null,null,null,""]
[null,null,null,null,null,null,null,null,null,null,null,null,null,null,null,null,null,null,null,null,null,null,null,null,null,null,""]
[null,null,null,null,null,null,null,null,null,null,null,null,null,null,null,null,null,null,null,null,null,null,null,null,null,null,""]
[null,null,null,null,null,null,null,null,null,null,null,null,null,null,null,null,null,null,null,null,null,null,null,null,null,null,""]
[null,null,null,null,null,null,null,null,null,null,null,null,null,null,null,null,null,null,null,null,null,null,null,null,null,null,""]
[null,null,null,null,null,null,null,null,null,null,null,null,null,null,null,null,null,null,null,null,null,null,null,null,null,null,""]
[null,null,null,null,null,null,null,null,null,null,null,null,null,null,null,null,null,null,null,null,null,null,null,null,null,null,""]
[null,null,null,null,null,null,null,null,null,null,null,null,null,null,null,null,null,null,null,null,null,null,null,null,null,null,""]
[null,null,null,null,null,null,null,null,null,null,null,null,null,null,null,null,null,null,null,null,null,null,null,null,null,null,""]
[null,null,null,null,null,null,null,null,null,null,null,null,null,null,null,null,null,null,null,null,null,null,null,null,null,null,""]
[null,null,null,null,null,null,null,null,null,null,null,null,null,null,null,null,null,null,null,null,null,null,null,null,null,null,""]
[null,null,null,null,null,null,null,null,null,null,null,null,null,null,null,null,null,null,null,null,null,null,null,null,null,null,""]
[null,null,null,null,null,null,null,null,null,null,null,null,null,null,null,null,null,null,null,null,null,null,null,null,null,null,""]
[null,null,null,null,null,null,null,null,null,null,null,null,null,null,null,null,null,null,null,null,null,null,null,null,null,null,""]
[null,null,null,null,null,null,null,null,null,null,null,null,null,null,null,null,null,null,null,null,null,null,null,null,null,null,""]
[null,null,null,null,null,null,null,null,null,null,null,null,null,null,null,null,null,null,null,null,null,null,null,null,null,null,""]
[null,null,null,null,null,null,null,null,null,null,null,null,null,null,null,null,null,null,null,null,null,null,null,null,null,null,""]
[null,null,null,null,null,null,null,null,null,null,null,null,null,null,null,null,null,null,null,null,null,null,null,null,null,null,""]
[null,null,null,null,null,null,null,null,null,null,null,null,null,null,null,null,null,null,null,null,null,null,null,null,null,null,""]
[null,null,null,null,null,null,null,null,null,null,null,null,null,null,null,null,null,null,null,null,null,null,null,null,null,null,{"$f":"IF(B647=\"\",\"\",1)","v":""}]
[null,null,null,null,null,null,null,null,null,null,null,null,null,null,null,null,null,null,null,null,null,null,null,null,null,null,""]
[null,null,null,null,null,null,null,null,null,null,null,null,null,null,null,null,null,null,null,null,null,null,null,null,null,null,""]
[null,null,null,null,null,null,null,null,null,null,null,null,null,null,null,null,null,null,null,null,null,null,null,null,null,null,""]
[null,null,null,null,null,null,null,null,null,null,null,null,null,null,null,null,null,null,null,null,null,null,null,null,null,null,""]
[null,null,null,null,null,null,null,null,null,null,null,null,null,null,null,null,null,null,null,null,null,null,null,null,null,null,""]
[null,null,null,null,null,null,null,null,null,null,null,null,null,null,null,null,null,null,null,null,null,null,null,null,null,null,""]
[null,null,null,null,null,null,null,null,null,null,null,null,null,null,null,null,null,null,null,null,null,null,null,null,null,null,""]
[null,null,null,null,null,null,null,null,null,null,null,null,null,null,null,null,null,null,null,null,null,null,null,null,null,null,""]
[null,null,null,null,null,null,null,null,null,null,null,null,null,null,null,null,null,null,null,null,null,null,null,null,null,null,""]
[null,null,null,null,null,null,null,null,null,null,null,null,null,null,null,null,null,null,null,null,null,null,null,null,null,null,""]
[null,null,null,null,null,null,null,null,null,null,null,null,null,null,null,null,null,null,null,null,null,null,null,null,null,null,""]
[null,null,null,null,null,null,null,null,null,null,null,null,null,null,null,null,null,null,null,null,null,null,null,null,null,null,""]
[null,null,null,null,null,null,null,null,null,null,null,null,null,null,null,null,null,null,null,null,null,null,null,null,null,null,""]
[null,null,null,null,null,null,null,null,null,null,null,null,null,null,null,null,null,null,null,null,null,null,null,null,null,null,""]
[null,null,null,null,null,null,null,null,null,null,null,null,null,null,null,null,null,null,null,null,null,null,null,null,null,null,""]
[null,null,null,null,null,null,null,null,null,null,null,null,null,null,null,null,null,null,null,null,null,null,null,null,null,null,""]
[null,null,null,null,null,null,null,null,null,null,null,null,null,null,null,null,null,null,null,null,null,null,null,null,null,null,""]
[null,null,null,null,null,null,null,null,null,null,null,null,null,null,null,null,null,null,null,null,null,null,null,null,null,null,""]
[null,null,null,null,null,null,null,null,null,null,null,null,null,null,null,null,null,null,null,null,null,null,null,null,null,null,""]
[null,null,null,null,null,null,null,null,null,null,null,null,null,null,null,null,null,null,null,null,null,null,null,null,null,null,""]
[null,null,null,null,null,null,null,null,null,null,null,null,null,null,null,null,null,null,null,null,null,null,null,null,null,null,""]
[null,null,null,null,null,null,null,null,null,null,null,null,null,null,null,null,null,null,null,null,null,null,null,null,null,null,""]
[null,null,null,null,null,null,null,null,null,null,null,null,null,null,null,null,null,null,null,null,null,null,null,null,null,null,""]
[null,null,null,null,null,null,null,null,null,null,null,null,null,null,null,null,null,null,null,null,null,null,null,null,null,null,""]
[null,null,null,null,null,null,null,null,null,null,null,null,null,null,null,null,null,null,null,null,null,null,null,null,null,null,""]
[null,null,null,null,null,null,null,null,null,null,null,null,null,null,null,null,null,null,null,null,null,null,null,null,null,null,""]
[null,null,null,null,null,null,null,null,null,null,null,null,null,null,null,null,null,null,null,null,null,null,null,null,null,null,""]
[null,null,null,null,null,null,null,null,null,null,null,null,null,null,null,null,null,null,null,null,null,null,null,null,null,null,""]
[null,null,null,null,null,null,null,null,null,null,null,null,null,null,null,null,null,null,null,null,null,null,null,null,null,null,""]
[null,null,null,null,null,null,null,null,null,null,null,null,null,null,null,null,null,null,null,null,null,null,null,null,null,null,""]
[null,null,null,null,null,null,null,null,null,null,null,null,null,null,null,null,null,null,null,null,null,null,null,null,null,null,""]
[null,null,null,null,null,null,null,null,null,null,null,null,null,null,null,null,null,null,null,null,null,null,null,null,null,null,""]
[null,null,null,null,null,null,null,null,null,null,null,null,null,null,null,null,null,null,null,null,null,null,null,null,null,null,""]
[null,null,null,null,null,null,null,null,null,null,null,null,null,null,null,null,null,null,null,null,null,null,null,null,null,null,""]
[null,null,null,null,null,null,null,null,null,null,null,null,null,null,null,null,null,null,null,null,null,null,null,null,null,null,""]
[null,null,null,null,null,null,null,null,null,null,null,null,null,null,null,null,null,null,null,null,null,null,null,null,null,null,""]
[null,null,null,null,null,null,null,null,null,null,null,null,null,null,null,null,null,null,null,null,null,null,null,null,null,null,""]
[null,null,null,null,null,null,null,null,null,null,null,null,null,null,null,null,null,null,null,null,null,null,null,null,null,null,""]
[null,null,null,null,null,null,null,null,null,null,null,null,null,null,null,null,null,null,null,null,null,null,null,null,null,null,""]
[null,null,null,null,null,null,null,null,null,null,null,null,null,null,null,null,null,null,null,null,null,null,null,null,null,null,""]
[null,null,null,null,null,null,null,null,null,null,null,null,null,null,null,null,null,null,null,null,null,null,null,null,null,null,""]
[null,null,null,null,null,null,null,null,null,null,null,null,null,null,null,null,null,null,null,null,null,null,null,null,null,null,""]
[null,null,null,null,null,null,null,null,null,null,null,null,null,null,null,null,null,null,null,null,null,null,null,null,null,null,""]
[null,null,null,null,null,null,null,null,null,null,null,null,null,null,null,null,null,null,null,null,null,null,null,null,null,null,""]
[null,null,null,null,null,null,null,null,null,null,null,null,null,null,null,null,null,null,null,null,null,null,null,null,null,null,""]
[null,null,null,null,null,null,null,null,null,null,null,null,null,null,null,null,null,null,null,null,null,null,null,null,null,null,""]
[null,null,null,null,null,null,null,null,null,null,null,null,null,null,null,null,null,null,null,null,null,null,null,null,null,null,""]
[null,null,null,null,null,null,null,null,null,null,null,null,null,null,null,null,null,null,null,null,null,null,null,null,null,null,""]
[null,null,null,null,null,null,null,null,null,null,null,null,null,null,null,null,null,null,null,null,null,null,null,null,null,null,""]
[null,null,null,null,null,null,null,null,null,null,null,null,null,null,null,null,null,null,null,null,null,null,null,null,null,null,""]
[null,null,null,null,null,null,null,null,null,null,null,null,null,null,null,null,null,null,null,null,null,null,null,null,null,null,""]
[null,null,null,null,null,null,null,null,null,null,null,null,null,null,null,null,null,null,null,null,null,null,null,null,null,null,""]
[null,null,null,null,null,null,null,null,null,null,null,null,null,null,null,null,null,null,null,null,null,null,null,null,null,null,""]
[null,null,null,null,null,null,null,null,null,null,null,null,null,null,null,null,null,null,null,null,null,null,null,null,null,null,""]
[null,null,null,null,null,null,null,null,null,null,null,null,null,null,null,null,null,null,null,null,null,null,null,null,null,null,""]
[null,null,null,null,null,null,null,null,null,null,null,null,null,null,null,null,null,null,null,null,null,null,null,null,null,null,""]
[null,null,null,null,null,null,null,null,null,null,null,null,null,null,null,null,null,null,null,null,null,null,null,null,null,null,""]
[null,null,null,null,null,null,null,null,null,null,null,null,null,null,null,null,null,null,null,null,null,null,null,null,null,null,""]
[null,null,null,null,null,null,null,null,null,null,null,null,null,null,null,null,null,null,null,null,null,null,null,null,null,null,""]
[null,null,null,null,null,null,null,null,null,null,null,null,null,null,null,null,null,null,null,null,null,null,null,null,null,null,""]
[null,null,null,null,null,null,null,null,null,null,null,null,null,null,null,null,null,null,null,null,null,null,null,null,null,null,""]
[null,null,null,null,null,null,null,null,null,null,null,null,null,null,null,null,null,null,null,null,null,null,null,null,null,null,""]
[null,null,null,null,null,null,null,null,null,null,null,null,null,null,null,null,null,null,null,null,null,null,null,null,null,null,""]
[null,null,null,null,null,null,null,null,null,null,null,null,null,null,null,null,null,null,null,null,null,null,null,null,null,null,{"$f":"IF(B711=\"\",\"\",1)","v":""}]
[null,null,null,null,null,null,null,null,null,null,null,null,null,null,null,null,null,null,null,null,null,null,null,null,null,null,""]
[null,null,null,null,null,null,null,null,null,null,null,null,null,null,null,null,null,null,null,null,null,null,null,null,null,null,""]
[null,null,null,null,null,null,null,null,null,null,null,null,null,null,null,null,null,null,null,null,null,null,null,null,null,null,""]
[null,null,null,null,null,null,null,null,null,null,null,null,null,null,null,null,null,null,null,null,null,null,null,null,null,null,""]
[null,null,null,null,null,null,null,null,null,null,null,null,null,null,null,null,null,null,null,null,null,null,null,null,null,null,""]
[null,null,null,null,null,null,null,null,null,null,null,null,null,null,null,null,null,null,null,null,null,null,null,null,null,null,""]
[null,null,null,null,null,null,null,null,null,null,null,null,null,null,null,null,null,null,null,null,null,null,null,null,null,null,""]
[null,null,null,null,null,null,null,null,null,null,null,null,null,null,null,null,null,null,null,null,null,null,null,null,null,null,""]
[null,null,null,null,null,null,null,null,null,null,null,null,null,null,null,null,null,null,null,null,null,null,null,null,null,null,""]
[null,null,null,null,null,null,null,null,null,null,null,null,null,null,null,null,null,null,null,null,null,null,null,null,null,null,""]
[null,null,null,null,null,null,null,null,null,null,null,null,null,null,null,null,null,null,null,null,null,null,null,null,null,null,""]
[null,null,null,null,null,null,null,null,null,null,null,null,null,null,null,null,null,null,null,null,null,null,null,null,null,null,""]
[null,null,null,null,null,null,null,null,null,null,null,null,null,null,null,null,null,null,null,null,null,null,null,null,null,null,""]
[null,null,null,null,null,null,null,null,null,null,null,null,null,null,null,null,null,null,null,null,null,null,null,null,null,null,""]
[null,null,null,null,null,null,null,null,null,null,null,null,null,null,null,null,null,null,null,null,null,null,null,null,null,null,""]
[null,null,null,null,null,null,null,null,null,null,null,null,null,null,null,null,null,null,null,null,null,null,null,null,null,null,""]
[null,null,null,null,null,null,null,null,null,null,null,null,null,null,null,null,null,null,null,null,null,null,null,null,null,null,""]
[null,null,null,null,null,null,null,null,null,null,null,null,null,null,null,null,null,null,null,null,null,null,null,null,null,null,""]
[null,null,null,null,null,null,null,null,null,null,null,null,null,null,null,null,null,null,null,null,null,null,null,null,null,null,""]
[null,null,null,null,null,null,null,null,null,null,null,null,null,null,null,null,null,null,null,null,null,null,null,null,null,null,""]
[null,null,null,null,null,null,null,null,null,null,null,null,null,null,null,null,null,null,null,null,null,null,null,null,null,null,""]
[null,null,null,null,null,null,null,null,null,null,null,null,null,null,null,null,null,null,null,null,null,null,null,null,null,null,""]
[null,null,null,null,null,null,null,null,null,null,null,null,null,null,null,null,null,null,null,null,null,null,null,null,null,null,""]
[null,null,null,null,null,null,null,null,null,null,null,null,null,null,null,null,null,null,null,null,null,null,null,null,null,null,""]
[null,null,null,null,null,null,null,null,null,null,null,null,null,null,null,null,null,null,null,null,null,null,null,null,null,null,""]
[null,null,null,null,null,null,null,null,null,null,null,null,null,null,null,null,null,null,null,null,null,null,null,null,null,null,""]
[null,null,null,null,null,null,null,null,null,null,null,null,null,null,null,null,null,null,null,null,null,null,null,null,null,null,""]
[null,null,null,null,null,null,null,null,null,null,null,null,null,null,null,null,null,null,null,null,null,null,null,null,null,null,""]
[null,null,null,null,null,null,null,null,null,null,null,null,null,null,null,null,null,null,null,null,null,null,null,null,null,null,""]
[null,null,null,null,null,null,null,null,null,null,null,null,null,null,null,null,null,null,null,null,null,null,null,null,null,null,""]
[null,null,null,null,null,null,null,null,null,null,null,null,null,null,null,null,null,null,null,null,null,null,null,null,null,null,""]
[null,null,null,null,null,null,null,null,null,null,null,null,null,null,null,null,null,null,null,null,null,null,null,null,null,null,""]
[null,null,null,null,null,null,null,null,null,null,null,null,null,null,null,null,null,null,null,null,null,null,null,null,null,null,""]
[null,null,null,null,null,null,null,null,null,null,null,null,null,null,null,null,null,null,null,null,null,null,null,null,null,null,""]
[null,null,null,null,null,null,null,null,null,null,null,null,null,null,null,null,null,null,null,null,null,null,null,null,null,null,""]
[null,null,null,null,null,null,null,null,null,null,null,null,null,null,null,null,null,null,null,null,null,null,null,null,null,null,""]
[null,null,null,null,null,null,null,null,null,null,null,null,null,null,null,null,null,null,null,null,null,null,null,null,null,null,""]
[null,null,null,null,null,null,null,null,null,null,null,null,null,null,null,null,null,null,null,null,null,null,null,null,null,null,""]
[null,null,null,null,null,null,null,null,null,null,null,null,null,null,null,null,null,null,null,null,null,null,null,null,null,null,""]
[null,null,null,null,null,null,null,null,null,null,null,null,null,null,null,null,null,null,null,null,null,null,null,null,null,null,""]
[null,null,null,null,null,null,null,null,null,null,null,null,null,null,null,null,null,null,null,null,null,null,null,null,null,null,""]
[null,null,null,null,null,null,null,null,null,null,null,null,null,null,null,null,null,null,null,null,null,null,null,null,null,null,""]
[null,null,null,null,null,null,null,null,null,null,null,null,null,null,null,null,null,null,null,null,null,null,null,null,null,null,""]
[null,null,null,null,null,null,null,null,null,null,null,null,null,null,null,null,null,null,null,null,null,null,null,null,null,null,""]
[null,null,null,null,null,null,null,null,null,null,null,null,null,null,null,null,null,null,null,null,null,null,null,null,null,null,""]
[null,null,null,null,null,null,null,null,null,null,null,null,null,null,null,null,null,null,null,null,null,null,null,null,null,null,""]
[null,null,null,null,null,null,null,null,null,null,null,null,null,null,null,null,null,null,null,null,null,null,null,null,null,null,""]
[null,null,null,null,null,null,null,null,null,null,null,null,null,null,null,null,null,null,null,null,null,null,null,null,null,null,""]
[null,null,null,null,null,null,null,null,null,null,null,null,null,null,null,null,null,null,null,null,null,null,null,null,null,null,""]
[null,null,null,null,null,null,null,null,null,null,null,null,null,null,null,null,null,null,null,null,null,null,null,null,null,null,""]
[null,null,null,null,null,null,null,null,null,null,null,null,null,null,null,null,null,null,null,null,null,null,null,null,null,null,""]
[null,null,null,null,null,null,null,null,null,null,null,null,null,null,null,null,null,null,null,null,null,null,null,null,null,null,""]
[null,null,null,null,null,null,null,null,null,null,null,null,null,null,null,null,null,null,null,null,null,null,null,null,null,null,""]
[null,null,null,null,null,null,null,null,null,null,null,null,null,null,null,null,null,null,null,null,null,null,null,null,null,null,""]
[null,null,null,null,null,null,null,null,null,null,null,null,null,null,null,null,null,null,null,null,null,null,null,null,null,null,""]
[null,null,null,null,null,null,null,null,null,null,null,null,null,null,null,null,null,null,null,null,null,null,null,null,null,null,""]
[null,null,null,null,null,null,null,null,null,null,null,null,null,null,null,null,null,null,null,null,null,null,null,null,null,null,""]
[null,null,null,null,null,null,null,null,null,null,null,null,null,null,null,null,null,null,null,null,null,null,null,null,null,null,""]
[null,null,null,null,null,null,null,null,null,null,null,null,null,null,null,null,null,null,null,null,null,null,null,null,null,null,""]
[null,null,null,null,null,null,null,null,null,null,null,null,null,null,null,null,null,null,null,null,null,null,null,null,null,null,""]
[null,null,null,null,null,null,null,null,null,null,null,null,null,null,null,null,null,null,null,null,null,null,null,null,null,null,""]
[null,null,null,null,null,null,null,null,null,null,null,null,null,null,null,null,null,null,null,null,null,null,null,null,null,null,""]
[null,null,null,null,null,null,null,null,null,null,null,null,null,null,null,null,null,null,null,null,null,null,null,null,null,null,""]
[null,null,null,null,null,null,null,null,null,null,null,null,null,null,null,null,null,null,null,null,null,null,null,null,null,null,{"$f":"IF(B775=\"\",\"\",1)","v":""}]
[null,null,null,null,null,null,null,null,null,null,null,null,null,null,null,null,null,null,null,null,null,null,null,null,null,null,""]
[null,null,null,null,null,null,null,null,null,null,null,null,null,null,null,null,null,null,null,null,null,null,null,null,null,null,""]
[null,null,null,null,null,null,null,null,null,null,null,null,null,null,null,null,null,null,null,null,null,null,null,null,null,null,""]
[null,null,null,null,null,null,null,null,null,null,null,null,null,null,null,null,null,null,null,null,null,null,null,null,null,null,""]
[null,null,null,null,null,null,null,null,null,null,null,null,null,null,null,null,null,null,null,null,null,null,null,null,null,null,""]
[null,null,null,null,null,null,null,null,null,null,null,null,null,null,null,null,null,null,null,null,null,null,null,null,null,null,""]
[null,null,null,null,null,null,null,null,null,null,null,null,null,null,null,null,null,null,null,null,null,null,null,null,null,null,""]
[null,null,null,null,null,null,null,null,null,null,null,null,null,null,null,null,null,null,null,null,null,null,null,null,null,null,""]
[null,null,null,null,null,null,null,null,null,null,null,null,null,null,null,null,null,null,null,null,null,null,null,null,null,null,""]
[null,null,null,null,null,null,null,null,null,null,null,null,null,null,null,null,null,null,null,null,null,null,null,null,null,null,""]
[null,null,null,null,null,null,null,null,null,null,null,null,null,null,null,null,null,null,null,null,null,null,null,null,null,null,""]
[null,null,null,null,null,null,null,null,null,null,null,null,null,null,null,null,null,null,null,null,null,null,null,null,null,null,""]
[null,null,null,null,null,null,null,null,null,null,null,null,null,null,null,null,null,null,null,null,null,null,null,null,null,null,""]
[null,null,null,null,null,null,null,null,null,null,null,null,null,null,null,null,null,null,null,null,null,null,null,null,null,null,""]
[null,null,null,null,null,null,null,null,null,null,null,null,null,null,null,null,null,null,null,null,null,null,null,null,null,null,""]
[null,null,null,null,null,null,null,null,null,null,null,null,null,null,null,null,null,null,null,null,null,null,null,null,null,null,""]
[null,null,null,null,null,null,null,null,null,null,null,null,null,null,null,null,null,null,null,null,null,null,null,null,null,null,""]
[null,null,null,null,null,null,null,null,null,null,null,null,null,null,null,null,null,null,null,null,null,null,null,null,null,null,""]
[null,null,null,null,null,null,null,null,null,null,null,null,null,null,null,null,null,null,null,null,null,null,null,null,null,null,""]
[null,null,null,null,null,null,null,null,null,null,null,null,null,null,null,null,null,null,null,null,null,null,null,null,null,null,""]
[null,null,null,null,null,null,null,null,null,null,null,null,null,null,null,null,null,null,null,null,null,null,null,null,null,null,""]
[null,null,null,null,null,null,null,null,null,null,null,null,null,null,null,null,null,null,null,null,null,null,null,null,null,null,""]
[null,null,null,null,null,null,null,null,null,null,null,null,null,null,null,null,null,null,null,null,null,null,null,null,null,null,""]
[null,null,null,null,null,null,null,null,null,null,null,null,null,null,null,null,null,null,null,null,null,null,null,null,null,null,""]
[null,null,null,null,null,null,null,null,null,null,null,null,null,null,null,null,null,null,null,null,null,null,null,null,null,null,""]
[null,null,null,null,null,null,null,null,null,null,null,null,null,null,null,null,null,null,null,null,null,null,null,null,null,null,""]
[null,null,null,null,null,null,null,null,null,null,null,null,null,null,null,null,null,null,null,null,null,null,null,null,null,null,""]
[null,null,null,null,null,null,null,null,null,null,null,null,null,null,null,null,null,null,null,null,null,null,null,null,null,null,""]
[null,null,null,null,null,null,null,null,null,null,null,null,null,null,null,null,null,null,null,null,null,null,null,null,null,null,""]
[null,null,null,null,null,null,null,null,null,null,null,null,null,null,null,null,null,null,null,null,null,null,null,null,null,null,""]
[null,null,null,null,null,null,null,null,null,null,null,null,null,null,null,null,null,null,null,null,null,null,null,null,null,null,""]
[null,null,null,null,null,null,null,null,null,null,null,null,null,null,null,null,null,null,null,null,null,null,null,null,null,null,""]
[null,null,null,null,null,null,null,null,null,null,null,null,null,null,null,null,null,null,null,null,null,null,null,null,null,null,""]
[null,null,null,null,null,null,null,null,null,null,null,null,null,null,null,null,null,null,null,null,null,null,null,null,null,null,""]
[null,null,null,null,null,null,null,null,null,null,null,null,null,null,null,null,null,null,null,null,null,null,null,null,null,null,""]
[null,null,null,null,null,null,null,null,null,null,null,null,null,null,null,null,null,null,null,null,null,null,null,null,null,null,""]
[null,null,null,null,null,null,null,null,null,null,null,null,null,null,null,null,null,null,null,null,null,null,null,null,null,null,""]
[null,null,null,null,null,null,null,null,null,null,null,null,null,null,null,null,null,null,null,null,null,null,null,null,null,null,""]
[null,null,null,null,null,null,null,null,null,null,null,null,null,null,null,null,null,null,null,null,null,null,null,null,null,null,""]
[null,null,null,null,null,null,null,null,null,null,null,null,null,null,null,null,null,null,null,null,null,null,null,null,null,null,""]
[null,null,null,null,null,null,null,null,null,null,null,null,null,null,null,null,null,null,null,null,null,null,null,null,null,null,""]
[null,null,null,null,null,null,null,null,null,null,null,null,null,null,null,null,null,null,null,null,null,null,null,null,null,null,""]
[null,null,null,null,null,null,null,null,null,null,null,null,null,null,null,null,null,null,null,null,null,null,null,null,null,null,""]
[null,null,null,null,null,null,null,null,null,null,null,null,null,null,null,null,null,null,null,null,null,null,null,null,null,null,""]
[null,null,null,null,null,null,null,null,null,null,null,null,null,null,null,null,null,null,null,null,null,null,null,null,null,null,""]
[null,null,null,null,null,null,null,null,null,null,null,null,null,null,null,null,null,null,null,null,null,null,null,null,null,null,""]
[null,null,null,null,null,null,null,null,null,null,null,null,null,null,null,null,null,null,null,null,null,null,null,null,null,null,""]
[null,null,null,null,null,null,null,null,null,null,null,null,null,null,null,null,null,null,null,null,null,null,null,null,null,null,""]
[null,null,null,null,null,null,null,null,null,null,null,null,null,null,null,null,null,null,null,null,null,null,null,null,null,null,""]
[null,null,null,null,null,null,null,null,null,null,null,null,null,null,null,null,null,null,null,null,null,null,null,null,null,null,""]
[null,null,null,null,null,null,null,null,null,null,null,null,null,null,null,null,null,null,null,null,null,null,null,null,null,null,""]
[null,null,null,null,null,null,null,null,null,null,null,null,null,null,null,null,null,null,null,null,null,null,null,null,null,null,""]
[null,null,null,null,null,null,null,null,null,null,null,null,null,null,null,null,null,null,null,null,null,null,null,null,null,null,""]
[null,null,null,null,null,null,null,null,null,null,null,null,null,null,null,null,null,null,null,null,null,null,null,null,null,null,""]
[null,null,null,null,null,null,null,null,null,null,null,null,null,null,null,null,null,null,null,null,null,null,null,null,null,null,""]
[null,null,null,null,null,null,null,null,null,null,null,null,null,null,null,null,null,null,null,null,null,null,null,null,null,null,""]
[null,null,null,null,null,null,null,null,null,null,null,null,null,null,null,null,null,null,null,null,null,null,null,null,null,null,""]
[null,null,null,null,null,null,null,null,null,null,null,null,null,null,null,null,null,null,null,null,null,null,null,null,null,null,""]
[null,null,null,null,null,null,null,null,null,null,null,null,null,null,null,null,null,null,null,null,null,null,null,null,null,null,""]
[null,null,null,null,null,null,null,null,null,null,null,null,null,null,null,null,null,null,null,null,null,null,null,null,null,null,""]
[null,null,null,null,null,null,null,null,null,null,null,null,null,null,null,null,null,null,null,null,null,null,null,null,null,null,""]
[null,null,null,null,null,null,null,null,null,null,null,null,null,null,null,null,null,null,null,null,null,null,null,null,null,null,""]
[null,null,null,null,null,null,null,null,null,null,null,null,null,null,null,null,null,null,null,null,null,null,null,null,null,null,""]
[null,null,null,null,null,null,null,null,null,null,null,null,null,null,null,null,null,null,null,null,null,null,null,null,null,null,{"$f":"IF(B839=\"\",\"\",1)","v":""}]
[null,null,null,null,null,null,null,null,null,null,null,null,null,null,null,null,null,null,null,null,null,null,null,null,null,null,""]
[null,null,null,null,null,null,null,null,null,null,null,null,null,null,null,null,null,null,null,null,null,null,null,null,null,null,""]
[null,null,null,null,null,null,null,null,null,null,null,null,null,null,null,null,null,null,null,null,null,null,null,null,null,null,""]
[null,null,null,null,null,null,null,null,null,null,null,null,null,null,null,null,null,null,null,null,null,null,null,null,null,null,""]
[null,null,null,null,null,null,null,null,null,null,null,null,null,null,null,null,null,null,null,null,null,null,null,null,null,null,""]
[null,null,null,null,null,null,null,null,null,null,null,null,null,null,null,null,null,null,null,null,null,null,null,null,null,null,""]
[null,null,null,null,null,null,null,null,null,null,null,null,null,null,null,null,null,null,null,null,null,null,null,null,null,null,""]
[null,null,null,null,null,null,null,null,null,null,null,null,null,null,null,null,null,null,null,null,null,null,null,null,null,null,""]
[null,null,null,null,null,null,null,null,null,null,null,null,null,null,null,null,null,null,null,null,null,null,null,null,null,null,""]
[null,null,null,null,null,null,null,null,null,null,null,null,null,null,null,null,null,null,null,null,null,null,null,null,null,null,""]
[null,null,null,null,null,null,null,null,null,null,null,null,null,null,null,null,null,null,null,null,null,null,null,null,null,null,""]
[null,null,null,null,null,null,null,null,null,null,null,null,null,null,null,null,null,null,null,null,null,null,null,null,null,null,""]
[null,null,null,null,null,null,null,null,null,null,null,null,null,null,null,null,null,null,null,null,null,null,null,null,null,null,""]
[null,null,null,null,null,null,null,null,null,null,null,null,null,null,null,null,null,null,null,null,null,null,null,null,null,null,""]
[null,null,null,null,null,null,null,null,null,null,null,null,null,null,null,null,null,null,null,null,null,null,null,null,null,null,""]
[null,null,null,null,null,null,null,null,null,null,null,null,null,null,null,null,null,null,null,null,null,null,null,null,null,null,""]
[null,null,null,null,null,null,null,null,null,null,null,null,null,null,null,null,null,null,null,null,null,null,null,null,null,null,""]
[null,null,null,null,null,null,null,null,null,null,null,null,null,null,null,null,null,null,null,null,null,null,null,null,null,null,""]
[null,null,null,null,null,null,null,null,null,null,null,null,null,null,null,null,null,null,null,null,null,null,null,null,null,null,""]
[null,null,null,null,null,null,null,null,null,null,null,null,null,null,null,null,null,null,null,null,null,null,null,null,null,null,""]
[null,null,null,null,null,null,null,null,null,null,null,null,null,null,null,null,null,null,null,null,null,null,null,null,null,null,""]
[null,null,null,null,null,null,null,null,null,null,null,null,null,null,null,null,null,null,null,null,null,null,null,null,null,null,""]
[null,null,null,null,null,null,null,null,null,null,null,null,null,null,null,null,null,null,null,null,null,null,null,null,null,null,""]
[null,null,null,null,null,null,null,null,null,null,null,null,null,null,null,null,null,null,null,null,null,null,null,null,null,null,""]
[null,null,null,null,null,null,null,null,null,null,null,null,null,null,null,null,null,null,null,null,null,null,null,null,null,null,""]
[null,null,null,null,null,null,null,null,null,null,null,null,null,null,null,null,null,null,null,null,null,null,null,null,null,null,""]
[null,null,null,null,null,null,null,null,null,null,null,null,null,null,null,null,null,null,null,null,null,null,null,null,null,null,""]
[null,null,null,null,null,null,null,null,null,null,null,null,null,null,null,null,null,null,null,null,null,null,null,null,null,null,""]
[null,null,null,null,null,null,null,null,null,null,null,null,null,null,null,null,null,null,null,null,null,null,null,null,null,null,""]
[null,null,null,null,null,null,null,null,null,null,null,null,null,null,null,null,null,null,null,null,null,null,null,null,null,null,""]
[null,null,null,null,null,null,null,null,null,null,null,null,null,null,null,null,null,null,null,null,null,null,null,null,null,null,""]
[null,null,null,null,null,null,null,null,null,null,null,null,null,null,null,null,null,null,null,null,null,null,null,null,null,null,""]
[null,null,null,null,null,null,null,null,null,null,null,null,null,null,null,null,null,null,null,null,null,null,null,null,null,null,""]
[null,null,null,null,null,null,null,null,null,null,null,null,null,null,null,null,null,null,null,null,null,null,null,null,null,null,""]
[null,null,null,null,null,null,null,null,null,null,null,null,null,null,null,null,null,null,null,null,null,null,null,null,null,null,""]
[null,null,null,null,null,null,null,null,null,null,null,null,null,null,null,null,null,null,null,null,null,null,null,null,null,null,""]
[null,null,null,null,null,null,null,null,null,null,null,null,null,null,null,null,null,null,null,null,null,null,null,null,null,null,""]
[null,null,null,null,null,null,null,null,null,null,null,null,null,null,null,null,null,null,null,null,null,null,null,null,null,null,""]
[null,null,null,null,null,null,null,null,null,null,null,null,null,null,null,null,null,null,null,null,null,null,null,null,null,null,""]
[null,null,null,null,null,null,null,null,null,null,null,null,null,null,null,null,null,null,null,null,null,null,null,null,null,null,""]
[null,null,null,null,null,null,null,null,null,null,null,null,null,null,null,null,null,null,null,null,null,null,null,null,null,null,""]
[null,null,null,null,null,null,null,null,null,null,null,null,null,null,null,null,null,null,null,null,null,null,null,null,null,null,""]
[null,null,null,null,null,null,null,null,null,null,null,null,null,null,null,null,null,null,null,null,null,null,null,null,null,null,""]
[null,null,null,null,null,null,null,null,null,null,null,null,null,null,null,null,null,null,null,null,null,null,null,null,null,null,""]
[null,null,null,null,null,null,null,null,null,null,null,null,null,null,null,null,null,null,null,null,null,null,null,null,null,null,""]
[null,null,null,null,null,null,null,null,null,null,null,null,null,null,null,null,null,null,null,null,null,null,null,null,null,null,""]
[null,null,null,null,null,null,null,null,null,null,null,null,null,null,null,null,null,null,null,null,null,null,null,null,null,null,""]
[null,null,null,null,null,null,null,null,null,null,null,null,null,null,null,null,null,null,null,null,null,null,null,null,null,null,""]
[null,null,null,null,null,null,null,null,null,null,null,null,null,null,null,null,null,null,null,null,null,null,null,null,null,null,""]
[null,null,null,null,null,null,null,null,null,null,null,null,null,null,null,null,null,null,null,null,null,null,null,null,null,null,""]
[null,null,null,null,null,null,null,null,null,null,null,null,null,null,null,null,null,null,null,null,null,null,null,null,null,null,""]
[null,null,null,null,null,null,null,null,null,null,null,null,null,null,null,null,null,null,null,null,null,null,null,null,null,null,""]
[null,null,null,null,null,null,null,null,null,null,null,null,null,null,null,null,null,null,null,null,null,null,null,null,null,null,""]
[null,null,null,null,null,null,null,null,null,null,null,null,null,null,null,null,null,null,null,null,null,null,null,null,null,null,""]
[null,null,null,null,null,null,null,null,null,null,null,null,null,null,null,null,null,null,null,null,null,null,null,null,null,null,""]
[null,null,null,null,null,null,null,null,null,null,null,null,null,null,null,null,null,null,null,null,null,null,null,null,null,null,""]
[null,null,null,null,null,null,null,null,null,null,null,null,null,null,null,null,null,null,null,null,null,null,null,null,null,null,""]
[null,null,null,null,null,null,null,null,null,null,null,null,null,null,null,null,null,null,null,null,null,null,null,null,null,null,""]
[null,null,null,null,null,null,null,null,null,null,null,null,null,null,null,null,null,null,null,null,null,null,null,null,null,null,""]
[null,null,null,null,null,null,null,null,null,null,null,null,null,null,null,null,null,null,null,null,null,null,null,null,null,null,""]
[null,null,null,null,null,null,null,null,null,null,null,null,null,null,null,null,null,null,null,null,null,null,null,null,null,null,""]
[null,null,null,null,null,null,null,null,null,null,null,null,null,null,null,null,null,null,null,null,null,null,null,null,null,null,""]
[null,null,null,null,null,null,null,null,null,null,null,null,null,null,null,null,null,null,null,null,null,null,null,null,null,null,""]
[null,null,null,null,null,null,null,null,null,null,null,null,null,null,null,null,null,null,null,null,null,null,null,null,null,null,{"$f":"IF(B903=\"\",\"\",1)","v":""}]
[null,null,null,null,null,null,null,null,null,null,null,null,null,null,null,null,null,null,null,null,null,null,null,null,null,null,""]
[null,null,null,null,null,null,null,null,null,null,null,null,null,null,null,null,null,null,null,null,null,null,null,null,null,null,""]
[null,null,null,null,null,null,null,null,null,null,null,null,null,null,null,null,null,null,null,null,null,null,null,null,null,null,""]
[null,null,null,null,null,null,null,null,null,null,null,null,null,null,null,null,null,null,null,null,null,null,null,null,null,null,""]
[null,null,null,null,null,null,null,null,null,null,null,null,null,null,null,null,null,null,null,null,null,null,null,null,null,null,""]
[null,null,null,null,null,null,null,null,null,null,null,null,null,null,null,null,null,null,null,null,null,null,null,null,null,null,""]
[null,null,null,null,null,null,null,null,null,null,null,null,null,null,null,null,null,null,null,null,null,null,null,null,null,null,""]
[null,null,null,null,null,null,null,null,null,null,null,null,null,null,null,null,null,null,null,null,null,null,null,null,null,null,""]
[null,null,null,null,null,null,null,null,null,null,null,null,null,null,null,null,null,null,null,null,null,null,null,null,null,null,""]
[null,null,null,null,null,null,null,null,null,null,null,null,null,null,null,null,null,null,null,null,null,null,null,null,null,null,""]
[null,null,null,null,null,null,null,null,null,null,null,null,null,null,null,null,null,null,null,null,null,null,null,null,null,null,""]
[null,null,null,null,null,null,null,null,null,null,null,null,null,null,null,null,null,null,null,null,null,null,null,null,null,null,""]
[null,null,null,null,null,null,null,null,null,null,null,null,null,null,null,null,null,null,null,null,null,null,null,null,null,null,""]
[null,null,null,null,null,null,null,null,null,null,null,null,null,null,null,null,null,null,null,null,null,null,null,null,null,null,""]
[null,null,null,null,null,null,null,null,null,null,null,null,null,null,null,null,null,null,null,null,null,null,null,null,null,null,""]
[null,null,null,null,null,null,null,null,null,null,null,null,null,null,null,null,null,null,null,null,null,null,null,null,null,null,""]
[null,null,null,null,null,null,null,null,null,null,null,null,null,null,null,null,null,null,null,null,null,null,null,null,null,null,""]
[null,null,null,null,null,null,null,null,null,null,null,null,null,null,null,null,null,null,null,null,null,null,null,null,null,null,""]
[null,null,null,null,null,null,null,null,null,null,null,null,null,null,null,null,null,null,null,null,null,null,null,null,null,null,""]
[null,null,null,null,null,null,null,null,null,null,null,null,null,null,null,null,null,null,null,null,null,null,null,null,null,null,""]
[null,null,null,null,null,null,null,null,null,null,null,null,null,null,null,null,null,null,null,null,null,null,null,null,null,null,""]
[null,null,null,null,null,null,null,null,null,null,null,null,null,null,null,null,null,null,null,null,null,null,null,null,null,null,""]
[null,null,null,null,null,null,null,null,null,null,null,null,null,null,null,null,null,null,null,null,null,null,null,null,null,null,""]
[null,null,null,null,null,null,null,null,null,null,null,null,null,null,null,null,null,null,null,null,null,null,null,null,null,null,""]
[null,null,null,null,null,null,null,null,null,null,null,null,null,null,null,null,null,null,null,null,null,null,null,null,null,null,""]
[null,null,null,null,null,null,null,null,null,null,null,null,null,null,null,null,null,null,null,null,null,null,null,null,null,null,""]
[null,null,null,null,null,null,null,null,null,null,null,null,null,null,null,null,null,null,null,null,null,null,null,null,null,null,""]
[null,null,null,null,null,null,null,null,null,null,null,null,null,null,null,null,null,null,null,null,null,null,null,null,null,null,""]
[null,null,null,null,null,null,null,null,null,null,null,null,null,null,null,null,null,null,null,null,null,null,null,null,null,null,""]
[null,null,null,null,null,null,null,null,null,null,null,null,null,null,null,null,null,null,null,null,null,null,null,null,null,null,""]
[null,null,null,null,null,null,null,null,null,null,null,null,null,null,null,null,null,null,null,null,null,null,null,null,null,null,""]
[null,null,null,null,null,null,null,null,null,null,null,null,null,null,null,null,null,null,null,null,null,null,null,null,null,null,""]
[null,null,null,null,null,null,null,null,null,null,null,null,null,null,null,null,null,null,null,null,null,null,null,null,null,null,""]
[null,null,null,null,null,null,null,null,null,null,null,null,null,null,null,null,null,null,null,null,null,null,null,null,null,null,""]
[null,null,null,null,null,null,null,null,null,null,null,null,null,null,null,null,null,null,null,null,null,null,null,null,null,null,""]
[null,null,null,null,null,null,null,null,null,null,null,null,null,null,null,null,null,null,null,null,null,null,null,null,null,null,""]
[null,null,null,null,null,null,null,null,null,null,null,null,null,null,null,null,null,null,null,null,null,null,null,null,null,null,""]
[null,null,null,null,null,null,null,null,null,null,null,null,null,null,null,null,null,null,null,null,null,null,null,null,null,null,""]
[null,null,null,null,null,null,null,null,null,null,null,null,null,null,null,null,null,null,null,null,null,null,null,null,null,null,""]
[null,null,null,null,null,null,null,null,null,null,null,null,null,null,null,null,null,null,null,null,null,null,null,null,null,null,""]
[null,null,null,null,null,null,null,null,null,null,null,null,null,null,null,null,null,null,null,null,null,null,null,null,null,null,""]
[null,null,null,null,null,null,null,null,null,null,null,null,null,null,null,null,null,null,null,null,null,null,null,null,null,null,""]
[null,null,null,null,null,null,null,null,null,null,null,null,null,null,null,null,null,null,null,null,null,null,null,null,null,null,""]
[null,null,null,null,null,null,null,null,null,null,null,null,null,null,null,null,null,null,null,null,null,null,null,null,null,null,""]
[null,null,null,null,null,null,null,null,null,null,null,null,null,null,null,null,null,null,null,null,null,null,null,null,null,null,""]
[null,null,null,null,null,null,null,null,null,null,null,null,null,null,null,null,null,null,null,null,null,null,null,null,null,null,""]
[null,null,null,null,null,null,null,null,null,null,null,null,null,null,null,null,null,null,null,null,null,null,null,null,null,null,""]
[null,null,null,null,null,null,null,null,null,null,null,null,null,null,null,null,null,null,null,null,null,null,null,null,null,null,""]
[null,null,null,null,null,null,null,null,null,null,null,null,null,null,null,null,null,null,null,null,null,null,null,null,null,null,""]
[null,null,null,null,null,null,null,null,null,null,null,null,null,null,null,null,null,null,null,null,null,null,null,null,null,null,""]
[null,null,null,null,null,null,null,null,null,null,null,null,null,null,null,null,null,null,null,null,null,null,null,null,null,null,""]
[null,null,null,null,null,null,null,null,null,null,null,null,null,null,null,null,null,null,null,null,null,null,null,null,null,null,""]
[null,null,null,null,null,null,null,null,null,null,null,null,null,null,null,null,null,null,null,null,null,null,null,null,null,null,""]
[null,null,null,null,null,null,null,null,null,null,null,null,null,null,null,null,null,null,null,null,null,null,null,null,null,null,""]
[null,null,null,null,null,null,null,null,null,null,null,null,null,null,null,null,null,null,null,null,null,null,null,null,null,null,""]
[null,null,null,null,null,null,null,null,null,null,null,null,null,null,null,null,null,null,null,null,null,null,null,null,null,null,""]
[null,null,null,null,null,null,null,null,null,null,null,null,null,null,null,null,null,null,null,null,null,null,null,null,null,null,""]
[null,null,null,null,null,null,null,null,null,null,null,null,null,null,null,null,null,null,null,null,null,null,null,null,null,null,""]
[null,null,null,null,null,null,null,null,null,null,null,null,null,null,null,null,null,null,null,null,null,null,null,null,null,null,""]
[null,null,null,null,null,null,null,null,null,null,null,null,null,null,null,null,null,null,null,null,null,null,null,null,null,null,""]
[null,null,null,null,null,null,null,null,null,null,null,null,null,null,null,null,null,null,null,null,null,null,null,null,null,null,""]
[null,null,null,null,null,null,null,null,null,null,null,null,null,null,null,null,null,null,null,null,null,null,null,null,null,null,""]
[null,null,null,null,null,null,null,null,null,null,null,null,null,null,null,null,null,null,null,null,null,null,null,null,null,null,""]
[null,null,null,null,null,null,null,null,null,null,null,null,null,null,null,null,null,null,null,null,null,null,null,null,null,null,{"$f":"IF(B967=\"\",\"\",1)","v":""}]
[null,null,null,null,null,null,null,null,null,null,null,null,null,null,null,null,null,null,null,null,null,null,null,null,null,null,""]
[null,null,null,null,null,null,null,null,null,null,null,null,null,null,null,null,null,null,null,null,null,null,null,null,null,null,""]
[null,null,null,null,null,null,null,null,null,null,null,null,null,null,null,null,null,null,null,null,null,null,null,null,null,null,""]
[null,null,null,null,null,null,null,null,null,null,null,null,null,null,null,null,null,null,null,null,null,null,null,null,null,null,""]
[null,null,null,null,null,null,null,null,null,null,null,null,null,null,null,null,null,null,null,null,null,null,null,null,null,null,""]
[null,null,null,null,null,null,null,null,null,null,null,null,null,null,null,null,null,null,null,null,null,null,null,null,null,null,""]
[null,null,null,null,null,null,null,null,null,null,null,null,null,null,null,null,null,null,null,null,null,null,null,null,null,null,""]
[null,null,null,null,null,null,null,null,null,null,null,null,null,null,null,null,null,null,null,null,null,null,null,null,null,null,""]
[null,null,null,null,null,null,null,null,null,null,null,null,null,null,null,null,null,null,null,null,null,null,null,null,null,null,""]
[null,null,null,null,null,null,null,null,null,null,null,null,null,null,null,null,null,null,null,null,null,null,null,null,null,null,""]
[null,null,null,null,null,null,null,null,null,null,null,null,null,null,null,null,null,null,null,null,null,null,null,null,null,null,""]
[null,null,null,null,null,null,null,null,null,null,null,null,null,null,null,null,null,null,null,null,null,null,null,null,null,null,""]
[null,null,null,null,null,null,null,null,null,null,null,null,null,null,null,null,null,null,null,null,null,null,null,null,null,null,""]
[null,null,null,null,null,null,null,null,null,null,null,null,null,null,null,null,null,null,null,null,null,null,null,null,null,null,""]
[null,null,null,null,null,null,null,null,null,null,null,null,null,null,null,null,null,null,null,null,null,null,null,null,null,null,""]
[null,null,null,null,null,null,null,null,null,null,null,null,null,null,null,null,null,null,null,null,null,null,null,null,null,null,""]
[null,null,null,null,null,null,null,null,null,null,null,null,null,null,null,null,null,null,null,null,null,null,null,null,null,null,""]
[null,null,null,null,null,null,null,null,null,null,null,null,null,null,null,null,null,null,null,null,null,null,null,null,null,null,""]
[null,null,null,null,null,null,null,null,null,null,null,null,null,null,null,null,null,null,null,null,null,null,null,null,null,null,""]
[null,null,null,null,null,null,null,null,null,null,null,null,null,null,null,null,null,null,null,null,null,null,null,null,null,null,""]
[null,null,null,null,null,null,null,null,null,null,null,null,null,null,null,null,null,null,null,null,null,null,null,null,null,null,""]
[null,null,null,null,null,null,null,null,null,null,null,null,null,null,null,null,null,null,null,null,null,null,null,null,null,null,""]
[null,null,null,null,null,null,null,null,null,null,null,null,null,null,null,null,null,null,null,null,null,null,null,null,null,null,""]
[null,null,null,null,null,null,null,null,null,null,null,null,null,null,null,null,null,null,null,null,null,null,null,null,null,null,""]
[null,null,null,null,null,null,null,null,null,null,null,null,null,null,null,null,null,null,null,null,null,null,null,null,null,null,""]
[null,null,null,null,null,null,null,null,null,null,null,null,null,null,null,null,null,null,null,null,null,null,null,null,null,null,""]
[null,null,null,null,null,null,null,null,null,null,null,null,null,null,null,null,null,null,null,null,null,null,null,null,null,null,""]
[null,null,null,null,null,null,null,null,null,null,null,null,null,null,null,null,null,null,null,null,null,null,null,null,null,null,""]
[null,null,null,null,null,null,null,null,null,null,null,null,null,null,null,null,null,null,null,null,null,null,null,null,null,null,""]
[null,null,null,null,null,null,null,null,null,null,null,null,null,null,null,null,null,null,null,null,null,null,null,null,null,null,""]
[null,null,null,null,null,null,null,null,null,null,null,null,null,null,null,null,null,null,null,null,null,null,null,null,null,null,""]
[null,null,null,null,null,null,null,null,null,null,null,null,null,null,null,null,null,null,null,null,null,null,null,null,null,null,""]
[null,null,null,null,null,null,null,null,null,null,null,null,null,null,null,null,null,null,null,null,null,null,null,null,null,null,""]
[null,null,null,null,null,null,null,null,null,null,null,null,null,null,null,null,null,null,null,null,null,null,null,null,null,null,""]
[null,null,null,null,null,null,null,null,null,null,null,null,null,null,null,null,null,null,null,null,null,null,null,null,null,null,""]
[null,null,null,null,null,null,null,null,null,null,null,null,null,null,null,null,null,null,null,null,null,null,null,null,null,null,""]
[null,null,null,null,null,null,null,null,null,null,null,null,null,null,null,null,null,null,null,null,null,null,null,null,null,null,""]
[null,null,null,null,null,null,null,null,null,null,null,null,null,null,null,null,null,null,null,null,null,null,null,null,null,null,""]
[null,null,null,null,null,null,null,null,null,null,null,null,null,null,null,null,null,null,null,null,null,null,null,null,null,null,""]
[null,null,null,null,null,null,null,null,null,null,null,null,null,null,null,null,null,null,null,null,null,null,null,null,null,null,""]
[null,null,null,null,null,null,null,null,null,null,null,null,null,null,null,null,null,null,null,null,null,null,null,null,null,null,""]
[null,null,null,null,null,null,null,null,null,null,null,null,null,null,null,null,null,null,null,null,null,null,null,null,null,null,""]
[null,null,null,null,null,null,null,null,null,null,null,null,null,null,null,null,null,null,null,null,null,null,null,null,null,null,""]
[null,null,null,null,null,null,null,null,null,null,null,null,null,null,null,null,null,null,null,null,null,null,null,null,null,null,""]
[null,null,null,null,null,null,null,null,null,null,null,null,null,null,null,null,null,null,null,null,null,null,null,null,null,null,""]
[null,null,null,null,null,null,null,null,null,null,null,null,null,null,null,null,null,null,null,null,null,null,null,null,null,null,""]
[null,null,null,null,null,null,null,null,null,null,null,null,null,null,null,null,null,null,null,null,null,null,null,null,null,null,""]
[null,null,null,null,null,null,null,null,null,null,null,null,null,null,null,null,null,null,null,null,null,null,null,null,null,null,""]
[null,null,null,null,null,null,null,null,null,null,null,null,null,null,null,null,null,null,null,null,null,null,null,null,null,null,""]
[null,null,null,null,null,null,null,null,null,null,null,null,null,null,null,null,null,null,null,null,null,null,null,null,null,null,""]
[null,null,null,null,null,null,null,null,null,null,null,null,null,null,null,null,null,null,null,null,null,null,null,null,null,null,""]
[null,null,null,null,null,null,null,null,null,null,null,null,null,null,null,null,null,null,null,null,null,null,null,null,null,null,""]
[null,null,null,null,null,null,null,null,null,null,null,null,null,null,null,null,null,null,null,null,null,null,null,null,null,null,""]
[null,null,null,null,null,null,null,null,null,null,null,null,null,null,null,null,null,null,null,null,null,null,null,null,null,null,""]
[null,null,null,null,null,null,null,null,null,null,null,null,null,null,null,null,null,null,null,null,null,null,null,null,null,null,""]
[null,null,null,null,null,null,null,null,null,null,null,null,null,null,null,null,null,null,null,null,null,null,null,null,null,null,""]
[null,null,null,null,null,null,null,null,null,null,null,null,null,null,null,null,null,null,null,null,null,null,null,null,null,null,""]
[null,null,null,null,null,null,null,null,null,null,null,null,null,null,null,null,null,null,null,null,null,null,null,null,null,null,""]
[null,null,null,null,null,null,null,null,null,null,null,null,null,null,null,null,null,null,null,null,null,null,null,null,null,null,""]
[null,null,null,null,null,null,null,null,null,null,null,null,null,null,null,null,null,null,null,null,null,null,null,null,null,null,""]
[null,null,null,null,null,null,null,null,null,null,null,null,null,null,null,null,null,null,null,null,null,null,null,null,null,null,""]
[null,null,null,null,null,null,null,null,null,null,null,null,null,null,null,null,null,null,null,null,null,null,null,null,null,null,""]
[null,null,null,null,null,null,null,null,null,null,null,null,null,null,null,null,null,null,null,null,null,null,null,null,null,null,""]
[null,null,null,null,null,null,null,null,null,null,null,null,null,null,null,null,null,null,null,null,null,null,null,null,null,null,{"$f":"IF(B1031=\"\",\"\",1)","v":""}]
[null,null,null,null,null,null,null,null,null,null,null,null,null,null,null,null,null,null,null,null,null,null,null,null,null,null,""]
[null,null,null,null,null,null,null,null,null,null,null,null,null,null,null,null,null,null,null,null,null,null,null,null,null,null,""]
[null,null,null,null,null,null,null,null,null,null,null,null,null,null,null,null,null,null,null,null,null,null,null,null,null,null,""]
[null,null,null,null,null,null,null,null,null,null,null,null,null,null,null,null,null,null,null,null,null,null,null,null,null,null,""]
[null,null,null,null,null,null,null,null,null,null,null,null,null,null,null,null,null,null,null,null,null,null,null,null,null,null,""]
[null,null,null,null,null,null,null,null,null,null,null,null,null,null,null,null,null,null,null,null,null,null,null,null,null,null,""]
[null,null,null,null,null,null,null,null,null,null,null,null,null,null,null,null,null,null,null,null,null,null,null,null,null,null,""]
[null,null,null,null,null,null,null,null,null,null,null,null,null,null,null,null,null,null,null,null,null,null,null,null,null,null,""]
[null,null,null,null,null,null,null,null,null,null,null,null,null,null,null,null,null,null,null,null,null,null,null,null,null,null,""]
[null,null,null,null,null,null,null,null,null,null,null,null,null,null,null,null,null,null,null,null,null,null,null,null,null,null,""]
[null,null,null,null,null,null,null,null,null,null,null,null,null,null,null,null,null,null,null,null,null,null,null,null,null,null,""]
[null,null,null,null,null,null,null,null,null,null,null,null,null,null,null,null,null,null,null,null,null,null,null,null,null,null,""]
[null,null,null,null,null,null,null,null,null,null,null,null,null,null,null,null,null,null,null,null,null,null,null,null,null,null,""]
[null,null,null,null,null,null,null,null,null,null,null,null,null,null,null,null,null,null,null,null,null,null,null,null,null,null,""]
[null,null,null,null,null,null,null,null,null,null,null,null,null,null,null,null,null,null,null,null,null,null,null,null,null,null,""]
[null,null,null,null,null,null,null,null,null,null,null,null,null,null,null,null,null,null,null,null,null,null,null,null,null,null,""]
[null,null,null,null,null,null,null,null,null,null,null,null,null,null,null,null,null,null,null,null,null,null,null,null,null,null,""]
[null,null,null,null,null,null,null,null,null,null,null,null,null,null,null,null,null,null,null,null,null,null,null,null,null,null,""]
[null,null,null,null,null,null,null,null,null,null,null,null,null,null,null,null,null,null,null,null,null,null,null,null,null,null,""]
[null,null,null,null,null,null,null,null,null,null,null,null,null,null,null,null,null,null,null,null,null,null,null,null,null,null,""]
[null,null,null,null,null,null,null,null,null,null,null,null,null,null,null,null,null,null,null,null,null,null,null,null,null,null,""]
[null,null,null,null,null,null,null,null,null,null,null,null,null,null,null,null,null,null,null,null,null,null,null,null,null,null,""]
[null,null,null,null,null,null,null,null,null,null,null,null,null,null,null,null,null,null,null,null,null,null,null,null,null,null,""]
[null,null,null,null,null,null,null,null,null,null,null,null,null,null,null,null,null,null,null,null,null,null,null,null,null,null,""]
[null,null,null,null,null,null,null,null,null,null,null,null,null,null,null,null,null,null,null,null,null,null,null,null,null,null,""]
[null,null,null,null,null,null,null,null,null,null,null,null,null,null,null,null,null,null,null,null,null,null,null,null,null,null,""]
[null,null,null,null,null,null,null,null,null,null,null,null,null,null,null,null,null,null,null,null,null,null,null,null,null,null,""]
[null,null,null,null,null,null,null,null,null,null,null,null,null,null,null,null,null,null,null,null,null,null,null,null,null,null,""]
[null,null,null,null,null,null,null,null,null,null,null,null,null,null,null,null,null,null,null,null,null,null,null,null,null,null,""]
[null,null,null,null,null,null,null,null,null,null,null,null,null,null,null,null,null,null,null,null,null,null,null,null,null,null,""]
[null,null,null,null,null,null,null,null,null,null,null,null,null,null,null,null,null,null,null,null,null,null,null,null,null,null,""]
[null,null,null,null,null,null,null,null,null,null,null,null,null,null,null,null,null,null,null,null,null,null,null,null,null,null,""]
[null,null,null,null,null,null,null,null,null,null,null,null,null,null,null,null,null,null,null,null,null,null,null,null,null,null,""]
[null,null,null,null,null,null,null,null,null,null,null,null,null,null,null,null,null,null,null,null,null,null,null,null,null,null,""]
[null,null,null,null,null,null,null,null,null,null,null,null,null,null,null,null,null,null,null,null,null,null,null,null,null,null,""]
[null,null,null,null,null,null,null,null,null,null,null,null,null,null,null,null,null,null,null,null,null,null,null,null,null,null,""]
[null,null,null,null,null,null,null,null,null,null,null,null,null,null,null,null,null,null,null,null,null,null,null,null,null,null,""]
[null,null,null,null,null,null,null,null,null,null,null,null,null,null,null,null,null,null,null,null,null,null,null,null,null,null,""]
[null,null,null,null,null,null,null,null,null,null,null,null,null,null,null,null,null,null,null,null,null,null,null,null,null,null,""]
[null,null,null,null,null,null,null,null,null,null,null,null,null,null,null,null,null,null,null,null,null,null,null,null,null,null,""]
[null,null,null,null,null,null,null,null,null,null,null,null,null,null,null,null,null,null,null,null,null,null,null,null,null,null,""]
[null,null,null,null,null,null,null,null,null,null,null,null,null,null,null,null,null,null,null,null,null,null,null,null,null,null,""]
[null,null,null,null,null,null,null,null,null,null,null,null,null,null,null,null,null,null,null,null,null,null,null,null,null,null,""]
[null,null,null,null,null,null,null,null,null,null,null,null,null,null,null,null,null,null,null,null,null,null,null,null,null,null,""]
[null,null,null,null,null,null,null,null,null,null,null,null,null,null,null,null,null,null,null,null,null,null,null,null,null,null,""]
[null,null,null,null,null,null,null,null,null,null,null,null,null,null,null,null,null,null,null,null,null,null,null,null,null,null,""]
[null,null,null,null,null,null,null,null,null,null,null,null,null,null,null,null,null,null,null,null,null,null,null,null,null,null,""]
[null,null,null,null,null,null,null,null,null,null,null,null,null,null,null,null,null,null,null,null,null,null,null,null,null,null,""]
[null,null,null,null,null,null,null,null,null,null,null,null,null,null,null,null,null,null,null,null,null,null,null,null,null,null,""]
[null,null,null,null,null,null,null,null,null,null,null,null,null,null,null,null,null,null,null,null,null,null,null,null,null,null,""]
[null,null,null,null,null,null,null,null,null,null,null,null,null,null,null,null,null,null,null,null,null,null,null,null,null,null,""]
[null,null,null,null,null,null,null,null,null,null,null,null,null,null,null,null,null,null,null,null,null,null,null,null,null,null,""]
[null,null,null,null,null,null,null,null,null,null,null,null,null,null,null,null,null,null,null,null,null,null,null,null,null,null,""]
[null,null,null,null,null,null,null,null,null,null,null,null,null,null,null,null,null,null,null,null,null,null,null,null,null,null,""]
[null,null,null,null,null,null,null,null,null,null,null,null,null,null,null,null,null,null,null,null,null,null,null,null,null,null,""]
[null,null,null,null,null,null,null,null,null,null,null,null,null,null,null,null,null,null,null,null,null,null,null,null,null,null,""]
[null,null,null,null,null,null,null,null,null,null,null,null,null,null,null,null,null,null,null,null,null,null,null,null,null,null,""]
[null,null,null,null,null,null,null,null,null,null,null,null,null,null,null,null,null,null,null,null,null,null,null,null,null,null,""]
[null,null,null,null,null,null,null,null,null,null,null,null,null,null,null,null,null,null,null,null,null,null,null,null,null,null,""]
[null,null,null,null,null,null,null,null,null,null,null,null,null,null,null,null,null,null,null,null,null,null,null,null,null,null,""]
[null,null,null,null,null,null,null,null,null,null,null,null,null,null,null,null,null,null,null,null,null,null,null,null,null,null,""]
[null,null,null,null,null,null,null,null,null,null,null,null,null,null,null,null,null,null,null,null,null,null,null,null,null,null,""]
[null,null,null,null,null,null,null,null,null,null,null,null,null,null,null,null,null,null,null,null,null,null,null,null,null,null,""]
[null,null,null,null,null,null,null,null,null,null,null,null,null,null,null,null,null,null,null,null,null,null,null,null,null,null,{"$f":"IF(B1095=\"\",\"\",1)","v":""}]
[null,null,null,null,null,null,null,null,null,null,null,null,null,null,null,null,null,null,null,null,null,null,null,null,null,null,""]
[null,null,null,null,null,null,null,null,null,null,null,null,null,null,null,null,null,null,null,null,null,null,null,null,null,null,""]
[null,null,null,null,null,null,null,null,null,null,null,null,null,null,null,null,null,null,null,null,null,null,null,null,null,null,""]
[null,null,null,null,null,null,null,null,null,null,null,null,null,null,null,null,null,null,null,null,null,null,null,null,null,null,""]
[null,null,null,null,null,null,null,null,null,null,null,null,null,null,null,null,null,null,null,null,null,null,null,null,null,null,""]
[null,null,null,null,null,null,null,null,null,null,null,null,null,null,null,null,null,null,null,null,null,null,null,null,null,null,""]
[null,null,null,null,null,null,null,null,null,null,null,null,null,null,null,null,null,null,null,null,null,null,null,null,null,null,""]
[null,null,null,null,null,null,null,null,null,null,null,null,null,null,null,null,null,null,null,null,null,null,null,null,null,null,""]
[null,null,null,null,null,null,null,null,null,null,null,null,null,null,null,null,null,null,null,null,null,null,null,null,null,null,""]
[null,null,null,null,null,null,null,null,null,null,null,null,null,null,null,null,null,null,null,null,null,null,null,null,null,null,""]
[null,null,null,null,null,null,null,null,null,null,null,null,null,null,null,null,null,null,null,null,null,null,null,null,null,null,""]
[null,null,null,null,null,null,null,null,null,null,null,null,null,null,null,null,null,null,null,null,null,null,null,null,null,null,""]
[null,null,null,null,null,null,null,null,null,null,null,null,null,null,null,null,null,null,null,null,null,null,null,null,null,null,""]
[null,null,null,null,null,null,null,null,null,null,null,null,null,null,null,null,null,null,null,null,null,null,null,null,null,null,""]
[null,null,null,null,null,null,null,null,null,null,null,null,null,null,null,null,null,null,null,null,null,null,null,null,null,null,""]
[null,null,null,null,null,null,null,null,null,null,null,null,null,null,null,null,null,null,null,null,null,null,null,null,null,null,""]
[null,null,null,null,null,null,null,null,null,null,null,null,null,null,null,null,null,null,null,null,null,null,null,null,null,null,""]
[null,null,null,null,null,null,null,null,null,null,null,null,null,null,null,null,null,null,null,null,null,null,null,null,null,null,""]
[null,null,null,null,null,null,null,null,null,null,null,null,null,null,null,null,null,null,null,null,null,null,null,null,null,null,""]
[null,null,null,null,null,null,null,null,null,null,null,null,null,null,null,null,null,null,null,null,null,null,null,null,null,null,""]
[null,null,null,null,null,null,null,null,null,null,null,null,null,null,null,null,null,null,null,null,null,null,null,null,null,null,""]
[null,null,null,null,null,null,null,null,null,null,null,null,null,null,null,null,null,null,null,null,null,null,null,null,null,null,""]
[null,null,null,null,null,null,null,null,null,null,null,null,null,null,null,null,null,null,null,null,null,null,null,null,null,null,""]
[null,null,null,null,null,null,null,null,null,null,null,null,null,null,null,null,null,null,null,null,null,null,null,null,null,null,""]
[null,null,null,null,null,null,null,null,null,null,null,null,null,null,null,null,null,null,null,null,null,null,null,null,null,null,""]
[null,null,null,null,null,null,null,null,null,null,null,null,null,null,null,null,null,null,null,null,null,null,null,null,null,null,""]
[null,null,null,null,null,null,null,null,null,null,null,null,null,null,null,null,null,null,null,null,null,null,null,null,null,null,""]
[null,null,null,null,null,null,null,null,null,null,null,null,null,null,null,null,null,null,null,null,null,null,null,null,null,null,""]
[null,null,null,null,null,null,null,null,null,null,null,null,null,null,null,null,null,null,null,null,null,null,null,null,null,null,""]
[null,null,null,null,null,null,null,null,null,null,null,null,null,null,null,null,null,null,null,null,null,null,null,null,null,null,""]
[null,null,null,null,null,null,null,null,null,null,null,null,null,null,null,null,null,null,null,null,null,null,null,null,null,null,""]
[null,null,null,null,null,null,null,null,null,null,null,null,null,null,null,null,null,null,null,null,null,null,null,null,null,null,""]
[null,null,null,null,null,null,null,null,null,null,null,null,null,null,null,null,null,null,null,null,null,null,null,null,null,null,""]
[null,null,null,null,null,null,null,null,null,null,null,null,null,null,null,null,null,null,null,null,null,null,null,null,null,null,""]
[null,null,null,null,null,null,null,null,null,null,null,null,null,null,null,null,null,null,null,null,null,null,null,null,null,null,""]
[null,null,null,null,null,null,null,null,null,null,null,null,null,null,null,null,null,null,null,null,null,null,null,null,null,null,""]
[null,null,null,null,null,null,null,null,null,null,null,null,null,null,null,null,null,null,null,null,null,null,null,null,null,null,""]
[null,null,null,null,null,null,null,null,null,null,null,null,null,null,null,null,null,null,null,null,null,null,null,null,null,null,""]
[null,null,null,null,null,null,null,null,null,null,null,null,null,null,null,null,null,null,null,null,null,null,null,null,null,null,""]
[null,null,null,null,null,null,null,null,null,null,null,null,null,null,null,null,null,null,null,null,null,null,null,null,null,null,""]
[null,null,null,null,null,null,null,null,null,null,null,null,null,null,null,null,null,null,null,null,null,null,null,null,null,null,""]
[null,null,null,null,null,null,null,null,null,null,null,null,null,null,null,null,null,null,null,null,null,null,null,null,null,null,""]
[null,null,null,null,null,null,null,null,null,null,null,null,null,null,null,null,null,null,null,null,null,null,null,null,null,null,""]
[null,null,null,null,null,null,null,null,null,null,null,null,null,null,null,null,null,null,null,null,null,null,null,null,null,null,""]
[null,null,null,null,null,null,null,null,null,null,null,null,null,null,null,null,null,null,null,null,null,null,null,null,null,null,""]
[null,null,null,null,null,null,null,null,null,null,null,null,null,null,null,null,null,null,null,null,null,null,null,null,null,null,""]
[null,null,null,null,null,null,null,null,null,null,null,null,null,null,null,null,null,null,null,null,null,null,null,null,null,null,""]
[null,null,null,null,null,null,null,null,null,null,null,null,null,null,null,null,null,null,null,null,null,null,null,null,null,null,""]
[null,null,null,null,null,null,null,null,null,null,null,null,null,null,null,null,null,null,null,null,null,null,null,null,null,null,""]
[null,null,null,null,null,null,null,null,null,null,null,null,null,null,null,null,null,null,null,null,null,null,null,null,null,null,""]
[null,null,null,null,null,null,null,null,null,null,null,null,null,null,null,null,null,null,null,null,null,null,null,null,null,null,""]
[null,null,null,null,null,null,null,null,null,null,null,null,null,null,null,null,null,null,null,null,null,null,null,null,null,null,""]
[null,null,null,null,null,null,null,null,null,null,null,null,null,null,null,null,null,null,null,null,null,null,null,null,null,null,""]
[null,null,null,null,null,null,null,null,null,null,null,null,null,null,null,null,null,null,null,null,null,null,null,null,null,null,""]
[null,null,null,null,null,null,null,null,null,null,null,null,null,null,null,null,null,null,null,null,null,null,null,null,null,null,""]
[null,null,null,null,null,null,null,null,null,null,null,null,null,null,null,null,null,null,null,null,null,null,null,null,null,null,""]
[null,null,null,null,null,null,null,null,null,null,null,null,null,null,null,null,null,null,null,null,null,null,null,null,null,null,""]
[null,null,null,null,null,null,null,null,null,null,null,null,null,null,null,null,null,null,null,null,null,null,null,null,null,null,""]
[null,null,null,null,null,null,null,null,null,null,null,null,null,null,null,null,null,null,null,null,null,null,null,null,null,null,""]
[null,null,null,null,null,null,null,null,null,null,null,null,null,null,null,null,null,null,null,null,null,null,null,null,null,null,""]
[null,null,null,null,null,null,null,null,null,null,null,null,null,null,null,null,null,null,null,null,null,null,null,null,null,null,""]
[null,null,null,null,null,null,null,null,null,null,null,null,null,null,null,null,null,null,null,null,null,null,null,null,null,null,""]
[null,null,null,null,null,null,null,null,null,null,null,null,null,null,null,null,null,null,null,null,null,null,null,null,null,null,""]
[null,null,null,null,null,null,null,null,null,null,null,null,null,null,null,null,null,null,null,null,null,null,null,null,null,null,{"$f":"IF(B1159=\"\",\"\",1)","v":""}]
[null,null,null,null,null,null,null,null,null,null,null,null,null,null,null,null,null,null,null,null,null,null,null,null,null,null,""]
[null,null,null,null,null,null,null,null,null,null,null,null,null,null,null,null,null,null,null,null,null,null,null,null,null,null,""]
[null,null,null,null,null,null,null,null,null,null,null,null,null,null,null,null,null,null,null,null,null,null,null,null,null,null,""]
[null,null,null,null,null,null,null,null,null,null,null,null,null,null,null,null,null,null,null,null,null,null,null,null,null,null,""]
[null,null,null,null,null,null,null,null,null,null,null,null,null,null,null,null,null,null,null,null,null,null,null,null,null,null,""]
[null,null,null,null,null,null,null,null,null,null,null,null,null,null,null,null,null,null,null,null,null,null,null,null,null,null,""]
[null,null,null,null,null,null,null,null,null,null,null,null,null,null,null,null,null,null,null,null,null,null,null,null,null,null,""]
[null,null,null,null,null,null,null,null,null,null,null,null,null,null,null,null,null,null,null,null,null,null,null,null,null,null,""]
[null,null,null,null,null,null,null,null,null,null,null,null,null,null,null,null,null,null,null,null,null,null,null,null,null,null,""]
[null,null,null,null,null,null,null,null,null,null,null,null,null,null,null,null,null,null,null,null,null,null,null,null,null,null,""]
[null,null,null,null,null,null,null,null,null,null,null,null,null,null,null,null,null,null,null,null,null,null,null,null,null,null,""]
[null,null,null,null,null,null,null,null,null,null,null,null,null,null,null,null,null,null,null,null,null,null,null,null,null,null,""]
[null,null,null,null,null,null,null,null,null,null,null,null,null,null,null,null,null,null,null,null,null,null,null,null,null,null,""]
[null,null,null,null,null,null,null,null,null,null,null,null,null,null,null,null,null,null,null,null,null,null,null,null,null,null,""]
[null,null,null,null,null,null,null,null,null,null,null,null,null,null,null,null,null,null,null,null,null,null,null,null,null,null,""]
[null,null,null,null,null,null,null,null,null,null,null,null,null,null,null,null,null,null,null,null,null,null,null,null,null,null,""]
[null,null,null,null,null,null,null,null,null,null,null,null,null,null,null,null,null,null,null,null,null,null,null,null,null,null,""]
[null,null,null,null,null,null,null,null,null,null,null,null,null,null,null,null,null,null,null,null,null,null,null,null,null,null,""]
[null,null,null,null,null,null,null,null,null,null,null,null,null,null,null,null,null,null,null,null,null,null,null,null,null,null,""]
[null,null,null,null,null,null,null,null,null,null,null,null,null,null,null,null,null,null,null,null,null,null,null,null,null,null,""]
[null,null,null,null,null,null,null,null,null,null,null,null,null,null,null,null,null,null,null,null,null,null,null,null,null,null,""]
[null,null,null,null,null,null,null,null,null,null,null,null,null,null,null,null,null,null,null,null,null,null,null,null,null,null,""]
[null,null,null,null,null,null,null,null,null,null,null,null,null,null,null,null,null,null,null,null,null,null,null,null,null,null,""]
[null,null,null,null,null,null,null,null,null,null,null,null,null,null,null,null,null,null,null,null,null,null,null,null,null,null,""]
[null,null,null,null,null,null,null,null,null,null,null,null,null,null,null,null,null,null,null,null,null,null,null,null,null,null,""]
[null,null,null,null,null,null,null,null,null,null,null,null,null,null,null,null,null,null,null,null,null,null,null,null,null,null,""]
[null,null,null,null,null,null,null,null,null,null,null,null,null,null,null,null,null,null,null,null,null,null,null,null,null,null,""]
[null,null,null,null,null,null,null,null,null,null,null,null,null,null,null,null,null,null,null,null,null,null,null,null,null,null,""]
[null,null,null,null,null,null,null,null,null,null,null,null,null,null,null,null,null,null,null,null,null,null,null,null,null,null,""]
[null,null,null,null,null,null,null,null,null,null,null,null,null,null,null,null,null,null,null,null,null,null,null,null,null,null,""]
[null,null,null,null,null,null,null,null,null,null,null,null,null,null,null,null,null,null,null,null,null,null,null,null,null,null,""]
[null,null,null,null,null,null,null,null,null,null,null,null,null,null,null,null,null,null,null,null,null,null,null,null,null,null,""]
[null,null,null,null,null,null,null,null,null,null,null,null,null,null,null,null,null,null,null,null,null,null,null,null,null,null,""]
[null,null,null,null,null,null,null,null,null,null,null,null,null,null,null,null,null,null,null,null,null,null,null,null,null,null,""]
[null,null,null,null,null,null,null,null,null,null,null,null,null,null,null,null,null,null,null,null,null,null,null,null,null,null,""]
[null,null,null,null,null,null,null,null,null,null,null,null,null,null,null,null,null,null,null,null,null,null,null,null,null,null,""]
[null,null,null,null,null,null,null,null,null,null,null,null,null,null,null,null,null,null,null,null,null,null,null,null,null,null,""]
[null,null,null,null,null,null,null,null,null,null,null,null,null,null,null,null,null,null,null,null,null,null,null,null,null,null,""]
[null,null,null,null,null,null,null,null,null,null,null,null,null,null,null,null,null,null,null,null,null,null,null,null,null,null,""]
[null,null,null,null,null,null,null,null,null,null,null,null,null,null,null,null,null,null,null,null,null,null,null,null,null,null,""]
[null,null,null,null,null,null,null,null,null,null,null,null,null,null,null,null,null,null,null,null,null,null,null,null,null,null,""]
[null,null,null,null,null,null,null,null,null,null,null,null,null,null,null,null,null,null,null,null,null,null,null,null,null,null,""]
[null,null,null,null,null,null,null,null,null,null,null,null,null,null,null,null,null,null,null,null,null,null,null,null,null,null,""]
[null,null,null,null,null,null,null,null,null,null,null,null,null,null,null,null,null,null,null,null,null,null,null,null,null,null,""]
[null,null,null,null,null,null,null,null,null,null,null,null,null,null,null,null,null,null,null,null,null,null,null,null,null,null,""]
[null,null,null,null,null,null,null,null,null,null,null,null,null,null,null,null,null,null,null,null,null,null,null,null,null,null,""]
[null,null,null,null,null,null,null,null,null,null,null,null,null,null,null,null,null,null,null,null,null,null,null,null,null,null,""]
[null,null,null,null,null,null,null,null,null,null,null,null,null,null,null,null,null,null,null,null,null,null,null,null,null,null,""]
[null,null,null,null,null,null,null,null,null,null,null,null,null,null,null,null,null,null,null,null,null,null,null,null,null,null,""]
[null,null,null,null,null,null,null,null,null,null,null,null,null,null,null,null,null,null,null,null,null,null,null,null,null,null,""]
[null,null,null,null,null,null,null,null,null,null,null,null,null,null,null,null,null,null,null,null,null,null,null,null,null,null,""]
[null,null,null,null,null,null,null,null,null,null,null,null,null,null,null,null,null,null,null,null,null,null,null,null,null,null,""]
[null,null,null,null,null,null,null,null,null,null,null,null,null,null,null,null,null,null,null,null,null,null,null,null,null,null,""]
[null,null,null,null,null,null,null,null,null,null,null,null,null,null,null,null,null,null,null,null,null,null,null,null,null,null,""]
[null,null,null,null,null,null,null,null,null,null,null,null,null,null,null,null,null,null,null,null,null,null,null,null,null,null,""]
[null,null,null,null,null,null,null,null,null,null,null,null,null,null,null,null,null,null,null,null,null,null,null,null,null,null,""]
[null,null,null,null,null,null,null,null,null,null,null,null,null,null,null,null,null,null,null,null,null,null,null,null,null,null,""]
[null,null,null,null,null,null,null,null,null,null,null,null,null,null,null,null,null,null,null,null,null,null,null,null,null,null,""]
[null,null,null,null,null,null,null,null,null,null,null,null,null,null,null,null,null,null,null,null,null,null,null,null,null,null,""]
[null,null,null,null,null,null,null,null,null,null,null,null,null,null,null,null,null,null,null,null,null,null,null,null,null,null,""]
[null,null,null,null,null,null,null,null,null,null,null,null,null,null,null,null,null,null,null,null,null,null,null,null,null,null,""]
[null,null,null,null,null,null,null,null,null,null,null,null,null,null,null,null,null,null,null,null,null,null,null,null,null,null,""]
[null,null,null,null,null,null,null,null,null,null,null,null,null,null,null,null,null,null,null,null,null,null,null,null,null,null,""]
[null,null,null,null,null,null,null,null,null,null,null,null,null,null,null,null,null,null,null,null,null,null,null,null,null,null,{"$f":"IF(B1223=\"\",\"\",1)","v":""}]
[null,null,null,null,null,null,null,null,null,null,null,null,null,null,null,null,null,null,null,null,null,null,null,null,null,null,""]
[null,null,null,null,null,null,null,null,null,null,null,null,null,null,null,null,null,null,null,null,null,null,null,null,null,null,""]
[null,null,null,null,null,null,null,null,null,null,null,null,null,null,null,null,null,null,null,null,null,null,null,null,null,null,""]
[null,null,null,null,null,null,null,null,null,null,null,null,null,null,null,null,null,null,null,null,null,null,null,null,null,null,""]
[null,null,null,null,null,null,null,null,null,null,null,null,null,null,null,null,null,null,null,null,null,null,null,null,null,null,""]
[null,null,null,null,null,null,null,null,null,null,null,null,null,null,null,null,null,null,null,null,null,null,null,null,null,null,""]
[null,null,null,null,null,null,null,null,null,null,null,null,null,null,null,null,null,null,null,null,null,null,null,null,null,null,""]
[null,null,null,null,null,null,null,null,null,null,null,null,null,null,null,null,null,null,null,null,null,null,null,null,null,null,""]
[null,null,null,null,null,null,null,null,null,null,null,null,null,null,null,null,null,null,null,null,null,null,null,null,null,null,""]
[null,null,null,null,null,null,null,null,null,null,null,null,null,null,null,null,null,null,null,null,null,null,null,null,null,null,""]
[null,null,null,null,null,null,null,null,null,null,null,null,null,null,null,null,null,null,null,null,null,null,null,null,null,null,""]
[null,null,null,null,null,null,null,null,null,null,null,null,null,null,null,null,null,null,null,null,null,null,null,null,null,null,""]
[null,null,null,null,null,null,null,null,null,null,null,null,null,null,null,null,null,null,null,null,null,null,null,null,null,null,""]
[null,null,null,null,null,null,null,null,null,null,null,null,null,null,null,null,null,null,null,null,null,null,null,null,null,null,""]
[null,null,null,null,null,null,null,null,null,null,null,null,null,null,null,null,null,null,null,null,null,null,null,null,null,null,""]
[null,null,null,null,null,null,null,null,null,null,null,null,null,null,null,null,null,null,null,null,null,null,null,null,null,null,""]
[null,null,null,null,null,null,null,null,null,null,null,null,null,null,null,null,null,null,null,null,null,null,null,null,null,null,""]
[null,null,null,null,null,null,null,null,null,null,null,null,null,null,null,null,null,null,null,null,null,null,null,null,null,null,""]
[null,null,null,null,null,null,null,null,null,null,null,null,null,null,null,null,null,null,null,null,null,null,null,null,null,null,""]
[null,null,null,null,null,null,null,null,null,null,null,null,null,null,null,null,null,null,null,null,null,null,null,null,null,null,""]
[null,null,null,null,null,null,null,null,null,null,null,null,null,null,null,null,null,null,null,null,null,null,null,null,null,null,""]
[null,null,null,null,null,null,null,null,null,null,null,null,null,null,null,null,null,null,null,null,null,null,null,null,null,null,""]
[null,null,null,null,null,null,null,null,null,null,null,null,null,null,null,null,null,null,null,null,null,null,null,null,null,null,""]
[null,null,null,null,null,null,null,null,null,null,null,null,null,null,null,null,null,null,null,null,null,null,null,null,null,null,""]
[null,null,null,null,null,null,null,null,null,null,null,null,null,null,null,null,null,null,null,null,null,null,null,null,null,null,""]
[null,null,null,null,null,null,null,null,null,null,null,null,null,null,null,null,null,null,null,null,null,null,null,null,null,null,""]
[null,null,null,null,null,null,null,null,null,null,null,null,null,null,null,null,null,null,null,null,null,null,null,null,null,null,""]
[null,null,null,null,null,null,null,null,null,null,null,null,null,null,null,null,null,null,null,null,null,null,null,null,null,null,""]
[null,null,null,null,null,null,null,null,null,null,null,null,null,null,null,null,null,null,null,null,null,null,null,null,null,null,""]
[null,null,null,null,null,null,null,null,null,null,null,null,null,null,null,null,null,null,null,null,null,null,null,null,null,null,""]
[null,null,null,null,null,null,null,null,null,null,null,null,null,null,null,null,null,null,null,null,null,null,null,null,null,null,""]
[null,null,null,null,null,null,null,null,null,null,null,null,null,null,null,null,null,null,null,null,null,null,null,null,null,null,""]
[null,null,null,null,null,null,null,null,null,null,null,null,null,null,null,null,null,null,null,null,null,null,null,null,null,null,""]
[null,null,null,null,null,null,null,null,null,null,null,null,null,null,null,null,null,null,null,null,null,null,null,null,null,null,""]
[null,null,null,null,null,null,null,null,null,null,null,null,null,null,null,null,null,null,null,null,null,null,null,null,null,null,""]
[null,null,null,null,null,null,null,null,null,null,null,null,null,null,null,null,null,null,null,null,null,null,null,null,null,null,""]
[null,null,null,null,null,null,null,null,null,null,null,null,null,null,null,null,null,null,null,null,null,null,null,null,null,null,""]
[null,null,null,null,null,null,null,null,null,null,null,null,null,null,null,null,null,null,null,null,null,null,null,null,null,null,""]
[null,null,null,null,null,null,null,null,null,null,null,null,null,null,null,null,null,null,null,null,null,null,null,null,null,null,""]
[null,null,null,null,null,null,null,null,null,null,null,null,null,null,null,null,null,null,null,null,null,null,null,null,null,null,""]
[null,null,null,null,null,null,null,null,null,null,null,null,null,null,null,null,null,null,null,null,null,null,null,null,null,null,""]
[null,null,null,null,null,null,null,null,null,null,null,null,null,null,null,null,null,null,null,null,null,null,null,null,null,null,""]
[null,null,null,null,null,null,null,null,null,null,null,null,null,null,null,null,null,null,null,null,null,null,null,null,null,null,""]
[null,null,null,null,null,null,null,null,null,null,null,null,null,null,null,null,null,null,null,null,null,null,null,null,null,null,""]
[null,null,null,null,null,null,null,null,null,null,null,null,null,null,null,null,null,null,null,null,null,null,null,null,null,null,""]
[null,null,null,null,null,null,null,null,null,null,null,null,null,null,null,null,null,null,null,null,null,null,null,null,null,null,""]
[null,null,null,null,null,null,null,null,null,null,null,null,null,null,null,null,null,null,null,null,null,null,null,null,null,null,""]
[null,null,null,null,null,null,null,null,null,null,null,null,null,null,null,null,null,null,null,null,null,null,null,null,null,null,""]
[null,null,null,null,null,null,null,null,null,null,null,null,null,null,null,null,null,null,null,null,null,null,null,null,null,null,""]
[null,null,null,null,null,null,null,null,null,null,null,null,null,null,null,null,null,null,null,null,null,null,null,null,null,null,""]
[null,null,null,null,null,null,null,null,null,null,null,null,null,null,null,null,null,null,null,null,null,null,null,null,null,null,""]
[null,null,null,null,null,null,null,null,null,null,null,null,null,null,null,null,null,null,null,null,null,null,null,null,null,null,""]
[null,null,null,null,null,null,null,null,null,null,null,null,null,null,null,null,null,null,null,null,null,null,null,null,null,null,""]
[null,null,null,null,null,null,null,null,null,null,null,null,null,null,null,null,null,null,null,null,null,null,null,null,null,null,""]
[null,null,null,null,null,null,null,null,null,null,null,null,null,null,null,null,null,null,null,null,null,null,null,null,null,null,""]
[null,null,null,null,null,null,null,null,null,null,null,null,null,null,null,null,null,null,null,null,null,null,null,null,null,null,""]
[null,null,null,null,null,null,null,null,null,null,null,null,null,null,null,null,null,null,null,null,null,null,null,null,null,null,""]
[null,null,null,null,null,null,null,null,null,null,null,null,null,null,null,null,null,null,null,null,null,null,null,null,null,null,""]
[null,null,null,null,null,null,null,null,null,null,null,null,null,null,null,null,null,null,null,null,null,null,null,null,null,null,""]
[null,null,null,null,null,null,null,null,null,null,null,null,null,null,null,null,null,null,null,null,null,null,null,null,null,null,""]
[null,null,null,null,null,null,null,null,null,null,null,null,null,null,null,null,null,null,null,null,null,null,null,null,null,null,""]
[null,null,null,null,null,null,null,null,null,null,null,null,null,null,null,null,null,null,null,null,null,null,null,null,null,null,""]
[null,null,null,null,null,null,null,null,null,null,null,null,null,null,null,null,null,null,null,null,null,null,null,null,null,null,""]
[null,null,null,null,null,null,null,null,null,null,null,null,null,null,null,null,null,null,null,null,null,null,null,null,null,null,{"$f":"IF(B1287=\"\",\"\",1)","v":""}]
[null,null,null,null,null,null,null,null,null,null,null,null,null,null,null,null,null,null,null,null,null,null,null,null,null,null,""]
[null,null,null,null,null,null,null,null,null,null,null,null,null,null,null,null,null,null,null,null,null,null,null,null,null,null,""]
[null,null,null,null,null,null,null,null,null,null,null,null,null,null,null,null,null,null,null,null,null,null,null,null,null,null,""]
[null,null,null,null,null,null,null,null,null,null,null,null,null,null,null,null,null,null,null,null,null,null,null,null,null,null,""]
[null,null,null,null,null,null,null,null,null,null,null,null,null,null,null,null,null,null,null,null,null,null,null,null,null,null,""]
[null,null,null,null,null,null,null,null,null,null,null,null,null,null,null,null,null,null,null,null,null,null,null,null,null,null,""]
[null,null,null,null,null,null,null,null,null,null,null,null,null,null,null,null,null,null,null,null,null,null,null,null,null,null,""]
[null,null,null,null,null,null,null,null,null,null,null,null,null,null,null,null,null,null,null,null,null,null,null,null,null,null,""]
[null,null,null,null,null,null,null,null,null,null,null,null,null,null,null,null,null,null,null,null,null,null,null,null,null,null,""]
[null,null,null,null,null,null,null,null,null,null,null,null,null,null,null,null,null,null,null,null,null,null,null,null,null,null,""]
[null,null,null,null,null,null,null,null,null,null,null,null,null,null,null,null,null,null,null,null,null,null,null,null,null,null,""]
[null,null,null,null,null,null,null,null,null,null,null,null,null,null,null,null,null,null,null,null,null,null,null,null,null,null,""]
[null,null,null,null,null,null,null,null,null,null,null,null,null,null,null,null,null,null,null,null,null,null,null,null,null,null,""]
[null,null,null,null,null,null,null,null,null,null,null,null,null,null,null,null,null,null,null,null,null,null,null,null,null,null,""]
[null,null,null,null,null,null,null,null,null,null,null,null,null,null,null,null,null,null,null,null,null,null,null,null,null,null,""]
[null,null,null,null,null,null,null,null,null,null,null,null,null,null,null,null,null,null,null,null,null,null,null,null,null,null,""]
[null,null,null,null,null,null,null,null,null,null,null,null,null,null,null,null,null,null,null,null,null,null,null,null,null,null,""]
[null,null,null,null,null,null,null,null,null,null,null,null,null,null,null,null,null,null,null,null,null,null,null,null,null,null,""]
[null,null,null,null,null,null,null,null,null,null,null,null,null,null,null,null,null,null,null,null,null,null,null,null,null,null,""]
[null,null,null,null,null,null,null,null,null,null,null,null,null,null,null,null,null,null,null,null,null,null,null,null,null,null,""]
[null,null,null,null,null,null,null,null,null,null,null,null,null,null,null,null,null,null,null,null,null,null,null,null,null,null,""]
[null,null,null,null,null,null,null,null,null,null,null,null,null,null,null,null,null,null,null,null,null,null,null,null,null,null,""]
[null,null,null,null,null,null,null,null,null,null,null,null,null,null,null,null,null,null,null,null,null,null,null,null,null,null,""]
[null,null,null,null,null,null,null,null,null,null,null,null,null,null,null,null,null,null,null,null,null,null,null,null,null,null,""]
[null,null,null,null,null,null,null,null,null,null,null,null,null,null,null,null,null,null,null,null,null,null,null,null,null,null,""]
[null,null,null,null,null,null,null,null,null,null,null,null,null,null,null,null,null,null,null,null,null,null,null,null,null,null,""]
[null,null,null,null,null,null,null,null,null,null,null,null,null,null,null,null,null,null,null,null,null,null,null,null,null,null,""]
[null,null,null,null,null,null,null,null,null,null,null,null,null,null,null,null,null,null,null,null,null,null,null,null,null,null,""]
[null,null,null,null,null,null,null,null,null,null,null,null,null,null,null,null,null,null,null,null,null,null,null,null,null,null,""]
[null,null,null,null,null,null,null,null,null,null,null,null,null,null,null,null,null,null,null,null,null,null,null,null,null,null,""]
[null,null,null,null,null,null,null,null,null,null,null,null,null,null,null,null,null,null,null,null,null,null,null,null,null,null,""]
[null,null,null,null,null,null,null,null,null,null,null,null,null,null,null,null,null,null,null,null,null,null,null,null,null,null,""]
[null,null,null,null,null,null,null,null,null,null,null,null,null,null,null,null,null,null,null,null,null,null,null,null,null,null,""]
[null,null,null,null,null,null,null,null,null,null,null,null,null,null,null,null,null,null,null,null,null,null,null,null,null,null,""]
[null,null,null,null,null,null,null,null,null,null,null,null,null,null,null,null,null,null,null,null,null,null,null,null,null,null,""]
[null,null,null,null,null,null,null,null,null,null,null,null,null,null,null,null,null,null,null,null,null,null,null,null,null,null,""]
[null,null,null,null,null,null,null,null,null,null,null,null,null,null,null,null,null,null,null,null,null,null,null,null,null,null,""]
[null,null,null,null,null,null,null,null,null,null,null,null,null,null,null,null,null,null,null,null,null,null,null,null,null,null,""]
[null,null,null,null,null,null,null,null,null,null,null,null,null,null,null,null,null,null,null,null,null,null,null,null,null,null,""]
[null,null,null,null,null,null,null,null,null,null,null,null,null,null,null,null,null,null,null,null,null,null,null,null,null,null,""]
[null,null,null,null,null,null,null,null,null,null,null,null,null,null,null,null,null,null,null,null,null,null,null,null,null,null,""]
[null,null,null,null,null,null,null,null,null,null,null,null,null,null,null,null,null,null,null,null,null,null,null,null,null,null,""]
[null,null,null,null,null,null,null,null,null,null,null,null,null,null,null,null,null,null,null,null,null,null,null,null,null,null,""]
[null,null,null,null,null,null,null,null,null,null,null,null,null,null,null,null,null,null,null,null,null,null,null,null,null,null,""]
[null,null,null,null,null,null,null,null,null,null,null,null,null,null,null,null,null,null,null,null,null,null,null,null,null,null,""]
[null,null,null,null,null,null,null,null,null,null,null,null,null,null,null,null,null,null,null,null,null,null,null,null,null,null,""]
[null,null,null,null,null,null,null,null,null,null,null,null,null,null,null,null,null,null,null,null,null,null,null,null,null,null,""]
[null,null,null,null,null,null,null,null,null,null,null,null,null,null,null,null,null,null,null,null,null,null,null,null,null,null,""]
[null,null,null,null,null,null,null,null,null,null,null,null,null,null,null,null,null,null,null,null,null,null,null,null,null,null,""]
[null,null,null,null,null,null,null,null,null,null,null,null,null,null,null,null,null,null,null,null,null,null,null,null,null,null,""]
[null,null,null,null,null,null,null,null,null,null,null,null,null,null,null,null,null,null,null,null,null,null,null,null,null,null,""]
[null,null,null,null,null,null,null,null,null,null,null,null,null,null,null,null,null,null,null,null,null,null,null,null,null,null,""]
[null,null,null,null,null,null,null,null,null,null,null,null,null,null,null,null,null,null,null,null,null,null,null,null,null,null,""]
[null,null,null,null,null,null,null,null,null,null,null,null,null,null,null,null,null,null,null,null,null,null,null,null,null,null,""]
[null,null,null,null,null,null,null,null,null,null,null,null,null,null,null,null,null,null,null,null,null,null,null,null,null,null,""]
[null,null,null,null,null,null,null,null,null,null,null,null,null,null,null,null,null,null,null,null,null,null,null,null,null,null,""]
[null,null,null,null,null,null,null,null,null,null,null,null,null,null,null,null,null,null,null,null,null,null,null,null,null,null,""]
[null,null,null,null,null,null,null,null,null,null,null,null,null,null,null,null,null,null,null,null,null,null,null,null,null,null,""]
[null,null,null,null,null,null,null,null,null,null,null,null,null,null,null,null,null,null,null,null,null,null,null,null,null,null,""]
[null,null,null,null,null,null,null,null,null,null,null,null,null,null,null,null,null,null,null,null,null,null,null,null,null,null,""]
[null,null,null,null,null,null,null,null,null,null,null,null,null,null,null,null,null,null,null,null,null,null,null,null,null,null,""]
[null,null,null,null,null,null,null,null,null,null,null,null,null,null,null,null,null,null,null,null,null,null,null,null,null,null,""]
[null,null,null,null,null,null,null,null,null,null,null,null,null,null,null,null,null,null,null,null,null,null,null,null,null,null,""]
[null,null,null,null,null,null,null,null,null,null,null,null,null,null,null,null,null,null,null,null,null,null,null,null,null,null,{"$f":"IF(B1351=\"\",\"\",1)","v":""}]
[null,null,null,null,null,null,null,null,null,null,null,null,null,null,null,null,null,null,null,null,null,null,null,null,null,null,""]
[null,null,null,null,null,null,null,null,null,null,null,null,null,null,null,null,null,null,null,null,null,null,null,null,null,null,""]
[null,null,null,null,null,null,null,null,null,null,null,null,null,null,null,null,null,null,null,null,null,null,null,null,null,null,""]
[null,null,null,null,null,null,null,null,null,null,null,null,null,null,null,null,null,null,null,null,null,null,null,null,null,null,""]
[null,null,null,null,null,null,null,null,null,null,null,null,null,null,null,null,null,null,null,null,null,null,null,null,null,null,""]
[null,null,null,null,null,null,null,null,null,null,null,null,null,null,null,null,null,null,null,null,null,null,null,null,null,null,""]
[null,null,null,null,null,null,null,null,null,null,null,null,null,null,null,null,null,null,null,null,null,null,null,null,null,null,""]
[null,null,null,null,null,null,null,null,null,null,null,null,null,null,null,null,null,null,null,null,null,null,null,null,null,null,""]
[null,null,null,null,null,null,null,null,null,null,null,null,null,null,null,null,null,null,null,null,null,null,null,null,null,null,""]
[null,null,null,null,null,null,null,null,null,null,null,null,null,null,null,null,null,null,null,null,null,null,null,null,null,null,""]
[null,null,null,null,null,null,null,null,null,null,null,null,null,null,null,null,null,null,null,null,null,null,null,null,null,null,""]
[null,null,null,null,null,null,null,null,null,null,null,null,null,null,null,null,null,null,null,null,null,null,null,null,null,null,""]
[null,null,null,null,null,null,null,null,null,null,null,null,null,null,null,null,null,null,null,null,null,null,null,null,null,null,""]
[null,null,null,null,null,null,null,null,null,null,null,null,null,null,null,null,null,null,null,null,null,null,null,null,null,null,""]
[null,null,null,null,null,null,null,null,null,null,null,null,null,null,null,null,null,null,null,null,null,null,null,null,null,null,""]
[null,null,null,null,null,null,null,null,null,null,null,null,null,null,null,null,null,null,null,null,null,null,null,null,null,null,""]
[null,null,null,null,null,null,null,null,null,null,null,null,null,null,null,null,null,null,null,null,null,null,null,null,null,null,""]
[null,null,null,null,null,null,null,null,null,null,null,null,null,null,null,null,null,null,null,null,null,null,null,null,null,null,""]
[null,null,null,null,null,null,null,null,null,null,null,null,null,null,null,null,null,null,null,null,null,null,null,null,null,null,""]
[null,null,null,null,null,null,null,null,null,null,null,null,null,null,null,null,null,null,null,null,null,null,null,null,null,null,""]
[null,null,null,null,null,null,null,null,null,null,null,null,null,null,null,null,null,null,null,null,null,null,null,null,null,null,""]
[null,null,null,null,null,null,null,null,null,null,null,null,null,null,null,null,null,null,null,null,null,null,null,null,null,null,""]
[null,null,null,null,null,null,null,null,null,null,null,null,null,null,null,null,null,null,null,null,null,null,null,null,null,null,""]
[null,null,null,null,null,null,null,null,null,null,null,null,null,null,null,null,null,null,null,null,null,null,null,null,null,null,""]
[null,null,null,null,null,null,null,null,null,null,null,null,null,null,null,null,null,null,null,null,null,null,null,null,null,null,""]
[null,null,null,null,null,null,null,null,null,null,null,null,null,null,null,null,null,null,null,null,null,null,null,null,null,null,""]
[null,null,null,null,null,null,null,null,null,null,null,null,null,null,null,null,null,null,null,null,null,null,null,null,null,null,""]
[null,null,null,null,null,null,null,null,null,null,null,null,null,null,null,null,null,null,null,null,null,null,null,null,null,null,""]
[null,null,null,null,null,null,null,null,null,null,null,null,null,null,null,null,null,null,null,null,null,null,null,null,null,null,""]
[null,null,null,null,null,null,null,null,null,null,null,null,null,null,null,null,null,null,null,null,null,null,null,null,null,null,""]
[null,null,null,null,null,null,null,null,null,null,null,null,null,null,null,null,null,null,null,null,null,null,null,null,null,null,""]
[null,null,null,null,null,null,null,null,null,null,null,null,null,null,null,null,null,null,null,null,null,null,null,null,null,null,""]
[null,null,null,null,null,null,null,null,null,null,null,null,null,null,null,null,null,null,null,null,null,null,null,null,null,null,""]
[null,null,null,null,null,null,null,null,null,null,null,null,null,null,null,null,null,null,null,null,null,null,null,null,null,null,""]
[null,null,null,null,null,null,null,null,null,null,null,null,null,null,null,null,null,null,null,null,null,null,null,null,null,null,""]
[null,null,null,null,null,null,null,null,null,null,null,null,null,null,null,null,null,null,null,null,null,null,null,null,null,null,""]
[null,null,null,null,null,null,null,null,null,null,null,null,null,null,null,null,null,null,null,null,null,null,null,null,null,null,""]
[null,null,null,null,null,null,null,null,null,null,null,null,null,null,null,null,null,null,null,null,null,null,null,null,null,null,""]
[null,null,null,null,null,null,null,null,null,null,null,null,null,null,null,null,null,null,null,null,null,null,null,null,null,null,""]
[null,null,null,null,null,null,null,null,null,null,null,null,null,null,null,null,null,null,null,null,null,null,null,null,null,null,""]
[null,null,null,null,null,null,null,null,null,null,null,null,null,null,null,null,null,null,null,null,null,null,null,null,null,null,""]
[null,null,null,null,null,null,null,null,null,null,null,null,null,null,null,null,null,null,null,null,null,null,null,null,null,null,""]
[null,null,null,null,null,null,null,null,null,null,null,null,null,null,null,null,null,null,null,null,null,null,null,null,null,null,""]
[null,null,null,null,null,null,null,null,null,null,null,null,null,null,null,null,null,null,null,null,null,null,null,null,null,null,""]
[null,null,null,null,null,null,null,null,null,null,null,null,null,null,null,null,null,null,null,null,null,null,null,null,null,null,""]
[null,null,null,null,null,null,null,null,null,null,null,null,null,null,null,null,null,null,null,null,null,null,null,null,null,null,""]
[null,null,null,null,null,null,null,null,null,null,null,null,null,null,null,null,null,null,null,null,null,null,null,null,null,null,""]
[null,null,null,null,null,null,null,null,null,null,null,null,null,null,null,null,null,null,null,null,null,null,null,null,null,null,""]
[null,null,null,null,null,null,null,null,null,null,null,null,null,null,null,null,null,null,null,null,null,null,null,null,null,null,""]
[null,null,null,null,null,null,null,null,null,null,null,null,null,null,null,null,null,null,null,null,null,null,null,null,null,null,""]
[null,null,null,null,null,null,null,null,null,null,null,null,null,null,null,null,null,null,null,null,null,null,null,null,null,null,""]
[null,null,null,null,null,null,null,null,null,null,null,null,null,null,null,null,null,null,null,null,null,null,null,null,null,null,""]
[null,null,null,null,null,null,null,null,null,null,null,null,null,null,null,null,null,null,null,null,null,null,null,null,null,null,""]
[null,null,null,null,null,null,null,null,null,null,null,null,null,null,null,null,null,null,null,null,null,null,null,null,null,null,""]
[null,null,null,null,null,null,null,null,null,null,null,null,null,null,null,null,null,null,null,null,null,null,null,null,null,null,""]
[null,null,null,null,null,null,null,null,null,null,null,null,null,null,null,null,null,null,null,null,null,null,null,null,null,null,""]
[null,null,null,null,null,null,null,null,null,null,null,null,null,null,null,null,null,null,null,null,null,null,null,null,null,null,""]
[null,null,null,null,null,null,null,null,null,null,null,null,null,null,null,null,null,null,null,null,null,null,null,null,null,null,""]
[null,null,null,null,null,null,null,null,null,null,null,null,null,null,null,null,null,null,null,null,null,null,null,null,null,null,""]
[null,null,null,null,null,null,null,null,null,null,null,null,null,null,null,null,null,null,null,null,null,null,null,null,null,null,""]
[null,null,null,null,null,null,null,null,null,null,null,null,null,null,null,null,null,null,null,null,null,null,null,null,null,null,""]
[null,null,null,null,null,null,null,null,null,null,null,null,null,null,null,null,null,null,null,null,null,null,null,null,null,null,""]
[null,null,null,null,null,null,null,null,null,null,null,null,null,null,null,null,null,null,null,null,null,null,null,null,null,null,""]
[null,null,null,null,null,null,null,null,null,null,null,null,null,null,null,null,null,null,null,null,null,null,null,null,null,null,{"$f":"IF(B1415=\"\",\"\",1)","v":""}]
[null,null,null,null,null,null,null,null,null,null,null,null,null,null,null,null,null,null,null,null,null,null,null,null,null,null,""]
[null,null,null,null,null,null,null,null,null,null,null,null,null,null,null,null,null,null,null,null,null,null,null,null,null,null,""]
[null,null,null,null,null,null,null,null,null,null,null,null,null,null,null,null,null,null,null,null,null,null,null,null,null,null,""]
[null,null,null,null,null,null,null,null,null,null,null,null,null,null,null,null,null,null,null,null,null,null,null,null,null,null,""]
[null,null,null,null,null,null,null,null,null,null,null,null,null,null,null,null,null,null,null,null,null,null,null,null,null,null,""]
[null,null,null,null,null,null,null,null,null,null,null,null,null,null,null,null,null,null,null,null,null,null,null,null,null,null,""]
[null,null,null,null,null,null,null,null,null,null,null,null,null,null,null,null,null,null,null,null,null,null,null,null,null,null,""]
[null,null,null,null,null,null,null,null,null,null,null,null,null,null,null,null,null,null,null,null,null,null,null,null,null,null,""]
[null,null,null,null,null,null,null,null,null,null,null,null,null,null,null,null,null,null,null,null,null,null,null,null,null,null,""]
[null,null,null,null,null,null,null,null,null,null,null,null,null,null,null,null,null,null,null,null,null,null,null,null,null,null,""]
[null,null,null,null,null,null,null,null,null,null,null,null,null,null,null,null,null,null,null,null,null,null,null,null,null,null,""]
[null,null,null,null,null,null,null,null,null,null,null,null,null,null,null,null,null,null,null,null,null,null,null,null,null,null,""]
[null,null,null,null,null,null,null,null,null,null,null,null,null,null,null,null,null,null,null,null,null,null,null,null,null,null,""]
[null,null,null,null,null,null,null,null,null,null,null,null,null,null,null,null,null,null,null,null,null,null,null,null,null,null,""]
[null,null,null,null,null,null,null,null,null,null,null,null,null,null,null,null,null,null,null,null,null,null,null,null,null,null,""]
[null,null,null,null,null,null,null,null,null,null,null,null,null,null,null,null,null,null,null,null,null,null,null,null,null,null,""]
[null,null,null,null,null,null,null,null,null,null,null,null,null,null,null,null,null,null,null,null,null,null,null,null,null,null,""]
[null,null,null,null,null,null,null,null,null,null,null,null,null,null,null,null,null,null,null,null,null,null,null,null,null,null,""]
[null,null,null,null,null,null,null,null,null,null,null,null,null,null,null,null,null,null,null,null,null,null,null,null,null,null,""]
[null,null,null,null,null,null,null,null,null,null,null,null,null,null,null,null,null,null,null,null,null,null,null,null,null,null,""]
[null,null,null,null,null,null,null,null,null,null,null,null,null,null,null,null,null,null,null,null,null,null,null,null,null,null,""]
[null,null,null,null,null,null,null,null,null,null,null,null,null,null,null,null,null,null,null,null,null,null,null,null,null,null,""]
[null,null,null,null,null,null,null,null,null,null,null,null,null,null,null,null,null,null,null,null,null,null,null,null,null,null,""]
[null,null,null,null,null,null,null,null,null,null,null,null,null,null,null,null,null,null,null,null,null,null,null,null,null,null,""]
[null,null,null,null,null,null,null,null,null,null,null,null,null,null,null,null,null,null,null,null,null,null,null,null,null,null,""]
[null,null,null,null,null,null,null,null,null,null,null,null,null,null,null,null,null,null,null,null,null,null,null,null,null,null,""]
[null,null,null,null,null,null,null,null,null,null,null,null,null,null,null,null,null,null,null,null,null,null,null,null,null,null,""]
[null,null,null,null,null,null,null,null,null,null,null,null,null,null,null,null,null,null,null,null,null,null,null,null,null,null,""]
[null,null,null,null,null,null,null,null,null,null,null,null,null,null,null,null,null,null,null,null,null,null,null,null,null,null,""]
[null,null,null,null,null,null,null,null,null,null,null,null,null,null,null,null,null,null,null,null,null,null,null,null,null,null,""]
[null,null,null,null,null,null,null,null,null,null,null,null,null,null,null,null,null,null,null,null,null,null,null,null,null,null,""]
[null,null,null,null,null,null,null,null,null,null,null,null,null,null,null,null,null,null,null,null,null,null,null,null,null,null,""]
[null,null,null,null,null,null,null,null,null,null,null,null,null,null,null,null,null,null,null,null,null,null,null,null,null,null,""]
[null,null,null,null,null,null,null,null,null,null,null,null,null,null,null,null,null,null,null,null,null,null,null,null,null,null,""]
[null,null,null,null,null,null,null,null,null,null,null,null,null,null,null,null,null,null,null,null,null,null,null,null,null,null,""]
[null,null,null,null,null,null,null,null,null,null,null,null,null,null,null,null,null,null,null,null,null,null,null,null,null,null,""]
[null,null,null,null,null,null,null,null,null,null,null,null,null,null,null,null,null,null,null,null,null,null,null,null,null,null,""]
[null,null,null,null,null,null,null,null,null,null,null,null,null,null,null,null,null,null,null,null,null,null,null,null,null,null,""]
[null,null,null,null,null,null,null,null,null,null,null,null,null,null,null,null,null,null,null,null,null,null,null,null,null,null,""]
[null,null,null,null,null,null,null,null,null,null,null,null,null,null,null,null,null,null,null,null,null,null,null,null,null,null,""]
[null,null,null,null,null,null,null,null,null,null,null,null,null,null,null,null,null,null,null,null,null,null,null,null,null,null,""]
[null,null,null,null,null,null,null,null,null,null,null,null,null,null,null,null,null,null,null,null,null,null,null,null,null,null,""]
[null,null,null,null,null,null,null,null,null,null,null,null,null,null,null,null,null,null,null,null,null,null,null,null,null,null,""]
[null,null,null,null,null,null,null,null,null,null,null,null,null,null,null,null,null,null,null,null,null,null,null,null,null,null,""]
[null,null,null,null,null,null,null,null,null,null,null,null,null,null,null,null,null,null,null,null,null,null,null,null,null,null,""]
[null,null,null,null,null,null,null,null,null,null,null,null,null,null,null,null,null,null,null,null,null,null,null,null,null,null,""]
[null,null,null,null,null,null,null,null,null,null,null,null,null,null,null,null,null,null,null,null,null,null,null,null,null,null,""]
[null,null,null,null,null,null,null,null,null,null,null,null,null,null,null,null,null,null,null,null,null,null,null,null,null,null,""]
[null,null,null,null,null,null,null,null,null,null,null,null,null,null,null,null,null,null,null,null,null,null,null,null,null,null,""]
[null,null,null,null,null,null,null,null,null,null,null,null,null,null,null,null,null,null,null,null,null,null,null,null,null,null,""]
[null,null,null,null,null,null,null,null,null,null,null,null,null,null,null,null,null,null,null,null,null,null,null,null,null,null,""]
[null,null,null,null,null,null,null,null,null,null,null,null,null,null,null,null,null,null,null,null,null,null,null,null,null,null,""]
[null,null,null,null,null,null,null,null,null,null,null,null,null,null,null,null,null,null,null,null,null,null,null,null,null,null,""]
[null,null,null,null,null,null,null,null,null,null,null,null,null,null,null,null,null,null,null,null,null,null,null,null,null,null,""]
[null,null,null,null,null,null,null,null,null,null,null,null,null,null,null,null,null,null,null,null,null,null,null,null,null,null,""]
[null,null,null,null,null,null,null,null,null,null,null,null,null,null,null,null,null,null,null,null,null,null,null,null,null,null,""]
[null,null,null,null,null,null,null,null,null,null,null,null,null,null,null,null,null,null,null,null,null,null,null,null,null,null,""]
[null,null,null,null,null,null,null,null,null,null,null,null,null,null,null,null,null,null,null,null,null,null,null,null,null,null,""]
[null,null,null,null,null,null,null,null,null,null,null,null,null,null,null,null,null,null,null,null,null,null,null,null,null,null,""]
[null,null,null,null,null,null,null,null,null,null,null,null,null,null,null,null,null,null,null,null,null,null,null,null,null,null,""]
[null,null,null,null,null,null,null,null,null,null,null,null,null,null,null,null,null,null,null,null,null,null,null,null,null,null,""]
[null,null,null,null,null,null,null,null,null,null,null,null,null,null,null,null,null,null,null,null,null,null,null,null,null,null,""]
[null,null,null,null,null,null,null,null,null,null,null,null,null,null,null,null,null,null,null,null,null,null,null,null,null,null,""]
[null,null,null,null,null,null,null,null,null,null,null,null,null,null,null,null,null,null,null,null,null,null,null,null,null,null,{"$f":"IF(B1479=\"\",\"\",1)","v":""}]
[null,null,null,null,null,null,null,null,null,null,null,null,null,null,null,null,null,null,null,null,null,null,null,null,null,null,""]
[null,null,null,null,null,null,null,null,null,null,null,null,null,null,null,null,null,null,null,null,null,null,null,null,null,null,""]
[null,null,null,null,null,null,null,null,null,null,null,null,null,null,null,null,null,null,null,null,null,null,null,null,null,null,""]
[null,null,null,null,null,null,null,null,null,null,null,null,null,null,null,null,null,null,null,null,null,null,null,null,null,null,""]
[null,null,null,null,null,null,null,null,null,null,null,null,null,null,null,null,null,null,null,null,null,null,null,null,null,null,""]
[null,null,null,null,null,null,null,null,null,null,null,null,null,null,null,null,null,null,null,null,null,null,null,null,null,null,""]
[null,null,null,null,null,null,null,null,null,null,null,null,null,null,null,null,null,null,null,null,null,null,null,null,null,null,""]
[null,null,null,null,null,null,null,null,null,null,null,null,null,null,null,null,null,null,null,null,null,null,null,null,null,null,""]
[null,null,null,null,null,null,null,null,null,null,null,null,null,null,null,null,null,null,null,null,null,null,null,null,null,null,""]
[null,null,null,null,null,null,null,null,null,null,null,null,null,null,null,null,null,null,null,null,null,null,null,null,null,null,""]
[null,null,null,null,null,null,null,null,null,null,null,null,null,null,null,null,null,null,null,null,null,null,null,null,null,null,""]
[null,null,null,null,null,null,null,null,null,null,null,null,null,null,null,null,null,null,null,null,null,null,null,null,null,null,""]
[null,null,null,null,null,null,null,null,null,null,null,null,null,null,null,null,null,null,null,null,null,null,null,null,null,null,""]
[null,null,null,null,null,null,null,null,null,null,null,null,null,null,null,null,null,null,null,null,null,null,null,null,null,null,""]
[null,null,null,null,null,null,null,null,null,null,null,null,null,null,null,null,null,null,null,null,null,null,null,null,null,null,""]
[null,null,null,null,null,null,null,null,null,null,null,null,null,null,null,null,null,null,null,null,null,null,null,null,null,null,""]
[null,null,null,null,null,null,null,null,null,null,null,null,null,null,null,null,null,null,null,null,null,null,null,null,null,null,""]
[null,null,null,null,null,null,null,null,null,null,null,null,null,null,null,null,null,null,null,null,null,null,null,null,null,null,""]
[null,null,null,null,null,null,null,null,null,null,null,null,null,null,null,null,null,null,null,null,null,null,null,null,null,null,""]
[null,null,null,null,null,null,null,null,null,null,null,null,null,null,null,null,null,null,null,null,null,null,null,null,null,null,""]
[null,null,null,null,null,null,null,null,null,null,null,null,null,null,null,null,null,null,null,null,null,null,null,null,null,null,""]
[null,null,null,null,null,null,null,null,null,null,null,null,null,null,null,null,null,null,null,null,null,null,null,null,null,null,""]
[null,null,null,null,null,null,null,null,null,null,null,null,null,null,null,null,null,null,null,null,null,null,null,null,null,null,""]
[null,null,null,null,null,null,null,null,null,null,null,null,null,null,null,null,null,null,null,null,null,null,null,null,null,null,""]
[null,null,null,null,null,null,null,null,null,null,null,null,null,null,null,null,null,null,null,null,null,null,null,null,null,null,""]
[null,null,null,null,null,null,null,null,null,null,null,null,null,null,null,null,null,null,null,null,null,null,null,null,null,null,""]
[null,null,null,null,null,null,null,null,null,null,null,null,null,null,null,null,null,null,null,null,null,null,null,null,null,null,""]
[null,null,null,null,null,null,null,null,null,null,null,null,null,null,null,null,null,null,null,null,null,null,null,null,null,null,""]
[null,null,null,null,null,null,null,null,null,null,null,null,null,null,null,null,null,null,null,null,null,null,null,null,null,null,""]
[null,null,null,null,null,null,null,null,null,null,null,null,null,null,null,null,null,null,null,null,null,null,null,null,null,null,""]
[null,null,null,null,null,null,null,null,null,null,null,null,null,null,null,null,null,null,null,null,null,null,null,null,null,null,""]

{"sheet":"③評定","index":3,"n_rows":104,"n_cols":31,"rows_kept":104,"cut":false,"hidden":false,"merged":[[0,0,0,3],[1,22,1,30],[1,13,1,21],[1,4,1,12],[1,0,2,0],[1,3,2,3],[1,2,2,2],[1,1,2,1]]}
["③評定の入力"]
["No","組","番","生徒名",{"$f":"IF(①中学校名!$D$13=\"義務教育学校\",\"７学年評定\",\"１学年評定\")","v":"１学年評定"},null,null,null,null,null,null,null,null,{"$f":"IF(①中学校名!$D$13=\"義務教育学校\",\"８学年評定\",\"２学年評定\")","v":"２学年評定"},null,null,null,null,null,null,null,null,{"$f":"IF(①中学校名!$D$13=\"義務教育学校\",\"９学年評定\",\"３学年評定\")","v":"３学年評定"}]
[null,null,null,null,"国","社","数","理","音","美","体","家","英","国","社","数","理","音","美","体","家","英","国","社","数","理","音","美","体","家","英"]
["（例）",3,2,"私学　協子",4,5,3,4,4,4,4,4,5,3,4,4,4,4,4,5,5,3,4,4,4,3,4,4,5,4,4]
[1,{"$f":"IF(②氏名・生年月日・入卒!B6=\"\",\"\",VLOOKUP(A5,②氏名・生年月日・入卒!$A$6:$D$105,2))","v":""},{"$f":"IF(②氏名・生年月日・入卒!B6=\"\",\"\",VLOOKUP(A5,②氏名・生年月日・入卒!$A$6:$D$105,3))","v":""},{"$f":"IF(②氏名・生年月日・入卒!B6=\"\",\"\",VLOOKUP(A5,②氏名・生年月日・入卒!$A$6:$D$105,4))","v":""}]
[2,{"$f":"IF(②氏名・生年月日・入卒!B7=\"\",\"\",VLOOKUP(A6,②氏名・生年月日・入卒!$A$6:$D$105,2))","v":""},{"$f":"IF(②氏名・生年月日・入卒!B7=\"\",\"\",VLOOKUP(A6,②氏名・生年月日・入卒!$A$6:$D$105,3))","v":""},{"$f":"IF(②氏名・生年月日・入卒!B7=\"\",\"\",VLOOKUP(A6,②氏名・生年月日・入卒!$A$6:$D$105,4))","v":""}]
[3,{"$f":"IF(②氏名・生年月日・入卒!B8=\"\",\"\",VLOOKUP(A7,②氏名・生年月日・入卒!$A$6:$D$105,2))","v":""},{"$f":"IF(②氏名・生年月日・入卒!B8=\"\",\"\",VLOOKUP(A7,②氏名・生年月日・入卒!$A$6:$D$105,3))","v":""},{"$f":"IF(②氏名・生年月日・入卒!B8=\"\",\"\",VLOOKUP(A7,②氏名・生年月日・入卒!$A$6:$D$105,4))","v":""}]
[4,{"$f":"IF(②氏名・生年月日・入卒!B9=\"\",\"\",VLOOKUP(A8,②氏名・生年月日・入卒!$A$6:$D$105,2))","v":""},{"$f":"IF(②氏名・生年月日・入卒!B9=\"\",\"\",VLOOKUP(A8,②氏名・生年月日・入卒!$A$6:$D$105,3))","v":""},{"$f":"IF(②氏名・生年月日・入卒!B9=\"\",\"\",VLOOKUP(A8,②氏名・生年月日・入卒!$A$6:$D$105,4))","v":""}]
[5,{"$f":"IF(②氏名・生年月日・入卒!B10=\"\",\"\",VLOOKUP(A9,②氏名・生年月日・入卒!$A$6:$D$105,2))","v":""},{"$f":"IF(②氏名・生年月日・入卒!B10=\"\",\"\",VLOOKUP(A9,②氏名・生年月日・入卒!$A$6:$D$105,3))","v":""},{"$f":"IF(②氏名・生年月日・入卒!B10=\"\",\"\",VLOOKUP(A9,②氏名・生年月日・入卒!$A$6:$D$105,4))","v":""}]
[6,{"$f":"IF(②氏名・生年月日・入卒!B11=\"\",\"\",VLOOKUP(A10,②氏名・生年月日・入卒!$A$6:$D$105,2))","v":""},{"$f":"IF(②氏名・生年月日・入卒!B11=\"\",\"\",VLOOKUP(A10,②氏名・生年月日・入卒!$A$6:$D$105,3))","v":""},{"$f":"IF(②氏名・生年月日・入卒!B11=\"\",\"\",VLOOKUP(A10,②氏名・生年月日・入卒!$A$6:$D$105,4))","v":""}]
[7,{"$f":"IF(②氏名・生年月日・入卒!B12=\"\",\"\",VLOOKUP(A11,②氏名・生年月日・入卒!$A$6:$D$105,2))","v":""},{"$f":"IF(②氏名・生年月日・入卒!B12=\"\",\"\",VLOOKUP(A11,②氏名・生年月日・入卒!$A$6:$D$105,3))","v":""},{"$f":"IF(②氏名・生年月日・入卒!B12=\"\",\"\",VLOOKUP(A11,②氏名・生年月日・入卒!$A$6:$D$105,4))","v":""}]
[8,{"$f":"IF(②氏名・生年月日・入卒!B13=\"\",\"\",VLOOKUP(A12,②氏名・生年月日・入卒!$A$6:$D$105,2))","v":""},{"$f":"IF(②氏名・生年月日・入卒!B13=\"\",\"\",VLOOKUP(A12,②氏名・生年月日・入卒!$A$6:$D$105,3))","v":""},{"$f":"IF(②氏名・生年月日・入卒!B13=\"\",\"\",VLOOKUP(A12,②氏名・生年月日・入卒!$A$6:$D$105,4))","v":""}]
[9,{"$f":"IF(②氏名・生年月日・入卒!B14=\"\",\"\",VLOOKUP(A13,②氏名・生年月日・入卒!$A$6:$D$105,2))","v":""},{"$f":"IF(②氏名・生年月日・入卒!B14=\"\",\"\",VLOOKUP(A13,②氏名・生年月日・入卒!$A$6:$D$105,3))","v":""},{"$f":"IF(②氏名・生年月日・入卒!B14=\"\",\"\",VLOOKUP(A13,②氏名・生年月日・入卒!$A$6:$D$105,4))","v":""}]
[10,{"$f":"IF(②氏名・生年月日・入卒!B15=\"\",\"\",VLOOKUP(A14,②氏名・生年月日・入卒!$A$6:$D$105,2))","v":""},{"$f":"IF(②氏名・生年月日・入卒!B15=\"\",\"\",VLOOKUP(A14,②氏名・生年月日・入卒!$A$6:$D$105,3))","v":""},{"$f":"IF(②氏名・生年月日・入卒!B15=\"\",\"\",VLOOKUP(A14,②氏名・生年月日・入卒!$A$6:$D$105,4))","v":""}]
[11,{"$f":"IF(②氏名・生年月日・入卒!B16=\"\",\"\",VLOOKUP(A15,②氏名・生年月日・入卒!$A$6:$D$105,2))","v":""},{"$f":"IF(②氏名・生年月日・入卒!B16=\"\",\"\",VLOOKUP(A15,②氏名・生年月日・入卒!$A$6:$D$105,3))","v":""},{"$f":"IF(②氏名・生年月日・入卒!B16=\"\",\"\",VLOOKUP(A15,②氏名・生年月日・入卒!$A$6:$D$105,4))","v":""}]
[12,{"$f":"IF(②氏名・生年月日・入卒!B17=\"\",\"\",VLOOKUP(A16,②氏名・生年月日・入卒!$A$6:$D$105,2))","v":""},{"$f":"IF(②氏名・生年月日・入卒!B17=\"\",\"\",VLOOKUP(A16,②氏名・生年月日・入卒!$A$6:$D$105,3))","v":""},{"$f":"IF(②氏名・生年月日・入卒!B17=\"\",\"\",VLOOKUP(A16,②氏名・生年月日・入卒!$A$6:$D$105,4))","v":""}]
[13,{"$f":"IF(②氏名・生年月日・入卒!B18=\"\",\"\",VLOOKUP(A17,②氏名・生年月日・入卒!$A$6:$D$105,2))","v":""},{"$f":"IF(②氏名・生年月日・入卒!B18=\"\",\"\",VLOOKUP(A17,②氏名・生年月日・入卒!$A$6:$D$105,3))","v":""},{"$f":"IF(②氏名・生年月日・入卒!B18=\"\",\"\",VLOOKUP(A17,②氏名・生年月日・入卒!$A$6:$D$105,4))","v":""}]
[14,{"$f":"IF(②氏名・生年月日・入卒!B19=\"\",\"\",VLOOKUP(A18,②氏名・生年月日・入卒!$A$6:$D$105,2))","v":""},{"$f":"IF(②氏名・生年月日・入卒!B19=\"\",\"\",VLOOKUP(A18,②氏名・生年月日・入卒!$A$6:$D$105,3))","v":""},{"$f":"IF(②氏名・生年月日・入卒!B19=\"\",\"\",VLOOKUP(A18,②氏名・生年月日・入卒!$A$6:$D$105,4))","v":""}]
[15,{"$f":"IF(②氏名・生年月日・入卒!B20=\"\",\"\",VLOOKUP(A19,②氏名・生年月日・入卒!$A$6:$D$105,2))","v":""},{"$f":"IF(②氏名・生年月日・入卒!B20=\"\",\"\",VLOOKUP(A19,②氏名・生年月日・入卒!$A$6:$D$105,3))","v":""},{"$f":"IF(②氏名・生年月日・入卒!B20=\"\",\"\",VLOOKUP(A19,②氏名・生年月日・入卒!$A$6:$D$105,4))","v":""}]
[16,{"$f":"IF(②氏名・生年月日・入卒!B21=\"\",\"\",VLOOKUP(A20,②氏名・生年月日・入卒!$A$6:$D$105,2))","v":""},{"$f":"IF(②氏名・生年月日・入卒!B21=\"\",\"\",VLOOKUP(A20,②氏名・生年月日・入卒!$A$6:$D$105,3))","v":""},{"$f":"IF(②氏名・生年月日・入卒!B21=\"\",\"\",VLOOKUP(A20,②氏名・生年月日・入卒!$A$6:$D$105,4))","v":""}]
[17,{"$f":"IF(②氏名・生年月日・入卒!B22=\"\",\"\",VLOOKUP(A21,②氏名・生年月日・入卒!$A$6:$D$105,2))","v":""},{"$f":"IF(②氏名・生年月日・入卒!B22=\"\",\"\",VLOOKUP(A21,②氏名・生年月日・入卒!$A$6:$D$105,3))","v":""},{"$f":"IF(②氏名・生年月日・入卒!B22=\"\",\"\",VLOOKUP(A21,②氏名・生年月日・入卒!$A$6:$D$105,4))","v":""}]
[18,{"$f":"IF(②氏名・生年月日・入卒!B23=\"\",\"\",VLOOKUP(A22,②氏名・生年月日・入卒!$A$6:$D$105,2))","v":""},{"$f":"IF(②氏名・生年月日・入卒!B23=\"\",\"\",VLOOKUP(A22,②氏名・生年月日・入卒!$A$6:$D$105,3))","v":""},{"$f":"IF(②氏名・生年月日・入卒!B23=\"\",\"\",VLOOKUP(A22,②氏名・生年月日・入卒!$A$6:$D$105,4))","v":""}]
[19,{"$f":"IF(②氏名・生年月日・入卒!B24=\"\",\"\",VLOOKUP(A23,②氏名・生年月日・入卒!$A$6:$D$105,2))","v":""},{"$f":"IF(②氏名・生年月日・入卒!B24=\"\",\"\",VLOOKUP(A23,②氏名・生年月日・入卒!$A$6:$D$105,3))","v":""},{"$f":"IF(②氏名・生年月日・入卒!B24=\"\",\"\",VLOOKUP(A23,②氏名・生年月日・入卒!$A$6:$D$105,4))","v":""}]
[20,{"$f":"IF(②氏名・生年月日・入卒!B25=\"\",\"\",VLOOKUP(A24,②氏名・生年月日・入卒!$A$6:$D$105,2))","v":""},{"$f":"IF(②氏名・生年月日・入卒!B25=\"\",\"\",VLOOKUP(A24,②氏名・生年月日・入卒!$A$6:$D$105,3))","v":""},{"$f":"IF(②氏名・生年月日・入卒!B25=\"\",\"\",VLOOKUP(A24,②氏名・生年月日・入卒!$A$6:$D$105,4))","v":""}]
[21,{"$f":"IF(②氏名・生年月日・入卒!B26=\"\",\"\",VLOOKUP(A25,②氏名・生年月日・入卒!$A$6:$D$105,2))","v":""},{"$f":"IF(②氏名・生年月日・入卒!B26=\"\",\"\",VLOOKUP(A25,②氏名・生年月日・入卒!$A$6:$D$105,3))","v":""},{"$f":"IF(②氏名・生年月日・入卒!B26=\"\",\"\",VLOOKUP(A25,②氏名・生年月日・入卒!$A$6:$D$105,4))","v":""}]
[22,{"$f":"IF(②氏名・生年月日・入卒!B27=\"\",\"\",VLOOKUP(A26,②氏名・生年月日・入卒!$A$6:$D$105,2))","v":""},{"$f":"IF(②氏名・生年月日・入卒!B27=\"\",\"\",VLOOKUP(A26,②氏名・生年月日・入卒!$A$6:$D$105,3))","v":""},{"$f":"IF(②氏名・生年月日・入卒!B27=\"\",\"\",VLOOKUP(A26,②氏名・生年月日・入卒!$A$6:$D$105,4))","v":""}]
[23,{"$f":"IF(②氏名・生年月日・入卒!B28=\"\",\"\",VLOOKUP(A27,②氏名・生年月日・入卒!$A$6:$D$105,2))","v":""},{"$f":"IF(②氏名・生年月日・入卒!B28=\"\",\"\",VLOOKUP(A27,②氏名・生年月日・入卒!$A$6:$D$105,3))","v":""},{"$f":"IF(②氏名・生年月日・入卒!B28=\"\",\"\",VLOOKUP(A27,②氏名・生年月日・入卒!$A$6:$D$105,4))","v":""}]
[24,{"$f":"IF(②氏名・生年月日・入卒!B29=\"\",\"\",VLOOKUP(A28,②氏名・生年月日・入卒!$A$6:$D$105,2))","v":""},{"$f":"IF(②氏名・生年月日・入卒!B29=\"\",\"\",VLOOKUP(A28,②氏名・生年月日・入卒!$A$6:$D$105,3))","v":""},{"$f":"IF(②氏名・生年月日・入卒!B29=\"\",\"\",VLOOKUP(A28,②氏名・生年月日・入卒!$A$6:$D$105,4))","v":""}]
[25,{"$f":"IF(②氏名・生年月日・入卒!B30=\"\",\"\",VLOOKUP(A29,②氏名・生年月日・入卒!$A$6:$D$105,2))","v":""},{"$f":"IF(②氏名・生年月日・入卒!B30=\"\",\"\",VLOOKUP(A29,②氏名・生年月日・入卒!$A$6:$D$105,3))","v":""},{"$f":"IF(②氏名・生年月日・入卒!B30=\"\",\"\",VLOOKUP(A29,②氏名・生年月日・入卒!$A$6:$D$105,4))","v":""}]
[26,{"$f":"IF(②氏名・生年月日・入卒!B31=\"\",\"\",VLOOKUP(A30,②氏名・生年月日・入卒!$A$6:$D$105,2))","v":""},{"$f":"IF(②氏名・生年月日・入卒!B31=\"\",\"\",VLOOKUP(A30,②氏名・生年月日・入卒!$A$6:$D$105,3))","v":""},{"$f":"IF(②氏名・生年月日・入卒!B31=\"\",\"\",VLOOKUP(A30,②氏名・生年月日・入卒!$A$6:$D$105,4))","v":""}]
[27,{"$f":"IF(②氏名・生年月日・入卒!B32=\"\",\"\",VLOOKUP(A31,②氏名・生年月日・入卒!$A$6:$D$105,2))","v":""},{"$f":"IF(②氏名・生年月日・入卒!B32=\"\",\"\",VLOOKUP(A31,②氏名・生年月日・入卒!$A$6:$D$105,3))","v":""},{"$f":"IF(②氏名・生年月日・入卒!B32=\"\",\"\",VLOOKUP(A31,②氏名・生年月日・入卒!$A$6:$D$105,4))","v":""}]
[28,{"$f":"IF(②氏名・生年月日・入卒!B33=\"\",\"\",VLOOKUP(A32,②氏名・生年月日・入卒!$A$6:$D$105,2))","v":""},{"$f":"IF(②氏名・生年月日・入卒!B33=\"\",\"\",VLOOKUP(A32,②氏名・生年月日・入卒!$A$6:$D$105,3))","v":""},{"$f":"IF(②氏名・生年月日・入卒!B33=\"\",\"\",VLOOKUP(A32,②氏名・生年月日・入卒!$A$6:$D$105,4))","v":""}]
[29,{"$f":"IF(②氏名・生年月日・入卒!B34=\"\",\"\",VLOOKUP(A33,②氏名・生年月日・入卒!$A$6:$D$105,2))","v":""},{"$f":"IF(②氏名・生年月日・入卒!B34=\"\",\"\",VLOOKUP(A33,②氏名・生年月日・入卒!$A$6:$D$105,3))","v":""},{"$f":"IF(②氏名・生年月日・入卒!B34=\"\",\"\",VLOOKUP(A33,②氏名・生年月日・入卒!$A$6:$D$105,4))","v":""}]
[30,{"$f":"IF(②氏名・生年月日・入卒!B35=\"\",\"\",VLOOKUP(A34,②氏名・生年月日・入卒!$A$6:$D$105,2))","v":""},{"$f":"IF(②氏名・生年月日・入卒!B35=\"\",\"\",VLOOKUP(A34,②氏名・生年月日・入卒!$A$6:$D$105,3))","v":""},{"$f":"IF(②氏名・生年月日・入卒!B35=\"\",\"\",VLOOKUP(A34,②氏名・生年月日・入卒!$A$6:$D$105,4))","v":""}]
[31,{"$f":"IF(②氏名・生年月日・入卒!B36=\"\",\"\",VLOOKUP(A35,②氏名・生年月日・入卒!$A$6:$D$105,2))","v":""},{"$f":"IF(②氏名・生年月日・入卒!B36=\"\",\"\",VLOOKUP(A35,②氏名・生年月日・入卒!$A$6:$D$105,3))","v":""},{"$f":"IF(②氏名・生年月日・入卒!B36=\"\",\"\",VLOOKUP(A35,②氏名・生年月日・入卒!$A$6:$D$105,4))","v":""}]
[32,{"$f":"IF(②氏名・生年月日・入卒!B37=\"\",\"\",VLOOKUP(A36,②氏名・生年月日・入卒!$A$6:$D$105,2))","v":""},{"$f":"IF(②氏名・生年月日・入卒!B37=\"\",\"\",VLOOKUP(A36,②氏名・生年月日・入卒!$A$6:$D$105,3))","v":""},{"$f":"IF(②氏名・生年月日・入卒!B37=\"\",\"\",VLOOKUP(A36,②氏名・生年月日・入卒!$A$6:$D$105,4))","v":""}]
[33,{"$f":"IF(②氏名・生年月日・入卒!B38=\"\",\"\",VLOOKUP(A37,②氏名・生年月日・入卒!$A$6:$D$105,2))","v":""},{"$f":"IF(②氏名・生年月日・入卒!B38=\"\",\"\",VLOOKUP(A37,②氏名・生年月日・入卒!$A$6:$D$105,3))","v":""},{"$f":"IF(②氏名・生年月日・入卒!B38=\"\",\"\",VLOOKUP(A37,②氏名・生年月日・入卒!$A$6:$D$105,4))","v":""}]
[34,{"$f":"IF(②氏名・生年月日・入卒!B39=\"\",\"\",VLOOKUP(A38,②氏名・生年月日・入卒!$A$6:$D$105,2))","v":""},{"$f":"IF(②氏名・生年月日・入卒!B39=\"\",\"\",VLOOKUP(A38,②氏名・生年月日・入卒!$A$6:$D$105,3))","v":""},{"$f":"IF(②氏名・生年月日・入卒!B39=\"\",\"\",VLOOKUP(A38,②氏名・生年月日・入卒!$A$6:$D$105,4))","v":""}]
[35,{"$f":"IF(②氏名・生年月日・入卒!B40=\"\",\"\",VLOOKUP(A39,②氏名・生年月日・入卒!$A$6:$D$105,2))","v":""},{"$f":"IF(②氏名・生年月日・入卒!B40=\"\",\"\",VLOOKUP(A39,②氏名・生年月日・入卒!$A$6:$D$105,3))","v":""},{"$f":"IF(②氏名・生年月日・入卒!B40=\"\",\"\",VLOOKUP(A39,②氏名・生年月日・入卒!$A$6:$D$105,4))","v":""}]
[36,{"$f":"IF(②氏名・生年月日・入卒!B41=\"\",\"\",VLOOKUP(A40,②氏名・生年月日・入卒!$A$6:$D$105,2))","v":""},{"$f":"IF(②氏名・生年月日・入卒!B41=\"\",\"\",VLOOKUP(A40,②氏名・生年月日・入卒!$A$6:$D$105,3))","v":""},{"$f":"IF(②氏名・生年月日・入卒!B41=\"\",\"\",VLOOKUP(A40,②氏名・生年月日・入卒!$A$6:$D$105,4))","v":""}]
[37,{"$f":"IF(②氏名・生年月日・入卒!B42=\"\",\"\",VLOOKUP(A41,②氏名・生年月日・入卒!$A$6:$D$105,2))","v":""},{"$f":"IF(②氏名・生年月日・入卒!B42=\"\",\"\",VLOOKUP(A41,②氏名・生年月日・入卒!$A$6:$D$105,3))","v":""},{"$f":"IF(②氏名・生年月日・入卒!B42=\"\",\"\",VLOOKUP(A41,②氏名・生年月日・入卒!$A$6:$D$105,4))","v":""}]
[38,{"$f":"IF(②氏名・生年月日・入卒!B43=\"\",\"\",VLOOKUP(A42,②氏名・生年月日・入卒!$A$6:$D$105,2))","v":""},{"$f":"IF(②氏名・生年月日・入卒!B43=\"\",\"\",VLOOKUP(A42,②氏名・生年月日・入卒!$A$6:$D$105,3))","v":""},{"$f":"IF(②氏名・生年月日・入卒!B43=\"\",\"\",VLOOKUP(A42,②氏名・生年月日・入卒!$A$6:$D$105,4))","v":""}]
[39,{"$f":"IF(②氏名・生年月日・入卒!B44=\"\",\"\",VLOOKUP(A43,②氏名・生年月日・入卒!$A$6:$D$105,2))","v":""},{"$f":"IF(②氏名・生年月日・入卒!B44=\"\",\"\",VLOOKUP(A43,②氏名・生年月日・入卒!$A$6:$D$105,3))","v":""},{"$f":"IF(②氏名・生年月日・入卒!B44=\"\",\"\",VLOOKUP(A43,②氏名・生年月日・入卒!$A$6:$D$105,4))","v":""}]
[40,{"$f":"IF(②氏名・生年月日・入卒!B45=\"\",\"\",VLOOKUP(A44,②氏名・生年月日・入卒!$A$6:$D$105,2))","v":""},{"$f":"IF(②氏名・生年月日・入卒!B45=\"\",\"\",VLOOKUP(A44,②氏名・生年月日・入卒!$A$6:$D$105,3))","v":""},{"$f":"IF(②氏名・生年月日・入卒!B45=\"\",\"\",VLOOKUP(A44,②氏名・生年月日・入卒!$A$6:$D$105,4))","v":""}]
[41,{"$f":"IF(②氏名・生年月日・入卒!B46=\"\",\"\",VLOOKUP(A45,②氏名・生年月日・入卒!$A$6:$D$105,2))","v":""},{"$f":"IF(②氏名・生年月日・入卒!B46=\"\",\"\",VLOOKUP(A45,②氏名・生年月日・入卒!$A$6:$D$105,3))","v":""},{"$f":"IF(②氏名・生年月日・入卒!B46=\"\",\"\",VLOOKUP(A45,②氏名・生年月日・入卒!$A$6:$D$105,4))","v":""}]
[42,{"$f":"IF(②氏名・生年月日・入卒!B47=\"\",\"\",VLOOKUP(A46,②氏名・生年月日・入卒!$A$6:$D$105,2))","v":""},{"$f":"IF(②氏名・生年月日・入卒!B47=\"\",\"\",VLOOKUP(A46,②氏名・生年月日・入卒!$A$6:$D$105,3))","v":""},{"$f":"IF(②氏名・生年月日・入卒!B47=\"\",\"\",VLOOKUP(A46,②氏名・生年月日・入卒!$A$6:$D$105,4))","v":""}]
[43,{"$f":"IF(②氏名・生年月日・入卒!B48=\"\",\"\",VLOOKUP(A47,②氏名・生年月日・入卒!$A$6:$D$105,2))","v":""},{"$f":"IF(②氏名・生年月日・入卒!B48=\"\",\"\",VLOOKUP(A47,②氏名・生年月日・入卒!$A$6:$D$105,3))","v":""},{"$f":"IF(②氏名・生年月日・入卒!B48=\"\",\"\",VLOOKUP(A47,②氏名・生年月日・入卒!$A$6:$D$105,4))","v":""}]
[44,{"$f":"IF(②氏名・生年月日・入卒!B49=\"\",\"\",VLOOKUP(A48,②氏名・生年月日・入卒!$A$6:$D$105,2))","v":""},{"$f":"IF(②氏名・生年月日・入卒!B49=\"\",\"\",VLOOKUP(A48,②氏名・生年月日・入卒!$A$6:$D$105,3))","v":""},{"$f":"IF(②氏名・生年月日・入卒!B49=\"\",\"\",VLOOKUP(A48,②氏名・生年月日・入卒!$A$6:$D$105,4))","v":""}]
[45,{"$f":"IF(②氏名・生年月日・入卒!B50=\"\",\"\",VLOOKUP(A49,②氏名・生年月日・入卒!$A$6:$D$105,2))","v":""},{"$f":"IF(②氏名・生年月日・入卒!B50=\"\",\"\",VLOOKUP(A49,②氏名・生年月日・入卒!$A$6:$D$105,3))","v":""},{"$f":"IF(②氏名・生年月日・入卒!B50=\"\",\"\",VLOOKUP(A49,②氏名・生年月日・入卒!$A$6:$D$105,4))","v":""}]
[46,{"$f":"IF(②氏名・生年月日・入卒!B51=\"\",\"\",VLOOKUP(A50,②氏名・生年月日・入卒!$A$6:$D$105,2))","v":""},{"$f":"IF(②氏名・生年月日・入卒!B51=\"\",\"\",VLOOKUP(A50,②氏名・生年月日・入卒!$A$6:$D$105,3))","v":""},{"$f":"IF(②氏名・生年月日・入卒!B51=\"\",\"\",VLOOKUP(A50,②氏名・生年月日・入卒!$A$6:$D$105,4))","v":""}]
[47,{"$f":"IF(②氏名・生年月日・入卒!B52=\"\",\"\",VLOOKUP(A51,②氏名・生年月日・入卒!$A$6:$D$105,2))","v":""},{"$f":"IF(②氏名・生年月日・入卒!B52=\"\",\"\",VLOOKUP(A51,②氏名・生年月日・入卒!$A$6:$D$105,3))","v":""},{"$f":"IF(②氏名・生年月日・入卒!B52=\"\",\"\",VLOOKUP(A51,②氏名・生年月日・入卒!$A$6:$D$105,4))","v":""}]
[48,{"$f":"IF(②氏名・生年月日・入卒!B53=\"\",\"\",VLOOKUP(A52,②氏名・生年月日・入卒!$A$6:$D$105,2))","v":""},{"$f":"IF(②氏名・生年月日・入卒!B53=\"\",\"\",VLOOKUP(A52,②氏名・生年月日・入卒!$A$6:$D$105,3))","v":""},{"$f":"IF(②氏名・生年月日・入卒!B53=\"\",\"\",VLOOKUP(A52,②氏名・生年月日・入卒!$A$6:$D$105,4))","v":""}]
[49,{"$f":"IF(②氏名・生年月日・入卒!B54=\"\",\"\",VLOOKUP(A53,②氏名・生年月日・入卒!$A$6:$D$105,2))","v":""},{"$f":"IF(②氏名・生年月日・入卒!B54=\"\",\"\",VLOOKUP(A53,②氏名・生年月日・入卒!$A$6:$D$105,3))","v":""},{"$f":"IF(②氏名・生年月日・入卒!B54=\"\",\"\",VLOOKUP(A53,②氏名・生年月日・入卒!$A$6:$D$105,4))","v":""}]
[50,{"$f":"IF(②氏名・生年月日・入卒!B55=\"\",\"\",VLOOKUP(A54,②氏名・生年月日・入卒!$A$6:$D$105,2))","v":""},{"$f":"IF(②氏名・生年月日・入卒!B55=\"\",\"\",VLOOKUP(A54,②氏名・生年月日・入卒!$A$6:$D$105,3))","v":""},{"$f":"IF(②氏名・生年月日・入卒!B55=\"\",\"\",VLOOKUP(A54,②氏名・生年月日・入卒!$A$6:$D$105,4))","v":""}]
[51,{"$f":"IF(②氏名・生年月日・入卒!B56=\"\",\"\",VLOOKUP(A55,②氏名・生年月日・入卒!$A$6:$D$105,2))","v":""},{"$f":"IF(②氏名・生年月日・入卒!B56=\"\",\"\",VLOOKUP(A55,②氏名・生年月日・入卒!$A$6:$D$105,3))","v":""},{"$f":"IF(②氏名・生年月日・入卒!B56=\"\",\"\",VLOOKUP(A55,②氏名・生年月日・入卒!$A$6:$D$105,4))","v":""}]
[52,{"$f":"IF(②氏名・生年月日・入卒!B57=\"\",\"\",VLOOKUP(A56,②氏名・生年月日・入卒!$A$6:$D$105,2))","v":""},{"$f":"IF(②氏名・生年月日・入卒!B57=\"\",\"\",VLOOKUP(A56,②氏名・生年月日・入卒!$A$6:$D$105,3))","v":""},{"$f":"IF(②氏名・生年月日・入卒!B57=\"\",\"\",VLOOKUP(A56,②氏名・生年月日・入卒!$A$6:$D$105,4))","v":""}]
[53,{"$f":"IF(②氏名・生年月日・入卒!B58=\"\",\"\",VLOOKUP(A57,②氏名・生年月日・入卒!$A$6:$D$105,2))","v":""},{"$f":"IF(②氏名・生年月日・入卒!B58=\"\",\"\",VLOOKUP(A57,②氏名・生年月日・入卒!$A$6:$D$105,3))","v":""},{"$f":"IF(②氏名・生年月日・入卒!B58=\"\",\"\",VLOOKUP(A57,②氏名・生年月日・入卒!$A$6:$D$105,4))","v":""}]
[54,{"$f":"IF(②氏名・生年月日・入卒!B59=\"\",\"\",VLOOKUP(A58,②氏名・生年月日・入卒!$A$6:$D$105,2))","v":""},{"$f":"IF(②氏名・生年月日・入卒!B59=\"\",\"\",VLOOKUP(A58,②氏名・生年月日・入卒!$A$6:$D$105,3))","v":""},{"$f":"IF(②氏名・生年月日・入卒!B59=\"\",\"\",VLOOKUP(A58,②氏名・生年月日・入卒!$A$6:$D$105,4))","v":""}]
[55,{"$f":"IF(②氏名・生年月日・入卒!B60=\"\",\"\",VLOOKUP(A59,②氏名・生年月日・入卒!$A$6:$D$105,2))","v":""},{"$f":"IF(②氏名・生年月日・入卒!B60=\"\",\"\",VLOOKUP(A59,②氏名・生年月日・入卒!$A$6:$D$105,3))","v":""},{"$f":"IF(②氏名・生年月日・入卒!B60=\"\",\"\",VLOOKUP(A59,②氏名・生年月日・入卒!$A$6:$D$105,4))","v":""}]
[56,{"$f":"IF(②氏名・生年月日・入卒!B61=\"\",\"\",VLOOKUP(A60,②氏名・生年月日・入卒!$A$6:$D$105,2))","v":""},{"$f":"IF(②氏名・生年月日・入卒!B61=\"\",\"\",VLOOKUP(A60,②氏名・生年月日・入卒!$A$6:$D$105,3))","v":""},{"$f":"IF(②氏名・生年月日・入卒!B61=\"\",\"\",VLOOKUP(A60,②氏名・生年月日・入卒!$A$6:$D$105,4))","v":""}]
[57,{"$f":"IF(②氏名・生年月日・入卒!B62=\"\",\"\",VLOOKUP(A61,②氏名・生年月日・入卒!$A$6:$D$105,2))","v":""},{"$f":"IF(②氏名・生年月日・入卒!B62=\"\",\"\",VLOOKUP(A61,②氏名・生年月日・入卒!$A$6:$D$105,3))","v":""},{"$f":"IF(②氏名・生年月日・入卒!B62=\"\",\"\",VLOOKUP(A61,②氏名・生年月日・入卒!$A$6:$D$105,4))","v":""}]
[58,{"$f":"IF(②氏名・生年月日・入卒!B63=\"\",\"\",VLOOKUP(A62,②氏名・生年月日・入卒!$A$6:$D$105,2))","v":""},{"$f":"IF(②氏名・生年月日・入卒!B63=\"\",\"\",VLOOKUP(A62,②氏名・生年月日・入卒!$A$6:$D$105,3))","v":""},{"$f":"IF(②氏名・生年月日・入卒!B63=\"\",\"\",VLOOKUP(A62,②氏名・生年月日・入卒!$A$6:$D$105,4))","v":""}]
[59,{"$f":"IF(②氏名・生年月日・入卒!B64=\"\",\"\",VLOOKUP(A63,②氏名・生年月日・入卒!$A$6:$D$105,2))","v":""},{"$f":"IF(②氏名・生年月日・入卒!B64=\"\",\"\",VLOOKUP(A63,②氏名・生年月日・入卒!$A$6:$D$105,3))","v":""},{"$f":"IF(②氏名・生年月日・入卒!B64=\"\",\"\",VLOOKUP(A63,②氏名・生年月日・入卒!$A$6:$D$105,4))","v":""}]
[60,{"$f":"IF(②氏名・生年月日・入卒!B65=\"\",\"\",VLOOKUP(A64,②氏名・生年月日・入卒!$A$6:$D$105,2))","v":""},{"$f":"IF(②氏名・生年月日・入卒!B65=\"\",\"\",VLOOKUP(A64,②氏名・生年月日・入卒!$A$6:$D$105,3))","v":""},{"$f":"IF(②氏名・生年月日・入卒!B65=\"\",\"\",VLOOKUP(A64,②氏名・生年月日・入卒!$A$6:$D$105,4))","v":""}]
[61,{"$f":"IF(②氏名・生年月日・入卒!B66=\"\",\"\",VLOOKUP(A65,②氏名・生年月日・入卒!$A$6:$D$105,2))","v":""},{"$f":"IF(②氏名・生年月日・入卒!B66=\"\",\"\",VLOOKUP(A65,②氏名・生年月日・入卒!$A$6:$D$105,3))","v":""},{"$f":"IF(②氏名・生年月日・入卒!B66=\"\",\"\",VLOOKUP(A65,②氏名・生年月日・入卒!$A$6:$D$105,4))","v":""}]
[62,{"$f":"IF(②氏名・生年月日・入卒!B67=\"\",\"\",VLOOKUP(A66,②氏名・生年月日・入卒!$A$6:$D$105,2))","v":""},{"$f":"IF(②氏名・生年月日・入卒!B67=\"\",\"\",VLOOKUP(A66,②氏名・生年月日・入卒!$A$6:$D$105,3))","v":""},{"$f":"IF(②氏名・生年月日・入卒!B67=\"\",\"\",VLOOKUP(A66,②氏名・生年月日・入卒!$A$6:$D$105,4))","v":""}]
[63,{"$f":"IF(②氏名・生年月日・入卒!B68=\"\",\"\",VLOOKUP(A67,②氏名・生年月日・入卒!$A$6:$D$105,2))","v":""},{"$f":"IF(②氏名・生年月日・入卒!B68=\"\",\"\",VLOOKUP(A67,②氏名・生年月日・入卒!$A$6:$D$105,3))","v":""},{"$f":"IF(②氏名・生年月日・入卒!B68=\"\",\"\",VLOOKUP(A67,②氏名・生年月日・入卒!$A$6:$D$105,4))","v":""}]
[64,{"$f":"IF(②氏名・生年月日・入卒!B69=\"\",\"\",VLOOKUP(A68,②氏名・生年月日・入卒!$A$6:$D$105,2))","v":""},{"$f":"IF(②氏名・生年月日・入卒!B69=\"\",\"\",VLOOKUP(A68,②氏名・生年月日・入卒!$A$6:$D$105,3))","v":""},{"$f":"IF(②氏名・生年月日・入卒!B69=\"\",\"\",VLOOKUP(A68,②氏名・生年月日・入卒!$A$6:$D$105,4))","v":""}]
[65,{"$f":"IF(②氏名・生年月日・入卒!B70=\"\",\"\",VLOOKUP(A69,②氏名・生年月日・入卒!$A$6:$D$105,2))","v":""},{"$f":"IF(②氏名・生年月日・入卒!B70=\"\",\"\",VLOOKUP(A69,②氏名・生年月日・入卒!$A$6:$D$105,3))","v":""},{"$f":"IF(②氏名・生年月日・入卒!B70=\"\",\"\",VLOOKUP(A69,②氏名・生年月日・入卒!$A$6:$D$105,4))","v":""}]
[66,{"$f":"IF(②氏名・生年月日・入卒!B71=\"\",\"\",VLOOKUP(A70,②氏名・生年月日・入卒!$A$6:$D$105,2))","v":""},{"$f":"IF(②氏名・生年月日・入卒!B71=\"\",\"\",VLOOKUP(A70,②氏名・生年月日・入卒!$A$6:$D$105,3))","v":""},{"$f":"IF(②氏名・生年月日・入卒!B71=\"\",\"\",VLOOKUP(A70,②氏名・生年月日・入卒!$A$6:$D$105,4))","v":""}]
[67,{"$f":"IF(②氏名・生年月日・入卒!B72=\"\",\"\",VLOOKUP(A71,②氏名・生年月日・入卒!$A$6:$D$105,2))","v":""},{"$f":"IF(②氏名・生年月日・入卒!B72=\"\",\"\",VLOOKUP(A71,②氏名・生年月日・入卒!$A$6:$D$105,3))","v":""},{"$f":"IF(②氏名・生年月日・入卒!B72=\"\",\"\",VLOOKUP(A71,②氏名・生年月日・入卒!$A$6:$D$105,4))","v":""}]
[68,{"$f":"IF(②氏名・生年月日・入卒!B73=\"\",\"\",VLOOKUP(A72,②氏名・生年月日・入卒!$A$6:$D$105,2))","v":""},{"$f":"IF(②氏名・生年月日・入卒!B73=\"\",\"\",VLOOKUP(A72,②氏名・生年月日・入卒!$A$6:$D$105,3))","v":""},{"$f":"IF(②氏名・生年月日・入卒!B73=\"\",\"\",VLOOKUP(A72,②氏名・生年月日・入卒!$A$6:$D$105,4))","v":""}]
[69,{"$f":"IF(②氏名・生年月日・入卒!B74=\"\",\"\",VLOOKUP(A73,②氏名・生年月日・入卒!$A$6:$D$105,2))","v":""},{"$f":"IF(②氏名・生年月日・入卒!B74=\"\",\"\",VLOOKUP(A73,②氏名・生年月日・入卒!$A$6:$D$105,3))","v":""},{"$f":"IF(②氏名・生年月日・入卒!B74=\"\",\"\",VLOOKUP(A73,②氏名・生年月日・入卒!$A$6:$D$105,4))","v":""}]
[70,{"$f":"IF(②氏名・生年月日・入卒!B75=\"\",\"\",VLOOKUP(A74,②氏名・生年月日・入卒!$A$6:$D$105,2))","v":""},{"$f":"IF(②氏名・生年月日・入卒!B75=\"\",\"\",VLOOKUP(A74,②氏名・生年月日・入卒!$A$6:$D$105,3))","v":""},{"$f":"IF(②氏名・生年月日・入卒!B75=\"\",\"\",VLOOKUP(A74,②氏名・生年月日・入卒!$A$6:$D$105,4))","v":""}]
[71,{"$f":"IF(②氏名・生年月日・入卒!B76=\"\",\"\",VLOOKUP(A75,②氏名・生年月日・入卒!$A$6:$D$105,2))","v":""},{"$f":"IF(②氏名・生年月日・入卒!B76=\"\",\"\",VLOOKUP(A75,②氏名・生年月日・入卒!$A$6:$D$105,3))","v":""},{"$f":"IF(②氏名・生年月日・入卒!B76=\"\",\"\",VLOOKUP(A75,②氏名・生年月日・入卒!$A$6:$D$105,4))","v":""}]
[72,{"$f":"IF(②氏名・生年月日・入卒!B77=\"\",\"\",VLOOKUP(A76,②氏名・生年月日・入卒!$A$6:$D$105,2))","v":""},{"$f":"IF(②氏名・生年月日・入卒!B77=\"\",\"\",VLOOKUP(A76,②氏名・生年月日・入卒!$A$6:$D$105,3))","v":""},{"$f":"IF(②氏名・生年月日・入卒!B77=\"\",\"\",VLOOKUP(A76,②氏名・生年月日・入卒!$A$6:$D$105,4))","v":""}]
[73,{"$f":"IF(②氏名・生年月日・入卒!B78=\"\",\"\",VLOOKUP(A77,②氏名・生年月日・入卒!$A$6:$D$105,2))","v":""},{"$f":"IF(②氏名・生年月日・入卒!B78=\"\",\"\",VLOOKUP(A77,②氏名・生年月日・入卒!$A$6:$D$105,3))","v":""},{"$f":"IF(②氏名・生年月日・入卒!B78=\"\",\"\",VLOOKUP(A77,②氏名・生年月日・入卒!$A$6:$D$105,4))","v":""}]
[74,{"$f":"IF(②氏名・生年月日・入卒!B79=\"\",\"\",VLOOKUP(A78,②氏名・生年月日・入卒!$A$6:$D$105,2))","v":""},{"$f":"IF(②氏名・生年月日・入卒!B79=\"\",\"\",VLOOKUP(A78,②氏名・生年月日・入卒!$A$6:$D$105,3))","v":""},{"$f":"IF(②氏名・生年月日・入卒!B79=\"\",\"\",VLOOKUP(A78,②氏名・生年月日・入卒!$A$6:$D$105,4))","v":""}]
[75,{"$f":"IF(②氏名・生年月日・入卒!B80=\"\",\"\",VLOOKUP(A79,②氏名・生年月日・入卒!$A$6:$D$105,2))","v":""},{"$f":"IF(②氏名・生年月日・入卒!B80=\"\",\"\",VLOOKUP(A79,②氏名・生年月日・入卒!$A$6:$D$105,3))","v":""},{"$f":"IF(②氏名・生年月日・入卒!B80=\"\",\"\",VLOOKUP(A79,②氏名・生年月日・入卒!$A$6:$D$105,4))","v":""}]
[76,{"$f":"IF(②氏名・生年月日・入卒!B81=\"\",\"\",VLOOKUP(A80,②氏名・生年月日・入卒!$A$6:$D$105,2))","v":""},{"$f":"IF(②氏名・生年月日・入卒!B81=\"\",\"\",VLOOKUP(A80,②氏名・生年月日・入卒!$A$6:$D$105,3))","v":""},{"$f":"IF(②氏名・生年月日・入卒!B81=\"\",\"\",VLOOKUP(A80,②氏名・生年月日・入卒!$A$6:$D$105,4))","v":""}]
[77,{"$f":"IF(②氏名・生年月日・入卒!B82=\"\",\"\",VLOOKUP(A81,②氏名・生年月日・入卒!$A$6:$D$105,2))","v":""},{"$f":"IF(②氏名・生年月日・入卒!B82=\"\",\"\",VLOOKUP(A81,②氏名・生年月日・入卒!$A$6:$D$105,3))","v":""},{"$f":"IF(②氏名・生年月日・入卒!B82=\"\",\"\",VLOOKUP(A81,②氏名・生年月日・入卒!$A$6:$D$105,4))","v":""}]
[78,{"$f":"IF(②氏名・生年月日・入卒!B83=\"\",\"\",VLOOKUP(A82,②氏名・生年月日・入卒!$A$6:$D$105,2))","v":""},{"$f":"IF(②氏名・生年月日・入卒!B83=\"\",\"\",VLOOKUP(A82,②氏名・生年月日・入卒!$A$6:$D$105,3))","v":""},{"$f":"IF(②氏名・生年月日・入卒!B83=\"\",\"\",VLOOKUP(A82,②氏名・生年月日・入卒!$A$6:$D$105,4))","v":""}]
[79,{"$f":"IF(②氏名・生年月日・入卒!B84=\"\",\"\",VLOOKUP(A83,②氏名・生年月日・入卒!$A$6:$D$105,2))","v":""},{"$f":"IF(②氏名・生年月日・入卒!B84=\"\",\"\",VLOOKUP(A83,②氏名・生年月日・入卒!$A$6:$D$105,3))","v":""},{"$f":"IF(②氏名・生年月日・入卒!B84=\"\",\"\",VLOOKUP(A83,②氏名・生年月日・入卒!$A$6:$D$105,4))","v":""}]
[80,{"$f":"IF(②氏名・生年月日・入卒!B85=\"\",\"\",VLOOKUP(A84,②氏名・生年月日・入卒!$A$6:$D$105,2))","v":""},{"$f":"IF(②氏名・生年月日・入卒!B85=\"\",\"\",VLOOKUP(A84,②氏名・生年月日・入卒!$A$6:$D$105,3))","v":""},{"$f":"IF(②氏名・生年月日・入卒!B85=\"\",\"\",VLOOKUP(A84,②氏名・生年月日・入卒!$A$6:$D$105,4))","v":""}]
[81,{"$f":"IF(②氏名・生年月日・入卒!B86=\"\",\"\",VLOOKUP(A85,②氏名・生年月日・入卒!$A$6:$D$105,2))","v":""},{"$f":"IF(②氏名・生年月日・入卒!B86=\"\",\"\",VLOOKUP(A85,②氏名・生年月日・入卒!$A$6:$D$105,3))","v":""},{"$f":"IF(②氏名・生年月日・入卒!B86=\"\",\"\",VLOOKUP(A85,②氏名・生年月日・入卒!$A$6:$D$105,4))","v":""}]
[82,{"$f":"IF(②氏名・生年月日・入卒!B87=\"\",\"\",VLOOKUP(A86,②氏名・生年月日・入卒!$A$6:$D$105,2))","v":""},{"$f":"IF(②氏名・生年月日・入卒!B87=\"\",\"\",VLOOKUP(A86,②氏名・生年月日・入卒!$A$6:$D$105,3))","v":""},{"$f":"IF(②氏名・生年月日・入卒!B87=\"\",\"\",VLOOKUP(A86,②氏名・生年月日・入卒!$A$6:$D$105,4))","v":""}]
[83,{"$f":"IF(②氏名・生年月日・入卒!B88=\"\",\"\",VLOOKUP(A87,②氏名・生年月日・入卒!$A$6:$D$105,2))","v":""},{"$f":"IF(②氏名・生年月日・入卒!B88=\"\",\"\",VLOOKUP(A87,②氏名・生年月日・入卒!$A$6:$D$105,3))","v":""},{"$f":"IF(②氏名・生年月日・入卒!B88=\"\",\"\",VLOOKUP(A87,②氏名・生年月日・入卒!$A$6:$D$105,4))","v":""}]
[84,{"$f":"IF(②氏名・生年月日・入卒!B89=\"\",\"\",VLOOKUP(A88,②氏名・生年月日・入卒!$A$6:$D$105,2))","v":""},{"$f":"IF(②氏名・生年月日・入卒!B89=\"\",\"\",VLOOKUP(A88,②氏名・生年月日・入卒!$A$6:$D$105,3))","v":""},{"$f":"IF(②氏名・生年月日・入卒!B89=\"\",\"\",VLOOKUP(A88,②氏名・生年月日・入卒!$A$6:$D$105,4))","v":""}]
[85,{"$f":"IF(②氏名・生年月日・入卒!B90=\"\",\"\",VLOOKUP(A89,②氏名・生年月日・入卒!$A$6:$D$105,2))","v":""},{"$f":"IF(②氏名・生年月日・入卒!B90=\"\",\"\",VLOOKUP(A89,②氏名・生年月日・入卒!$A$6:$D$105,3))","v":""},{"$f":"IF(②氏名・生年月日・入卒!B90=\"\",\"\",VLOOKUP(A89,②氏名・生年月日・入卒!$A$6:$D$105,4))","v":""}]
[86,{"$f":"IF(②氏名・生年月日・入卒!B91=\"\",\"\",VLOOKUP(A90,②氏名・生年月日・入卒!$A$6:$D$105,2))","v":""},{"$f":"IF(②氏名・生年月日・入卒!B91=\"\",\"\",VLOOKUP(A90,②氏名・生年月日・入卒!$A$6:$D$105,3))","v":""},{"$f":"IF(②氏名・生年月日・入卒!B91=\"\",\"\",VLOOKUP(A90,②氏名・生年月日・入卒!$A$6:$D$105,4))","v":""}]
[87,{"$f":"IF(②氏名・生年月日・入卒!B92=\"\",\"\",VLOOKUP(A91,②氏名・生年月日・入卒!$A$6:$D$105,2))","v":""},{"$f":"IF(②氏名・生年月日・入卒!B92=\"\",\"\",VLOOKUP(A91,②氏名・生年月日・入卒!$A$6:$D$105,3))","v":""},{"$f":"IF(②氏名・生年月日・入卒!B92=\"\",\"\",VLOOKUP(A91,②氏名・生年月日・入卒!$A$6:$D$105,4))","v":""}]
[88,{"$f":"IF(②氏名・生年月日・入卒!B93=\"\",\"\",VLOOKUP(A92,②氏名・生年月日・入卒!$A$6:$D$105,2))","v":""},{"$f":"IF(②氏名・生年月日・入卒!B93=\"\",\"\",VLOOKUP(A92,②氏名・生年月日・入卒!$A$6:$D$105,3))","v":""},{"$f":"IF(②氏名・生年月日・入卒!B93=\"\",\"\",VLOOKUP(A92,②氏名・生年月日・入卒!$A$6:$D$105,4))","v":""}]
[89,{"$f":"IF(②氏名・生年月日・入卒!B94=\"\",\"\",VLOOKUP(A93,②氏名・生年月日・入卒!$A$6:$D$105,2))","v":""},{"$f":"IF(②氏名・生年月日・入卒!B94=\"\",\"\",VLOOKUP(A93,②氏名・生年月日・入卒!$A$6:$D$105,3))","v":""},{"$f":"IF(②氏名・生年月日・入卒!B94=\"\",\"\",VLOOKUP(A93,②氏名・生年月日・入卒!$A$6:$D$105,4))","v":""}]
[90,{"$f":"IF(②氏名・生年月日・入卒!B95=\"\",\"\",VLOOKUP(A94,②氏名・生年月日・入卒!$A$6:$D$105,2))","v":""},{"$f":"IF(②氏名・生年月日・入卒!B95=\"\",\"\",VLOOKUP(A94,②氏名・生年月日・入卒!$A$6:$D$105,3))","v":""},{"$f":"IF(②氏名・生年月日・入卒!B95=\"\",\"\",VLOOKUP(A94,②氏名・生年月日・入卒!$A$6:$D$105,4))","v":""}]
[91,{"$f":"IF(②氏名・生年月日・入卒!B96=\"\",\"\",VLOOKUP(A95,②氏名・生年月日・入卒!$A$6:$D$105,2))","v":""},{"$f":"IF(②氏名・生年月日・入卒!B96=\"\",\"\",VLOOKUP(A95,②氏名・生年月日・入卒!$A$6:$D$105,3))","v":""},{"$f":"IF(②氏名・生年月日・入卒!B96=\"\",\"\",VLOOKUP(A95,②氏名・生年月日・入卒!$A$6:$D$105,4))","v":""}]
[92,{"$f":"IF(②氏名・生年月日・入卒!B97=\"\",\"\",VLOOKUP(A96,②氏名・生年月日・入卒!$A$6:$D$105,2))","v":""},{"$f":"IF(②氏名・生年月日・入卒!B97=\"\",\"\",VLOOKUP(A96,②氏名・生年月日・入卒!$A$6:$D$105,3))","v":""},{"$f":"IF(②氏名・生年月日・入卒!B97=\"\",\"\",VLOOKUP(A96,②氏名・生年月日・入卒!$A$6:$D$105,4))","v":""}]
[93,{"$f":"IF(②氏名・生年月日・入卒!B98=\"\",\"\",VLOOKUP(A97,②氏名・生年月日・入卒!$A$6:$D$105,2))","v":""},{"$f":"IF(②氏名・生年月日・入卒!B98=\"\",\"\",VLOOKUP(A97,②氏名・生年月日・入卒!$A$6:$D$105,3))","v":""},{"$f":"IF(②氏名・生年月日・入卒!B98=\"\",\"\",VLOOKUP(A97,②氏名・生年月日・入卒!$A$6:$D$105,4))","v":""}]
[94,{"$f":"IF(②氏名・生年月日・入卒!B99=\"\",\"\",VLOOKUP(A98,②氏名・生年月日・入卒!$A$6:$D$105,2))","v":""},{"$f":"IF(②氏名・生年月日・入卒!B99=\"\",\"\",VLOOKUP(A98,②氏名・生年月日・入卒!$A$6:$D$105,3))","v":""},{"$f":"IF(②氏名・生年月日・入卒!B99=\"\",\"\",VLOOKUP(A98,②氏名・生年月日・入卒!$A$6:$D$105,4))","v":""}]
[95,{"$f":"IF(②氏名・生年月日・入卒!B100=\"\",\"\",VLOOKUP(A99,②氏名・生年月日・入卒!$A$6:$D$105,2))","v":""},{"$f":"IF(②氏名・生年月日・入卒!B100=\"\",\"\",VLOOKUP(A99,②氏名・生年月日・入卒!$A$6:$D$105,3))","v":""},{"$f":"IF(②氏名・生年月日・入卒!B100=\"\",\"\",VLOOKUP(A99,②氏名・生年月日・入卒!$A$6:$D$105,4))","v":""}]
[96,{"$f":"IF(②氏名・生年月日・入卒!B101=\"\",\"\",VLOOKUP(A100,②氏名・生年月日・入卒!$A$6:$D$105,2))","v":""},{"$f":"IF(②氏名・生年月日・入卒!B101=\"\",\"\",VLOOKUP(A100,②氏名・生年月日・入卒!$A$6:$D$105,3))","v":""},{"$f":"IF(②氏名・生年月日・入卒!B101=\"\",\"\",VLOOKUP(A100,②氏名・生年月日・入卒!$A$6:$D$105,4))","v":""}]
[97,{"$f":"IF(②氏名・生年月日・入卒!B102=\"\",\"\",VLOOKUP(A101,②氏名・生年月日・入卒!$A$6:$D$105,2))","v":""},{"$f":"IF(②氏名・生年月日・入卒!B102=\"\",\"\",VLOOKUP(A101,②氏名・生年月日・入卒!$A$6:$D$105,3))","v":""},{"$f":"IF(②氏名・生年月日・入卒!B102=\"\",\"\",VLOOKUP(A101,②氏名・生年月日・入卒!$A$6:$D$105,4))","v":""}]
[98,{"$f":"IF(②氏名・生年月日・入卒!B103=\"\",\"\",VLOOKUP(A102,②氏名・生年月日・入卒!$A$6:$D$105,2))","v":""},{"$f":"IF(②氏名・生年月日・入卒!B103=\"\",\"\",VLOOKUP(A102,②氏名・生年月日・入卒!$A$6:$D$105,3))","v":""},{"$f":"IF(②氏名・生年月日・入卒!B103=\"\",\"\",VLOOKUP(A102,②氏名・生年月日・入卒!$A$6:$D$105,4))","v":""}]
[99,{"$f":"IF(②氏名・生年月日・入卒!B104=\"\",\"\",VLOOKUP(A103,②氏名・生年月日・入卒!$A$6:$D$105,2))","v":""},{"$f":"IF(②氏名・生年月日・入卒!B104=\"\",\"\",VLOOKUP(A103,②氏名・生年月日・入卒!$A$6:$D$105,3))","v":""},{"$f":"IF(②氏名・生年月日・入卒!B104=\"\",\"\",VLOOKUP(A103,②氏名・生年月日・入卒!$A$6:$D$105,4))","v":""}]
[100,{"$f":"IF(②氏名・生年月日・入卒!B105=\"\",\"\",VLOOKUP(A104,②氏名・生年月日・入卒!$A$6:$D$105,2))","v":""},{"$f":"IF(②氏名・生年月日・入卒!B105=\"\",\"\",VLOOKUP(A104,②氏名・生年月日・入卒!$A$6:$D$105,3))","v":""},{"$f":"IF(②氏名・生年月日・入卒!B105=\"\",\"\",VLOOKUP(A104,②氏名・生年月日・入卒!$A$6:$D$105,4))","v":""}]

{"sheet":"④欠席・遅刻・早退","index":4,"n_rows":104,"n_cols":16,"rows_kept":104,"cut":false,"hidden":false,"merged":[[0,0,0,4],[1,4,1,7],[1,8,1,11],[1,12,1,15],[1,0,2,0],[1,1,2,1],[1,2,2,2],[1,3,2,3]]}
["④欠席・遅刻・早退の入力"]
["No","組","番","生徒名",{"$f":"IF(①中学校名!$D$13=\"義務教育学校\",\"７学年\",\"１学年\")","v":"１学年"},null,null,null,{"$f":"IF(①中学校名!$D$13=\"義務教育学校\",\"８学年\",\"２学年\")","v":"２学年"},null,null,null,{"$f":"IF(①中学校名!$D$13=\"義務教育学校\",\"９学年\",\"３学年\")","v":"３学年"}]
[null,null,null,null,"欠席","遅刻","早退","欠席・遅刻・早退の主な理由","欠席","遅刻","早退","欠席・遅刻・早退の主な理由","欠席","遅刻","早退","欠席・遅刻・早退の主な理由"]
["（例）",3,2,"私学　協子",1,0,0,"体調不良（1日）",0,0,0,"皆勤",0,1,0,"病院受診（1日）"]
[1,{"$f":"VLOOKUP(A5,②氏名・生年月日・入卒!$A$6:$D$105,2)","v":0},{"$f":"VLOOKUP(A5,②氏名・生年月日・入卒!$A$6:$D$105,3)","v":0},{"$f":"VLOOKUP(A5,②氏名・生年月日・入卒!$A$6:$D$105,4)","v":0}]
[2,{"$f":"VLOOKUP(A6,②氏名・生年月日・入卒!$A$6:$D$105,2)","v":0},{"$f":"VLOOKUP(A6,②氏名・生年月日・入卒!$A$6:$D$105,3)","v":0},{"$f":"VLOOKUP(A6,②氏名・生年月日・入卒!$A$6:$D$105,4)","v":0}]
[3,{"$f":"VLOOKUP(A7,②氏名・生年月日・入卒!$A$6:$D$105,2)","v":0},{"$f":"VLOOKUP(A7,②氏名・生年月日・入卒!$A$6:$D$105,3)","v":0},{"$f":"VLOOKUP(A7,②氏名・生年月日・入卒!$A$6:$D$105,4)","v":0}]
[4,{"$f":"VLOOKUP(A8,②氏名・生年月日・入卒!$A$6:$D$105,2)","v":0},{"$f":"VLOOKUP(A8,②氏名・生年月日・入卒!$A$6:$D$105,3)","v":0},{"$f":"VLOOKUP(A8,②氏名・生年月日・入卒!$A$6:$D$105,4)","v":0}]
[5,{"$f":"VLOOKUP(A9,②氏名・生年月日・入卒!$A$6:$D$105,2)","v":0},{"$f":"VLOOKUP(A9,②氏名・生年月日・入卒!$A$6:$D$105,3)","v":0},{"$f":"VLOOKUP(A9,②氏名・生年月日・入卒!$A$6:$D$105,4)","v":0}]
[6,{"$f":"VLOOKUP(A10,②氏名・生年月日・入卒!$A$6:$D$105,2)","v":0},{"$f":"VLOOKUP(A10,②氏名・生年月日・入卒!$A$6:$D$105,3)","v":0},{"$f":"VLOOKUP(A10,②氏名・生年月日・入卒!$A$6:$D$105,4)","v":0}]
[7,{"$f":"VLOOKUP(A11,②氏名・生年月日・入卒!$A$6:$D$105,2)","v":0},{"$f":"VLOOKUP(A11,②氏名・生年月日・入卒!$A$6:$D$105,3)","v":0},{"$f":"VLOOKUP(A11,②氏名・生年月日・入卒!$A$6:$D$105,4)","v":0}]
[8,{"$f":"VLOOKUP(A12,②氏名・生年月日・入卒!$A$6:$D$105,2)","v":0},{"$f":"VLOOKUP(A12,②氏名・生年月日・入卒!$A$6:$D$105,3)","v":0},{"$f":"VLOOKUP(A12,②氏名・生年月日・入卒!$A$6:$D$105,4)","v":0}]
[9,{"$f":"VLOOKUP(A13,②氏名・生年月日・入卒!$A$6:$D$105,2)","v":0},{"$f":"VLOOKUP(A13,②氏名・生年月日・入卒!$A$6:$D$105,3)","v":0},{"$f":"VLOOKUP(A13,②氏名・生年月日・入卒!$A$6:$D$105,4)","v":0}]
[10,{"$f":"VLOOKUP(A14,②氏名・生年月日・入卒!$A$6:$D$105,2)","v":0},{"$f":"VLOOKUP(A14,②氏名・生年月日・入卒!$A$6:$D$105,3)","v":0},{"$f":"VLOOKUP(A14,②氏名・生年月日・入卒!$A$6:$D$105,4)","v":0}]
[11,{"$f":"VLOOKUP(A15,②氏名・生年月日・入卒!$A$6:$D$105,2)","v":0},{"$f":"VLOOKUP(A15,②氏名・生年月日・入卒!$A$6:$D$105,3)","v":0},{"$f":"VLOOKUP(A15,②氏名・生年月日・入卒!$A$6:$D$105,4)","v":0}]
[12,{"$f":"VLOOKUP(A16,②氏名・生年月日・入卒!$A$6:$D$105,2)","v":0},{"$f":"VLOOKUP(A16,②氏名・生年月日・入卒!$A$6:$D$105,3)","v":0},{"$f":"VLOOKUP(A16,②氏名・生年月日・入卒!$A$6:$D$105,4)","v":0}]
[13,{"$f":"VLOOKUP(A17,②氏名・生年月日・入卒!$A$6:$D$105,2)","v":0},{"$f":"VLOOKUP(A17,②氏名・生年月日・入卒!$A$6:$D$105,3)","v":0},{"$f":"VLOOKUP(A17,②氏名・生年月日・入卒!$A$6:$D$105,4)","v":0}]
[14,{"$f":"VLOOKUP(A18,②氏名・生年月日・入卒!$A$6:$D$105,2)","v":0},{"$f":"VLOOKUP(A18,②氏名・生年月日・入卒!$A$6:$D$105,3)","v":0},{"$f":"VLOOKUP(A18,②氏名・生年月日・入卒!$A$6:$D$105,4)","v":0}]
[15,{"$f":"VLOOKUP(A19,②氏名・生年月日・入卒!$A$6:$D$105,2)","v":0},{"$f":"VLOOKUP(A19,②氏名・生年月日・入卒!$A$6:$D$105,3)","v":0},{"$f":"VLOOKUP(A19,②氏名・生年月日・入卒!$A$6:$D$105,4)","v":0}]
[16,{"$f":"VLOOKUP(A20,②氏名・生年月日・入卒!$A$6:$D$105,2)","v":0},{"$f":"VLOOKUP(A20,②氏名・生年月日・入卒!$A$6:$D$105,3)","v":0},{"$f":"VLOOKUP(A20,②氏名・生年月日・入卒!$A$6:$D$105,4)","v":0}]
[17,{"$f":"VLOOKUP(A21,②氏名・生年月日・入卒!$A$6:$D$105,2)","v":0},{"$f":"VLOOKUP(A21,②氏名・生年月日・入卒!$A$6:$D$105,3)","v":0},{"$f":"VLOOKUP(A21,②氏名・生年月日・入卒!$A$6:$D$105,4)","v":0}]
[18,{"$f":"VLOOKUP(A22,②氏名・生年月日・入卒!$A$6:$D$105,2)","v":0},{"$f":"VLOOKUP(A22,②氏名・生年月日・入卒!$A$6:$D$105,3)","v":0},{"$f":"VLOOKUP(A22,②氏名・生年月日・入卒!$A$6:$D$105,4)","v":0}]
[19,{"$f":"VLOOKUP(A23,②氏名・生年月日・入卒!$A$6:$D$105,2)","v":0},{"$f":"VLOOKUP(A23,②氏名・生年月日・入卒!$A$6:$D$105,3)","v":0},{"$f":"VLOOKUP(A23,②氏名・生年月日・入卒!$A$6:$D$105,4)","v":0}]
[20,{"$f":"VLOOKUP(A24,②氏名・生年月日・入卒!$A$6:$D$105,2)","v":0},{"$f":"VLOOKUP(A24,②氏名・生年月日・入卒!$A$6:$D$105,3)","v":0},{"$f":"VLOOKUP(A24,②氏名・生年月日・入卒!$A$6:$D$105,4)","v":0}]
[21,{"$f":"VLOOKUP(A25,②氏名・生年月日・入卒!$A$6:$D$105,2)","v":0},{"$f":"VLOOKUP(A25,②氏名・生年月日・入卒!$A$6:$D$105,3)","v":0},{"$f":"VLOOKUP(A25,②氏名・生年月日・入卒!$A$6:$D$105,4)","v":0}]
[22,{"$f":"VLOOKUP(A26,②氏名・生年月日・入卒!$A$6:$D$105,2)","v":0},{"$f":"VLOOKUP(A26,②氏名・生年月日・入卒!$A$6:$D$105,3)","v":0},{"$f":"VLOOKUP(A26,②氏名・生年月日・入卒!$A$6:$D$105,4)","v":0}]
[23,{"$f":"VLOOKUP(A27,②氏名・生年月日・入卒!$A$6:$D$105,2)","v":0},{"$f":"VLOOKUP(A27,②氏名・生年月日・入卒!$A$6:$D$105,3)","v":0},{"$f":"VLOOKUP(A27,②氏名・生年月日・入卒!$A$6:$D$105,4)","v":0}]
[24,{"$f":"VLOOKUP(A28,②氏名・生年月日・入卒!$A$6:$D$105,2)","v":0},{"$f":"VLOOKUP(A28,②氏名・生年月日・入卒!$A$6:$D$105,3)","v":0},{"$f":"VLOOKUP(A28,②氏名・生年月日・入卒!$A$6:$D$105,4)","v":0}]
[25,{"$f":"VLOOKUP(A29,②氏名・生年月日・入卒!$A$6:$D$105,2)","v":0},{"$f":"VLOOKUP(A29,②氏名・生年月日・入卒!$A$6:$D$105,3)","v":0},{"$f":"VLOOKUP(A29,②氏名・生年月日・入卒!$A$6:$D$105,4)","v":0}]
[26,{"$f":"VLOOKUP(A30,②氏名・生年月日・入卒!$A$6:$D$105,2)","v":0},{"$f":"VLOOKUP(A30,②氏名・生年月日・入卒!$A$6:$D$105,3)","v":0},{"$f":"VLOOKUP(A30,②氏名・生年月日・入卒!$A$6:$D$105,4)","v":0}]
[27,{"$f":"VLOOKUP(A31,②氏名・生年月日・入卒!$A$6:$D$105,2)","v":0},{"$f":"VLOOKUP(A31,②氏名・生年月日・入卒!$A$6:$D$105,3)","v":0},{"$f":"VLOOKUP(A31,②氏名・生年月日・入卒!$A$6:$D$105,4)","v":0}]
[28,{"$f":"VLOOKUP(A32,②氏名・生年月日・入卒!$A$6:$D$105,2)","v":0},{"$f":"VLOOKUP(A32,②氏名・生年月日・入卒!$A$6:$D$105,3)","v":0},{"$f":"VLOOKUP(A32,②氏名・生年月日・入卒!$A$6:$D$105,4)","v":0}]
[29,{"$f":"VLOOKUP(A33,②氏名・生年月日・入卒!$A$6:$D$105,2)","v":0},{"$f":"VLOOKUP(A33,②氏名・生年月日・入卒!$A$6:$D$105,3)","v":0},{"$f":"VLOOKUP(A33,②氏名・生年月日・入卒!$A$6:$D$105,4)","v":0}]
[30,{"$f":"VLOOKUP(A34,②氏名・生年月日・入卒!$A$6:$D$105,2)","v":0},{"$f":"VLOOKUP(A34,②氏名・生年月日・入卒!$A$6:$D$105,3)","v":0},{"$f":"VLOOKUP(A34,②氏名・生年月日・入卒!$A$6:$D$105,4)","v":0}]
[31,{"$f":"VLOOKUP(A35,②氏名・生年月日・入卒!$A$6:$D$105,2)","v":0},{"$f":"VLOOKUP(A35,②氏名・生年月日・入卒!$A$6:$D$105,3)","v":0},{"$f":"VLOOKUP(A35,②氏名・生年月日・入卒!$A$6:$D$105,4)","v":0}]
[32,{"$f":"VLOOKUP(A36,②氏名・生年月日・入卒!$A$6:$D$105,2)","v":0},{"$f":"VLOOKUP(A36,②氏名・生年月日・入卒!$A$6:$D$105,3)","v":0},{"$f":"VLOOKUP(A36,②氏名・生年月日・入卒!$A$6:$D$105,4)","v":0}]
[33,{"$f":"VLOOKUP(A37,②氏名・生年月日・入卒!$A$6:$D$105,2)","v":0},{"$f":"VLOOKUP(A37,②氏名・生年月日・入卒!$A$6:$D$105,3)","v":0},{"$f":"VLOOKUP(A37,②氏名・生年月日・入卒!$A$6:$D$105,4)","v":0}]
[34,{"$f":"VLOOKUP(A38,②氏名・生年月日・入卒!$A$6:$D$105,2)","v":0},{"$f":"VLOOKUP(A38,②氏名・生年月日・入卒!$A$6:$D$105,3)","v":0},{"$f":"VLOOKUP(A38,②氏名・生年月日・入卒!$A$6:$D$105,4)","v":0}]
[35,{"$f":"VLOOKUP(A39,②氏名・生年月日・入卒!$A$6:$D$105,2)","v":0},{"$f":"VLOOKUP(A39,②氏名・生年月日・入卒!$A$6:$D$105,3)","v":0},{"$f":"VLOOKUP(A39,②氏名・生年月日・入卒!$A$6:$D$105,4)","v":0}]
[36,{"$f":"VLOOKUP(A40,②氏名・生年月日・入卒!$A$6:$D$105,2)","v":0},{"$f":"VLOOKUP(A40,②氏名・生年月日・入卒!$A$6:$D$105,3)","v":0},{"$f":"VLOOKUP(A40,②氏名・生年月日・入卒!$A$6:$D$105,4)","v":0}]
[37,{"$f":"VLOOKUP(A41,②氏名・生年月日・入卒!$A$6:$D$105,2)","v":0},{"$f":"VLOOKUP(A41,②氏名・生年月日・入卒!$A$6:$D$105,3)","v":0},{"$f":"VLOOKUP(A41,②氏名・生年月日・入卒!$A$6:$D$105,4)","v":0}]
[38,{"$f":"VLOOKUP(A42,②氏名・生年月日・入卒!$A$6:$D$105,2)","v":0},{"$f":"VLOOKUP(A42,②氏名・生年月日・入卒!$A$6:$D$105,3)","v":0},{"$f":"VLOOKUP(A42,②氏名・生年月日・入卒!$A$6:$D$105,4)","v":0}]
[39,{"$f":"VLOOKUP(A43,②氏名・生年月日・入卒!$A$6:$D$105,2)","v":0},{"$f":"VLOOKUP(A43,②氏名・生年月日・入卒!$A$6:$D$105,3)","v":0},{"$f":"VLOOKUP(A43,②氏名・生年月日・入卒!$A$6:$D$105,4)","v":0}]
[40,{"$f":"VLOOKUP(A44,②氏名・生年月日・入卒!$A$6:$D$105,2)","v":0},{"$f":"VLOOKUP(A44,②氏名・生年月日・入卒!$A$6:$D$105,3)","v":0},{"$f":"VLOOKUP(A44,②氏名・生年月日・入卒!$A$6:$D$105,4)","v":0}]
[41,{"$f":"VLOOKUP(A45,②氏名・生年月日・入卒!$A$6:$D$105,2)","v":0},{"$f":"VLOOKUP(A45,②氏名・生年月日・入卒!$A$6:$D$105,3)","v":0},{"$f":"VLOOKUP(A45,②氏名・生年月日・入卒!$A$6:$D$105,4)","v":0}]
[42,{"$f":"VLOOKUP(A46,②氏名・生年月日・入卒!$A$6:$D$105,2)","v":0},{"$f":"VLOOKUP(A46,②氏名・生年月日・入卒!$A$6:$D$105,3)","v":0},{"$f":"VLOOKUP(A46,②氏名・生年月日・入卒!$A$6:$D$105,4)","v":0}]
[43,{"$f":"VLOOKUP(A47,②氏名・生年月日・入卒!$A$6:$D$105,2)","v":0},{"$f":"VLOOKUP(A47,②氏名・生年月日・入卒!$A$6:$D$105,3)","v":0},{"$f":"VLOOKUP(A47,②氏名・生年月日・入卒!$A$6:$D$105,4)","v":0}]
[44,{"$f":"VLOOKUP(A48,②氏名・生年月日・入卒!$A$6:$D$105,2)","v":0},{"$f":"VLOOKUP(A48,②氏名・生年月日・入卒!$A$6:$D$105,3)","v":0},{"$f":"VLOOKUP(A48,②氏名・生年月日・入卒!$A$6:$D$105,4)","v":0}]
[45,{"$f":"VLOOKUP(A49,②氏名・生年月日・入卒!$A$6:$D$105,2)","v":0},{"$f":"VLOOKUP(A49,②氏名・生年月日・入卒!$A$6:$D$105,3)","v":0},{"$f":"VLOOKUP(A49,②氏名・生年月日・入卒!$A$6:$D$105,4)","v":0}]
[46,{"$f":"VLOOKUP(A50,②氏名・生年月日・入卒!$A$6:$D$105,2)","v":0},{"$f":"VLOOKUP(A50,②氏名・生年月日・入卒!$A$6:$D$105,3)","v":0},{"$f":"VLOOKUP(A50,②氏名・生年月日・入卒!$A$6:$D$105,4)","v":0}]
[47,{"$f":"VLOOKUP(A51,②氏名・生年月日・入卒!$A$6:$D$105,2)","v":0},{"$f":"VLOOKUP(A51,②氏名・生年月日・入卒!$A$6:$D$105,3)","v":0},{"$f":"VLOOKUP(A51,②氏名・生年月日・入卒!$A$6:$D$105,4)","v":0}]
[48,{"$f":"VLOOKUP(A52,②氏名・生年月日・入卒!$A$6:$D$105,2)","v":0},{"$f":"VLOOKUP(A52,②氏名・生年月日・入卒!$A$6:$D$105,3)","v":0},{"$f":"VLOOKUP(A52,②氏名・生年月日・入卒!$A$6:$D$105,4)","v":0}]
[49,{"$f":"VLOOKUP(A53,②氏名・生年月日・入卒!$A$6:$D$105,2)","v":0},{"$f":"VLOOKUP(A53,②氏名・生年月日・入卒!$A$6:$D$105,3)","v":0},{"$f":"VLOOKUP(A53,②氏名・生年月日・入卒!$A$6:$D$105,4)","v":0}]
[50,{"$f":"VLOOKUP(A54,②氏名・生年月日・入卒!$A$6:$D$105,2)","v":0},{"$f":"VLOOKUP(A54,②氏名・生年月日・入卒!$A$6:$D$105,3)","v":0},{"$f":"VLOOKUP(A54,②氏名・生年月日・入卒!$A$6:$D$105,4)","v":0}]
[51,{"$f":"VLOOKUP(A55,②氏名・生年月日・入卒!$A$6:$D$105,2)","v":0},{"$f":"VLOOKUP(A55,②氏名・生年月日・入卒!$A$6:$D$105,3)","v":0},{"$f":"VLOOKUP(A55,②氏名・生年月日・入卒!$A$6:$D$105,4)","v":0}]
[52,{"$f":"VLOOKUP(A56,②氏名・生年月日・入卒!$A$6:$D$105,2)","v":0},{"$f":"VLOOKUP(A56,②氏名・生年月日・入卒!$A$6:$D$105,3)","v":0},{"$f":"VLOOKUP(A56,②氏名・生年月日・入卒!$A$6:$D$105,4)","v":0}]
[53,{"$f":"VLOOKUP(A57,②氏名・生年月日・入卒!$A$6:$D$105,2)","v":0},{"$f":"VLOOKUP(A57,②氏名・生年月日・入卒!$A$6:$D$105,3)","v":0},{"$f":"VLOOKUP(A57,②氏名・生年月日・入卒!$A$6:$D$105,4)","v":0}]
[54,{"$f":"VLOOKUP(A58,②氏名・生年月日・入卒!$A$6:$D$105,2)","v":0},{"$f":"VLOOKUP(A58,②氏名・生年月日・入卒!$A$6:$D$105,3)","v":0},{"$f":"VLOOKUP(A58,②氏名・生年月日・入卒!$A$6:$D$105,4)","v":0}]
[55,{"$f":"VLOOKUP(A59,②氏名・生年月日・入卒!$A$6:$D$105,2)","v":0},{"$f":"VLOOKUP(A59,②氏名・生年月日・入卒!$A$6:$D$105,3)","v":0},{"$f":"VLOOKUP(A59,②氏名・生年月日・入卒!$A$6:$D$105,4)","v":0}]
[56,{"$f":"VLOOKUP(A60,②氏名・生年月日・入卒!$A$6:$D$105,2)","v":0},{"$f":"VLOOKUP(A60,②氏名・生年月日・入卒!$A$6:$D$105,3)","v":0},{"$f":"VLOOKUP(A60,②氏名・生年月日・入卒!$A$6:$D$105,4)","v":0}]
[57,{"$f":"VLOOKUP(A61,②氏名・生年月日・入卒!$A$6:$D$105,2)","v":0},{"$f":"VLOOKUP(A61,②氏名・生年月日・入卒!$A$6:$D$105,3)","v":0},{"$f":"VLOOKUP(A61,②氏名・生年月日・入卒!$A$6:$D$105,4)","v":0}]
[58,{"$f":"VLOOKUP(A62,②氏名・生年月日・入卒!$A$6:$D$105,2)","v":0},{"$f":"VLOOKUP(A62,②氏名・生年月日・入卒!$A$6:$D$105,3)","v":0},{"$f":"VLOOKUP(A62,②氏名・生年月日・入卒!$A$6:$D$105,4)","v":0}]
[59,{"$f":"VLOOKUP(A63,②氏名・生年月日・入卒!$A$6:$D$105,2)","v":0},{"$f":"VLOOKUP(A63,②氏名・生年月日・入卒!$A$6:$D$105,3)","v":0},{"$f":"VLOOKUP(A63,②氏名・生年月日・入卒!$A$6:$D$105,4)","v":0}]
[60,{"$f":"VLOOKUP(A64,②氏名・生年月日・入卒!$A$6:$D$105,2)","v":0},{"$f":"VLOOKUP(A64,②氏名・生年月日・入卒!$A$6:$D$105,3)","v":0},{"$f":"VLOOKUP(A64,②氏名・生年月日・入卒!$A$6:$D$105,4)","v":0}]
[61,{"$f":"VLOOKUP(A65,②氏名・生年月日・入卒!$A$6:$D$105,2)","v":0},{"$f":"VLOOKUP(A65,②氏名・生年月日・入卒!$A$6:$D$105,3)","v":0},{"$f":"VLOOKUP(A65,②氏名・生年月日・入卒!$A$6:$D$105,4)","v":0}]
[62,{"$f":"VLOOKUP(A66,②氏名・生年月日・入卒!$A$6:$D$105,2)","v":0},{"$f":"VLOOKUP(A66,②氏名・生年月日・入卒!$A$6:$D$105,3)","v":0},{"$f":"VLOOKUP(A66,②氏名・生年月日・入卒!$A$6:$D$105,4)","v":0}]
[63,{"$f":"VLOOKUP(A67,②氏名・生年月日・入卒!$A$6:$D$105,2)","v":0},{"$f":"VLOOKUP(A67,②氏名・生年月日・入卒!$A$6:$D$105,3)","v":0},{"$f":"VLOOKUP(A67,②氏名・生年月日・入卒!$A$6:$D$105,4)","v":0}]
[64,{"$f":"VLOOKUP(A68,②氏名・生年月日・入卒!$A$6:$D$105,2)","v":0},{"$f":"VLOOKUP(A68,②氏名・生年月日・入卒!$A$6:$D$105,3)","v":0},{"$f":"VLOOKUP(A68,②氏名・生年月日・入卒!$A$6:$D$105,4)","v":0}]
[65,{"$f":"VLOOKUP(A69,②氏名・生年月日・入卒!$A$6:$D$105,2)","v":0},{"$f":"VLOOKUP(A69,②氏名・生年月日・入卒!$A$6:$D$105,3)","v":0},{"$f":"VLOOKUP(A69,②氏名・生年月日・入卒!$A$6:$D$105,4)","v":0}]
[66,{"$f":"VLOOKUP(A70,②氏名・生年月日・入卒!$A$6:$D$105,2)","v":0},{"$f":"VLOOKUP(A70,②氏名・生年月日・入卒!$A$6:$D$105,3)","v":0},{"$f":"VLOOKUP(A70,②氏名・生年月日・入卒!$A$6:$D$105,4)","v":0}]
[67,{"$f":"VLOOKUP(A71,②氏名・生年月日・入卒!$A$6:$D$105,2)","v":0},{"$f":"VLOOKUP(A71,②氏名・生年月日・入卒!$A$6:$D$105,3)","v":0},{"$f":"VLOOKUP(A71,②氏名・生年月日・入卒!$A$6:$D$105,4)","v":0}]
[68,{"$f":"VLOOKUP(A72,②氏名・生年月日・入卒!$A$6:$D$105,2)","v":0},{"$f":"VLOOKUP(A72,②氏名・生年月日・入卒!$A$6:$D$105,3)","v":0},{"$f":"VLOOKUP(A72,②氏名・生年月日・入卒!$A$6:$D$105,4)","v":0}]
[69,{"$f":"VLOOKUP(A73,②氏名・生年月日・入卒!$A$6:$D$105,2)","v":0},{"$f":"VLOOKUP(A73,②氏名・生年月日・入卒!$A$6:$D$105,3)","v":0},{"$f":"VLOOKUP(A73,②氏名・生年月日・入卒!$A$6:$D$105,4)","v":0}]
[70,{"$f":"VLOOKUP(A74,②氏名・生年月日・入卒!$A$6:$D$105,2)","v":0},{"$f":"VLOOKUP(A74,②氏名・生年月日・入卒!$A$6:$D$105,3)","v":0},{"$f":"VLOOKUP(A74,②氏名・生年月日・入卒!$A$6:$D$105,4)","v":0}]
[71,{"$f":"VLOOKUP(A75,②氏名・生年月日・入卒!$A$6:$D$105,2)","v":0},{"$f":"VLOOKUP(A75,②氏名・生年月日・入卒!$A$6:$D$105,3)","v":0},{"$f":"VLOOKUP(A75,②氏名・生年月日・入卒!$A$6:$D$105,4)","v":0}]
[72,{"$f":"VLOOKUP(A76,②氏名・生年月日・入卒!$A$6:$D$105,2)","v":0},{"$f":"VLOOKUP(A76,②氏名・生年月日・入卒!$A$6:$D$105,3)","v":0},{"$f":"VLOOKUP(A76,②氏名・生年月日・入卒!$A$6:$D$105,4)","v":0}]
[73,{"$f":"VLOOKUP(A77,②氏名・生年月日・入卒!$A$6:$D$105,2)","v":0},{"$f":"VLOOKUP(A77,②氏名・生年月日・入卒!$A$6:$D$105,3)","v":0},{"$f":"VLOOKUP(A77,②氏名・生年月日・入卒!$A$6:$D$105,4)","v":0}]
[74,{"$f":"VLOOKUP(A78,②氏名・生年月日・入卒!$A$6:$D$105,2)","v":0},{"$f":"VLOOKUP(A78,②氏名・生年月日・入卒!$A$6:$D$105,3)","v":0},{"$f":"VLOOKUP(A78,②氏名・生年月日・入卒!$A$6:$D$105,4)","v":0}]
[75,{"$f":"VLOOKUP(A79,②氏名・生年月日・入卒!$A$6:$D$105,2)","v":0},{"$f":"VLOOKUP(A79,②氏名・生年月日・入卒!$A$6:$D$105,3)","v":0},{"$f":"VLOOKUP(A79,②氏名・生年月日・入卒!$A$6:$D$105,4)","v":0}]
[76,{"$f":"VLOOKUP(A80,②氏名・生年月日・入卒!$A$6:$D$105,2)","v":0},{"$f":"VLOOKUP(A80,②氏名・生年月日・入卒!$A$6:$D$105,3)","v":0},{"$f":"VLOOKUP(A80,②氏名・生年月日・入卒!$A$6:$D$105,4)","v":0}]
[77,{"$f":"VLOOKUP(A81,②氏名・生年月日・入卒!$A$6:$D$105,2)","v":0},{"$f":"VLOOKUP(A81,②氏名・生年月日・入卒!$A$6:$D$105,3)","v":0},{"$f":"VLOOKUP(A81,②氏名・生年月日・入卒!$A$6:$D$105,4)","v":0}]
[78,{"$f":"VLOOKUP(A82,②氏名・生年月日・入卒!$A$6:$D$105,2)","v":0},{"$f":"VLOOKUP(A82,②氏名・生年月日・入卒!$A$6:$D$105,3)","v":0},{"$f":"VLOOKUP(A82,②氏名・生年月日・入卒!$A$6:$D$105,4)","v":0}]
[79,{"$f":"VLOOKUP(A83,②氏名・生年月日・入卒!$A$6:$D$105,2)","v":0},{"$f":"VLOOKUP(A83,②氏名・生年月日・入卒!$A$6:$D$105,3)","v":0},{"$f":"VLOOKUP(A83,②氏名・生年月日・入卒!$A$6:$D$105,4)","v":0}]
[80,{"$f":"VLOOKUP(A84,②氏名・生年月日・入卒!$A$6:$D$105,2)","v":0},{"$f":"VLOOKUP(A84,②氏名・生年月日・入卒!$A$6:$D$105,3)","v":0},{"$f":"VLOOKUP(A84,②氏名・生年月日・入卒!$A$6:$D$105,4)","v":0}]
[81,{"$f":"VLOOKUP(A85,②氏名・生年月日・入卒!$A$6:$D$105,2)","v":0},{"$f":"VLOOKUP(A85,②氏名・生年月日・入卒!$A$6:$D$105,3)","v":0},{"$f":"VLOOKUP(A85,②氏名・生年月日・入卒!$A$6:$D$105,4)","v":0}]
[82,{"$f":"VLOOKUP(A86,②氏名・生年月日・入卒!$A$6:$D$105,2)","v":0},{"$f":"VLOOKUP(A86,②氏名・生年月日・入卒!$A$6:$D$105,3)","v":0},{"$f":"VLOOKUP(A86,②氏名・生年月日・入卒!$A$6:$D$105,4)","v":0}]
[83,{"$f":"VLOOKUP(A87,②氏名・生年月日・入卒!$A$6:$D$105,2)","v":0},{"$f":"VLOOKUP(A87,②氏名・生年月日・入卒!$A$6:$D$105,3)","v":0},{"$f":"VLOOKUP(A87,②氏名・生年月日・入卒!$A$6:$D$105,4)","v":0}]
[84,{"$f":"VLOOKUP(A88,②氏名・生年月日・入卒!$A$6:$D$105,2)","v":0},{"$f":"VLOOKUP(A88,②氏名・生年月日・入卒!$A$6:$D$105,3)","v":0},{"$f":"VLOOKUP(A88,②氏名・生年月日・入卒!$A$6:$D$105,4)","v":0}]
[85,{"$f":"VLOOKUP(A89,②氏名・生年月日・入卒!$A$6:$D$105,2)","v":0},{"$f":"VLOOKUP(A89,②氏名・生年月日・入卒!$A$6:$D$105,3)","v":0},{"$f":"VLOOKUP(A89,②氏名・生年月日・入卒!$A$6:$D$105,4)","v":0}]
[86,{"$f":"VLOOKUP(A90,②氏名・生年月日・入卒!$A$6:$D$105,2)","v":0},{"$f":"VLOOKUP(A90,②氏名・生年月日・入卒!$A$6:$D$105,3)","v":0},{"$f":"VLOOKUP(A90,②氏名・生年月日・入卒!$A$6:$D$105,4)","v":0}]
[87,{"$f":"VLOOKUP(A91,②氏名・生年月日・入卒!$A$6:$D$105,2)","v":0},{"$f":"VLOOKUP(A91,②氏名・生年月日・入卒!$A$6:$D$105,3)","v":0},{"$f":"VLOOKUP(A91,②氏名・生年月日・入卒!$A$6:$D$105,4)","v":0}]
[88,{"$f":"VLOOKUP(A92,②氏名・生年月日・入卒!$A$6:$D$105,2)","v":0},{"$f":"VLOOKUP(A92,②氏名・生年月日・入卒!$A$6:$D$105,3)","v":0},{"$f":"VLOOKUP(A92,②氏名・生年月日・入卒!$A$6:$D$105,4)","v":0}]
[89,{"$f":"VLOOKUP(A93,②氏名・生年月日・入卒!$A$6:$D$105,2)","v":0},{"$f":"VLOOKUP(A93,②氏名・生年月日・入卒!$A$6:$D$105,3)","v":0},{"$f":"VLOOKUP(A93,②氏名・生年月日・入卒!$A$6:$D$105,4)","v":0}]
[90,{"$f":"VLOOKUP(A94,②氏名・生年月日・入卒!$A$6:$D$105,2)","v":0},{"$f":"VLOOKUP(A94,②氏名・生年月日・入卒!$A$6:$D$105,3)","v":0},{"$f":"VLOOKUP(A94,②氏名・生年月日・入卒!$A$6:$D$105,4)","v":0}]
[91,{"$f":"VLOOKUP(A95,②氏名・生年月日・入卒!$A$6:$D$105,2)","v":0},{"$f":"VLOOKUP(A95,②氏名・生年月日・入卒!$A$6:$D$105,3)","v":0},{"$f":"VLOOKUP(A95,②氏名・生年月日・入卒!$A$6:$D$105,4)","v":0}]
[92,{"$f":"VLOOKUP(A96,②氏名・生年月日・入卒!$A$6:$D$105,2)","v":0},{"$f":"VLOOKUP(A96,②氏名・生年月日・入卒!$A$6:$D$105,3)","v":0},{"$f":"VLOOKUP(A96,②氏名・生年月日・入卒!$A$6:$D$105,4)","v":0}]
[93,{"$f":"VLOOKUP(A97,②氏名・生年月日・入卒!$A$6:$D$105,2)","v":0},{"$f":"VLOOKUP(A97,②氏名・生年月日・入卒!$A$6:$D$105,3)","v":0},{"$f":"VLOOKUP(A97,②氏名・生年月日・入卒!$A$6:$D$105,4)","v":0}]
[94,{"$f":"VLOOKUP(A98,②氏名・生年月日・入卒!$A$6:$D$105,2)","v":0},{"$f":"VLOOKUP(A98,②氏名・生年月日・入卒!$A$6:$D$105,3)","v":0},{"$f":"VLOOKUP(A98,②氏名・生年月日・入卒!$A$6:$D$105,4)","v":0}]
[95,{"$f":"VLOOKUP(A99,②氏名・生年月日・入卒!$A$6:$D$105,2)","v":0},{"$f":"VLOOKUP(A99,②氏名・生年月日・入卒!$A$6:$D$105,3)","v":0},{"$f":"VLOOKUP(A99,②氏名・生年月日・入卒!$A$6:$D$105,4)","v":0}]
[96,{"$f":"VLOOKUP(A100,②氏名・生年月日・入卒!$A$6:$D$105,2)","v":0},{"$f":"VLOOKUP(A100,②氏名・生年月日・入卒!$A$6:$D$105,3)","v":0},{"$f":"VLOOKUP(A100,②氏名・生年月日・入卒!$A$6:$D$105,4)","v":0}]
[97,{"$f":"VLOOKUP(A101,②氏名・生年月日・入卒!$A$6:$D$105,2)","v":0},{"$f":"VLOOKUP(A101,②氏名・生年月日・入卒!$A$6:$D$105,3)","v":0},{"$f":"VLOOKUP(A101,②氏名・生年月日・入卒!$A$6:$D$105,4)","v":0}]
[98,{"$f":"VLOOKUP(A102,②氏名・生年月日・入卒!$A$6:$D$105,2)","v":0},{"$f":"VLOOKUP(A102,②氏名・生年月日・入卒!$A$6:$D$105,3)","v":0},{"$f":"VLOOKUP(A102,②氏名・生年月日・入卒!$A$6:$D$105,4)","v":0}]
[99,{"$f":"VLOOKUP(A103,②氏名・生年月日・入卒!$A$6:$D$105,2)","v":0},{"$f":"VLOOKUP(A103,②氏名・生年月日・入卒!$A$6:$D$105,3)","v":0},{"$f":"VLOOKUP(A103,②氏名・生年月日・入卒!$A$6:$D$105,4)","v":0}]
[100,{"$f":"VLOOKUP(A104,②氏名・生年月日・入卒!$A$6:$D$105,2)","v":0},{"$f":"VLOOKUP(A104,②氏名・生年月日・入卒!$A$6:$D$105,3)","v":0},{"$f":"VLOOKUP(A104,②氏名・生年月日・入卒!$A$6:$D$105,4)","v":0}]

{"sheet":"⑤健康・特活・転校・所見","index":5,"n_rows":104,"n_cols":11,"rows_kept":104,"cut":false,"hidden":false,"merged":[[1,6,1,9],[1,10,2,10],[0,0,0,5],[1,0,2,0],[1,1,2,1],[1,2,2,2],[1,3,2,3],[1,4,2,4],[1,5,2,5]]}
["⑤健康状態・特別活動等の記録・転入学・担任所見および指導上の参考事項の入力"]
["NO","組","番","生徒名","健康状態","特別活動等の記録","転入学者",null,null,null,"推薦所見"]
[null,null,null,null,null,null,"転入学年","転入学月","中学校(学園)名","転入学の理由"]
["（例）",3,2,"私学　協子","異常なし","弓道部主将としてリーダーシップを発揮し、地区優勝に貢献した。","令和4",7,"東京都立第八","一家転住のため","素直で誰とでも分け隔てなく接することができる生徒である。何事にも真面目で努力している。"]
[1,{"$f":"IF(②氏名・生年月日・入卒!B6=\"\",\"\",VLOOKUP(A5,②氏名・生年月日・入卒!$A$6:$D$105,2))","v":""},{"$f":"IF(②氏名・生年月日・入卒!B6=\"\",\"\",VLOOKUP(A5,②氏名・生年月日・入卒!$A$6:$D$105,3))","v":""},{"$f":"IF(②氏名・生年月日・入卒!B6=\"\",\"\",VLOOKUP(A5,②氏名・生年月日・入卒!$A$6:$D$105,4))","v":""}]
[2,{"$f":"IF(②氏名・生年月日・入卒!B7=\"\",\"\",VLOOKUP(A6,②氏名・生年月日・入卒!$A$6:$D$105,2))","v":""},{"$f":"IF(②氏名・生年月日・入卒!B7=\"\",\"\",VLOOKUP(A6,②氏名・生年月日・入卒!$A$6:$D$105,3))","v":""},{"$f":"IF(②氏名・生年月日・入卒!B7=\"\",\"\",VLOOKUP(A6,②氏名・生年月日・入卒!$A$6:$D$105,4))","v":""}]
[3,{"$f":"IF(②氏名・生年月日・入卒!B8=\"\",\"\",VLOOKUP(A7,②氏名・生年月日・入卒!$A$6:$D$105,2))","v":""},{"$f":"IF(②氏名・生年月日・入卒!B8=\"\",\"\",VLOOKUP(A7,②氏名・生年月日・入卒!$A$6:$D$105,3))","v":""},{"$f":"IF(②氏名・生年月日・入卒!B8=\"\",\"\",VLOOKUP(A7,②氏名・生年月日・入卒!$A$6:$D$105,4))","v":""}]
[4,{"$f":"IF(②氏名・生年月日・入卒!B9=\"\",\"\",VLOOKUP(A8,②氏名・生年月日・入卒!$A$6:$D$105,2))","v":""},{"$f":"IF(②氏名・生年月日・入卒!B9=\"\",\"\",VLOOKUP(A8,②氏名・生年月日・入卒!$A$6:$D$105,3))","v":""},{"$f":"IF(②氏名・生年月日・入卒!B9=\"\",\"\",VLOOKUP(A8,②氏名・生年月日・入卒!$A$6:$D$105,4))","v":""}]
[5,{"$f":"IF(②氏名・生年月日・入卒!B10=\"\",\"\",VLOOKUP(A9,②氏名・生年月日・入卒!$A$6:$D$105,2))","v":""},{"$f":"IF(②氏名・生年月日・入卒!B10=\"\",\"\",VLOOKUP(A9,②氏名・生年月日・入卒!$A$6:$D$105,3))","v":""},{"$f":"IF(②氏名・生年月日・入卒!B10=\"\",\"\",VLOOKUP(A9,②氏名・生年月日・入卒!$A$6:$D$105,4))","v":""}]
[6,{"$f":"IF(②氏名・生年月日・入卒!B11=\"\",\"\",VLOOKUP(A10,②氏名・生年月日・入卒!$A$6:$D$105,2))","v":""},{"$f":"IF(②氏名・生年月日・入卒!B11=\"\",\"\",VLOOKUP(A10,②氏名・生年月日・入卒!$A$6:$D$105,3))","v":""},{"$f":"IF(②氏名・生年月日・入卒!B11=\"\",\"\",VLOOKUP(A10,②氏名・生年月日・入卒!$A$6:$D$105,4))","v":""}]
[7,{"$f":"IF(②氏名・生年月日・入卒!B12=\"\",\"\",VLOOKUP(A11,②氏名・生年月日・入卒!$A$6:$D$105,2))","v":""},{"$f":"IF(②氏名・生年月日・入卒!B12=\"\",\"\",VLOOKUP(A11,②氏名・生年月日・入卒!$A$6:$D$105,3))","v":""},{"$f":"IF(②氏名・生年月日・入卒!B12=\"\",\"\",VLOOKUP(A11,②氏名・生年月日・入卒!$A$6:$D$105,4))","v":""}]
[8,{"$f":"IF(②氏名・生年月日・入卒!B13=\"\",\"\",VLOOKUP(A12,②氏名・生年月日・入卒!$A$6:$D$105,2))","v":""},{"$f":"IF(②氏名・生年月日・入卒!B13=\"\",\"\",VLOOKUP(A12,②氏名・生年月日・入卒!$A$6:$D$105,3))","v":""},{"$f":"IF(②氏名・生年月日・入卒!B13=\"\",\"\",VLOOKUP(A12,②氏名・生年月日・入卒!$A$6:$D$105,4))","v":""}]
[9,{"$f":"IF(②氏名・生年月日・入卒!B14=\"\",\"\",VLOOKUP(A13,②氏名・生年月日・入卒!$A$6:$D$105,2))","v":""},{"$f":"IF(②氏名・生年月日・入卒!B14=\"\",\"\",VLOOKUP(A13,②氏名・生年月日・入卒!$A$6:$D$105,3))","v":""},{"$f":"IF(②氏名・生年月日・入卒!B14=\"\",\"\",VLOOKUP(A13,②氏名・生年月日・入卒!$A$6:$D$105,4))","v":""}]
[10,{"$f":"IF(②氏名・生年月日・入卒!B15=\"\",\"\",VLOOKUP(A14,②氏名・生年月日・入卒!$A$6:$D$105,2))","v":""},{"$f":"IF(②氏名・生年月日・入卒!B15=\"\",\"\",VLOOKUP(A14,②氏名・生年月日・入卒!$A$6:$D$105,3))","v":""},{"$f":"IF(②氏名・生年月日・入卒!B15=\"\",\"\",VLOOKUP(A14,②氏名・生年月日・入卒!$A$6:$D$105,4))","v":""}]
[11,{"$f":"IF(②氏名・生年月日・入卒!B16=\"\",\"\",VLOOKUP(A15,②氏名・生年月日・入卒!$A$6:$D$105,2))","v":""},{"$f":"IF(②氏名・生年月日・入卒!B16=\"\",\"\",VLOOKUP(A15,②氏名・生年月日・入卒!$A$6:$D$105,3))","v":""},{"$f":"IF(②氏名・生年月日・入卒!B16=\"\",\"\",VLOOKUP(A15,②氏名・生年月日・入卒!$A$6:$D$105,4))","v":""}]
[12,{"$f":"IF(②氏名・生年月日・入卒!B17=\"\",\"\",VLOOKUP(A16,②氏名・生年月日・入卒!$A$6:$D$105,2))","v":""},{"$f":"IF(②氏名・生年月日・入卒!B17=\"\",\"\",VLOOKUP(A16,②氏名・生年月日・入卒!$A$6:$D$105,3))","v":""},{"$f":"IF(②氏名・生年月日・入卒!B17=\"\",\"\",VLOOKUP(A16,②氏名・生年月日・入卒!$A$6:$D$105,4))","v":""}]
[13,{"$f":"IF(②氏名・生年月日・入卒!B18=\"\",\"\",VLOOKUP(A17,②氏名・生年月日・入卒!$A$6:$D$105,2))","v":""},{"$f":"IF(②氏名・生年月日・入卒!B18=\"\",\"\",VLOOKUP(A17,②氏名・生年月日・入卒!$A$6:$D$105,3))","v":""},{"$f":"IF(②氏名・生年月日・入卒!B18=\"\",\"\",VLOOKUP(A17,②氏名・生年月日・入卒!$A$6:$D$105,4))","v":""}]
[14,{"$f":"IF(②氏名・生年月日・入卒!B19=\"\",\"\",VLOOKUP(A18,②氏名・生年月日・入卒!$A$6:$D$105,2))","v":""},{"$f":"IF(②氏名・生年月日・入卒!B19=\"\",\"\",VLOOKUP(A18,②氏名・生年月日・入卒!$A$6:$D$105,3))","v":""},{"$f":"IF(②氏名・生年月日・入卒!B19=\"\",\"\",VLOOKUP(A18,②氏名・生年月日・入卒!$A$6:$D$105,4))","v":""}]
[15,{"$f":"IF(②氏名・生年月日・入卒!B20=\"\",\"\",VLOOKUP(A19,②氏名・生年月日・入卒!$A$6:$D$105,2))","v":""},{"$f":"IF(②氏名・生年月日・入卒!B20=\"\",\"\",VLOOKUP(A19,②氏名・生年月日・入卒!$A$6:$D$105,3))","v":""},{"$f":"IF(②氏名・生年月日・入卒!B20=\"\",\"\",VLOOKUP(A19,②氏名・生年月日・入卒!$A$6:$D$105,4))","v":""}]
[16,{"$f":"IF(②氏名・生年月日・入卒!B21=\"\",\"\",VLOOKUP(A20,②氏名・生年月日・入卒!$A$6:$D$105,2))","v":""},{"$f":"IF(②氏名・生年月日・入卒!B21=\"\",\"\",VLOOKUP(A20,②氏名・生年月日・入卒!$A$6:$D$105,3))","v":""},{"$f":"IF(②氏名・生年月日・入卒!B21=\"\",\"\",VLOOKUP(A20,②氏名・生年月日・入卒!$A$6:$D$105,4))","v":""}]
[17,{"$f":"IF(②氏名・生年月日・入卒!B22=\"\",\"\",VLOOKUP(A21,②氏名・生年月日・入卒!$A$6:$D$105,2))","v":""},{"$f":"IF(②氏名・生年月日・入卒!B22=\"\",\"\",VLOOKUP(A21,②氏名・生年月日・入卒!$A$6:$D$105,3))","v":""},{"$f":"IF(②氏名・生年月日・入卒!B22=\"\",\"\",VLOOKUP(A21,②氏名・生年月日・入卒!$A$6:$D$105,4))","v":""}]
[18,{"$f":"IF(②氏名・生年月日・入卒!B23=\"\",\"\",VLOOKUP(A22,②氏名・生年月日・入卒!$A$6:$D$105,2))","v":""},{"$f":"IF(②氏名・生年月日・入卒!B23=\"\",\"\",VLOOKUP(A22,②氏名・生年月日・入卒!$A$6:$D$105,3))","v":""},{"$f":"IF(②氏名・生年月日・入卒!B23=\"\",\"\",VLOOKUP(A22,②氏名・生年月日・入卒!$A$6:$D$105,4))","v":""}]
[19,{"$f":"IF(②氏名・生年月日・入卒!B24=\"\",\"\",VLOOKUP(A23,②氏名・生年月日・入卒!$A$6:$D$105,2))","v":""},{"$f":"IF(②氏名・生年月日・入卒!B24=\"\",\"\",VLOOKUP(A23,②氏名・生年月日・入卒!$A$6:$D$105,3))","v":""},{"$f":"IF(②氏名・生年月日・入卒!B24=\"\",\"\",VLOOKUP(A23,②氏名・生年月日・入卒!$A$6:$D$105,4))","v":""}]
[20,{"$f":"IF(②氏名・生年月日・入卒!B25=\"\",\"\",VLOOKUP(A24,②氏名・生年月日・入卒!$A$6:$D$105,2))","v":""},{"$f":"IF(②氏名・生年月日・入卒!B25=\"\",\"\",VLOOKUP(A24,②氏名・生年月日・入卒!$A$6:$D$105,3))","v":""},{"$f":"IF(②氏名・生年月日・入卒!B25=\"\",\"\",VLOOKUP(A24,②氏名・生年月日・入卒!$A$6:$D$105,4))","v":""}]
[21,{"$f":"IF(②氏名・生年月日・入卒!B26=\"\",\"\",VLOOKUP(A25,②氏名・生年月日・入卒!$A$6:$D$105,2))","v":""},{"$f":"IF(②氏名・生年月日・入卒!B26=\"\",\"\",VLOOKUP(A25,②氏名・生年月日・入卒!$A$6:$D$105,3))","v":""},{"$f":"IF(②氏名・生年月日・入卒!B26=\"\",\"\",VLOOKUP(A25,②氏名・生年月日・入卒!$A$6:$D$105,4))","v":""}]
[22,{"$f":"IF(②氏名・生年月日・入卒!B27=\"\",\"\",VLOOKUP(A26,②氏名・生年月日・入卒!$A$6:$D$105,2))","v":""},{"$f":"IF(②氏名・生年月日・入卒!B27=\"\",\"\",VLOOKUP(A26,②氏名・生年月日・入卒!$A$6:$D$105,3))","v":""},{"$f":"IF(②氏名・生年月日・入卒!B27=\"\",\"\",VLOOKUP(A26,②氏名・生年月日・入卒!$A$6:$D$105,4))","v":""}]
[23,{"$f":"IF(②氏名・生年月日・入卒!B28=\"\",\"\",VLOOKUP(A27,②氏名・生年月日・入卒!$A$6:$D$105,2))","v":""},{"$f":"IF(②氏名・生年月日・入卒!B28=\"\",\"\",VLOOKUP(A27,②氏名・生年月日・入卒!$A$6:$D$105,3))","v":""},{"$f":"IF(②氏名・生年月日・入卒!B28=\"\",\"\",VLOOKUP(A27,②氏名・生年月日・入卒!$A$6:$D$105,4))","v":""}]
[24,{"$f":"IF(②氏名・生年月日・入卒!B29=\"\",\"\",VLOOKUP(A28,②氏名・生年月日・入卒!$A$6:$D$105,2))","v":""},{"$f":"IF(②氏名・生年月日・入卒!B29=\"\",\"\",VLOOKUP(A28,②氏名・生年月日・入卒!$A$6:$D$105,3))","v":""},{"$f":"IF(②氏名・生年月日・入卒!B29=\"\",\"\",VLOOKUP(A28,②氏名・生年月日・入卒!$A$6:$D$105,4))","v":""}]
[25,{"$f":"IF(②氏名・生年月日・入卒!B30=\"\",\"\",VLOOKUP(A29,②氏名・生年月日・入卒!$A$6:$D$105,2))","v":""},{"$f":"IF(②氏名・生年月日・入卒!B30=\"\",\"\",VLOOKUP(A29,②氏名・生年月日・入卒!$A$6:$D$105,3))","v":""},{"$f":"IF(②氏名・生年月日・入卒!B30=\"\",\"\",VLOOKUP(A29,②氏名・生年月日・入卒!$A$6:$D$105,4))","v":""}]
[26,{"$f":"IF(②氏名・生年月日・入卒!B31=\"\",\"\",VLOOKUP(A30,②氏名・生年月日・入卒!$A$6:$D$105,2))","v":""},{"$f":"IF(②氏名・生年月日・入卒!B31=\"\",\"\",VLOOKUP(A30,②氏名・生年月日・入卒!$A$6:$D$105,3))","v":""},{"$f":"IF(②氏名・生年月日・入卒!B31=\"\",\"\",VLOOKUP(A30,②氏名・生年月日・入卒!$A$6:$D$105,4))","v":""}]
[27,{"$f":"IF(②氏名・生年月日・入卒!B32=\"\",\"\",VLOOKUP(A31,②氏名・生年月日・入卒!$A$6:$D$105,2))","v":""},{"$f":"IF(②氏名・生年月日・入卒!B32=\"\",\"\",VLOOKUP(A31,②氏名・生年月日・入卒!$A$6:$D$105,3))","v":""},{"$f":"IF(②氏名・生年月日・入卒!B32=\"\",\"\",VLOOKUP(A31,②氏名・生年月日・入卒!$A$6:$D$105,4))","v":""}]
[28,{"$f":"IF(②氏名・生年月日・入卒!B33=\"\",\"\",VLOOKUP(A32,②氏名・生年月日・入卒!$A$6:$D$105,2))","v":""},{"$f":"IF(②氏名・生年月日・入卒!B33=\"\",\"\",VLOOKUP(A32,②氏名・生年月日・入卒!$A$6:$D$105,3))","v":""},{"$f":"IF(②氏名・生年月日・入卒!B33=\"\",\"\",VLOOKUP(A32,②氏名・生年月日・入卒!$A$6:$D$105,4))","v":""}]
[29,{"$f":"IF(②氏名・生年月日・入卒!B34=\"\",\"\",VLOOKUP(A33,②氏名・生年月日・入卒!$A$6:$D$105,2))","v":""},{"$f":"IF(②氏名・生年月日・入卒!B34=\"\",\"\",VLOOKUP(A33,②氏名・生年月日・入卒!$A$6:$D$105,3))","v":""},{"$f":"IF(②氏名・生年月日・入卒!B34=\"\",\"\",VLOOKUP(A33,②氏名・生年月日・入卒!$A$6:$D$105,4))","v":""}]
[30,{"$f":"IF(②氏名・生年月日・入卒!B35=\"\",\"\",VLOOKUP(A34,②氏名・生年月日・入卒!$A$6:$D$105,2))","v":""},{"$f":"IF(②氏名・生年月日・入卒!B35=\"\",\"\",VLOOKUP(A34,②氏名・生年月日・入卒!$A$6:$D$105,3))","v":""},{"$f":"IF(②氏名・生年月日・入卒!B35=\"\",\"\",VLOOKUP(A34,②氏名・生年月日・入卒!$A$6:$D$105,4))","v":""}]
[31,{"$f":"IF(②氏名・生年月日・入卒!B36=\"\",\"\",VLOOKUP(A35,②氏名・生年月日・入卒!$A$6:$D$105,2))","v":""},{"$f":"IF(②氏名・生年月日・入卒!B36=\"\",\"\",VLOOKUP(A35,②氏名・生年月日・入卒!$A$6:$D$105,3))","v":""},{"$f":"IF(②氏名・生年月日・入卒!B36=\"\",\"\",VLOOKUP(A35,②氏名・生年月日・入卒!$A$6:$D$105,4))","v":""}]
[32,{"$f":"IF(②氏名・生年月日・入卒!B37=\"\",\"\",VLOOKUP(A36,②氏名・生年月日・入卒!$A$6:$D$105,2))","v":""},{"$f":"IF(②氏名・生年月日・入卒!B37=\"\",\"\",VLOOKUP(A36,②氏名・生年月日・入卒!$A$6:$D$105,3))","v":""},{"$f":"IF(②氏名・生年月日・入卒!B37=\"\",\"\",VLOOKUP(A36,②氏名・生年月日・入卒!$A$6:$D$105,4))","v":""}]
[33,{"$f":"IF(②氏名・生年月日・入卒!B38=\"\",\"\",VLOOKUP(A37,②氏名・生年月日・入卒!$A$6:$D$105,2))","v":""},{"$f":"IF(②氏名・生年月日・入卒!B38=\"\",\"\",VLOOKUP(A37,②氏名・生年月日・入卒!$A$6:$D$105,3))","v":""},{"$f":"IF(②氏名・生年月日・入卒!B38=\"\",\"\",VLOOKUP(A37,②氏名・生年月日・入卒!$A$6:$D$105,4))","v":""}]
[34,{"$f":"IF(②氏名・生年月日・入卒!B39=\"\",\"\",VLOOKUP(A38,②氏名・生年月日・入卒!$A$6:$D$105,2))","v":""},{"$f":"IF(②氏名・生年月日・入卒!B39=\"\",\"\",VLOOKUP(A38,②氏名・生年月日・入卒!$A$6:$D$105,3))","v":""},{"$f":"IF(②氏名・生年月日・入卒!B39=\"\",\"\",VLOOKUP(A38,②氏名・生年月日・入卒!$A$6:$D$105,4))","v":""}]
[35,{"$f":"IF(②氏名・生年月日・入卒!B40=\"\",\"\",VLOOKUP(A39,②氏名・生年月日・入卒!$A$6:$D$105,2))","v":""},{"$f":"IF(②氏名・生年月日・入卒!B40=\"\",\"\",VLOOKUP(A39,②氏名・生年月日・入卒!$A$6:$D$105,3))","v":""},{"$f":"IF(②氏名・生年月日・入卒!B40=\"\",\"\",VLOOKUP(A39,②氏名・生年月日・入卒!$A$6:$D$105,4))","v":""}]
[36,{"$f":"IF(②氏名・生年月日・入卒!B41=\"\",\"\",VLOOKUP(A40,②氏名・生年月日・入卒!$A$6:$D$105,2))","v":""},{"$f":"IF(②氏名・生年月日・入卒!B41=\"\",\"\",VLOOKUP(A40,②氏名・生年月日・入卒!$A$6:$D$105,3))","v":""},{"$f":"IF(②氏名・生年月日・入卒!B41=\"\",\"\",VLOOKUP(A40,②氏名・生年月日・入卒!$A$6:$D$105,4))","v":""}]
[37,{"$f":"IF(②氏名・生年月日・入卒!B42=\"\",\"\",VLOOKUP(A41,②氏名・生年月日・入卒!$A$6:$D$105,2))","v":""},{"$f":"IF(②氏名・生年月日・入卒!B42=\"\",\"\",VLOOKUP(A41,②氏名・生年月日・入卒!$A$6:$D$105,3))","v":""},{"$f":"IF(②氏名・生年月日・入卒!B42=\"\",\"\",VLOOKUP(A41,②氏名・生年月日・入卒!$A$6:$D$105,4))","v":""}]
[38,{"$f":"IF(②氏名・生年月日・入卒!B43=\"\",\"\",VLOOKUP(A42,②氏名・生年月日・入卒!$A$6:$D$105,2))","v":""},{"$f":"IF(②氏名・生年月日・入卒!B43=\"\",\"\",VLOOKUP(A42,②氏名・生年月日・入卒!$A$6:$D$105,3))","v":""},{"$f":"IF(②氏名・生年月日・入卒!B43=\"\",\"\",VLOOKUP(A42,②氏名・生年月日・入卒!$A$6:$D$105,4))","v":""}]
[39,{"$f":"IF(②氏名・生年月日・入卒!B44=\"\",\"\",VLOOKUP(A43,②氏名・生年月日・入卒!$A$6:$D$105,2))","v":""},{"$f":"IF(②氏名・生年月日・入卒!B44=\"\",\"\",VLOOKUP(A43,②氏名・生年月日・入卒!$A$6:$D$105,3))","v":""},{"$f":"IF(②氏名・生年月日・入卒!B44=\"\",\"\",VLOOKUP(A43,②氏名・生年月日・入卒!$A$6:$D$105,4))","v":""}]
[40,{"$f":"IF(②氏名・生年月日・入卒!B45=\"\",\"\",VLOOKUP(A44,②氏名・生年月日・入卒!$A$6:$D$105,2))","v":""},{"$f":"IF(②氏名・生年月日・入卒!B45=\"\",\"\",VLOOKUP(A44,②氏名・生年月日・入卒!$A$6:$D$105,3))","v":""},{"$f":"IF(②氏名・生年月日・入卒!B45=\"\",\"\",VLOOKUP(A44,②氏名・生年月日・入卒!$A$6:$D$105,4))","v":""}]
[41,{"$f":"IF(②氏名・生年月日・入卒!B46=\"\",\"\",VLOOKUP(A45,②氏名・生年月日・入卒!$A$6:$D$105,2))","v":""},{"$f":"IF(②氏名・生年月日・入卒!B46=\"\",\"\",VLOOKUP(A45,②氏名・生年月日・入卒!$A$6:$D$105,3))","v":""},{"$f":"IF(②氏名・生年月日・入卒!B46=\"\",\"\",VLOOKUP(A45,②氏名・生年月日・入卒!$A$6:$D$105,4))","v":""}]
[42,{"$f":"IF(②氏名・生年月日・入卒!B47=\"\",\"\",VLOOKUP(A46,②氏名・生年月日・入卒!$A$6:$D$105,2))","v":""},{"$f":"IF(②氏名・生年月日・入卒!B47=\"\",\"\",VLOOKUP(A46,②氏名・生年月日・入卒!$A$6:$D$105,3))","v":""},{"$f":"IF(②氏名・生年月日・入卒!B47=\"\",\"\",VLOOKUP(A46,②氏名・生年月日・入卒!$A$6:$D$105,4))","v":""}]
[43,{"$f":"IF(②氏名・生年月日・入卒!B48=\"\",\"\",VLOOKUP(A47,②氏名・生年月日・入卒!$A$6:$D$105,2))","v":""},{"$f":"IF(②氏名・生年月日・入卒!B48=\"\",\"\",VLOOKUP(A47,②氏名・生年月日・入卒!$A$6:$D$105,3))","v":""},{"$f":"IF(②氏名・生年月日・入卒!B48=\"\",\"\",VLOOKUP(A47,②氏名・生年月日・入卒!$A$6:$D$105,4))","v":""}]
[44,{"$f":"IF(②氏名・生年月日・入卒!B49=\"\",\"\",VLOOKUP(A48,②氏名・生年月日・入卒!$A$6:$D$105,2))","v":""},{"$f":"IF(②氏名・生年月日・入卒!B49=\"\",\"\",VLOOKUP(A48,②氏名・生年月日・入卒!$A$6:$D$105,3))","v":""},{"$f":"IF(②氏名・生年月日・入卒!B49=\"\",\"\",VLOOKUP(A48,②氏名・生年月日・入卒!$A$6:$D$105,4))","v":""}]
[45,{"$f":"IF(②氏名・生年月日・入卒!B50=\"\",\"\",VLOOKUP(A49,②氏名・生年月日・入卒!$A$6:$D$105,2))","v":""},{"$f":"IF(②氏名・生年月日・入卒!B50=\"\",\"\",VLOOKUP(A49,②氏名・生年月日・入卒!$A$6:$D$105,3))","v":""},{"$f":"IF(②氏名・生年月日・入卒!B50=\"\",\"\",VLOOKUP(A49,②氏名・生年月日・入卒!$A$6:$D$105,4))","v":""}]
[46,{"$f":"IF(②氏名・生年月日・入卒!B51=\"\",\"\",VLOOKUP(A50,②氏名・生年月日・入卒!$A$6:$D$105,2))","v":""},{"$f":"IF(②氏名・生年月日・入卒!B51=\"\",\"\",VLOOKUP(A50,②氏名・生年月日・入卒!$A$6:$D$105,3))","v":""},{"$f":"IF(②氏名・生年月日・入卒!B51=\"\",\"\",VLOOKUP(A50,②氏名・生年月日・入卒!$A$6:$D$105,4))","v":""}]
[47,{"$f":"IF(②氏名・生年月日・入卒!B52=\"\",\"\",VLOOKUP(A51,②氏名・生年月日・入卒!$A$6:$D$105,2))","v":""},{"$f":"IF(②氏名・生年月日・入卒!B52=\"\",\"\",VLOOKUP(A51,②氏名・生年月日・入卒!$A$6:$D$105,3))","v":""},{"$f":"IF(②氏名・生年月日・入卒!B52=\"\",\"\",VLOOKUP(A51,②氏名・生年月日・入卒!$A$6:$D$105,4))","v":""}]
[48,{"$f":"IF(②氏名・生年月日・入卒!B53=\"\",\"\",VLOOKUP(A52,②氏名・生年月日・入卒!$A$6:$D$105,2))","v":""},{"$f":"IF(②氏名・生年月日・入卒!B53=\"\",\"\",VLOOKUP(A52,②氏名・生年月日・入卒!$A$6:$D$105,3))","v":""},{"$f":"IF(②氏名・生年月日・入卒!B53=\"\",\"\",VLOOKUP(A52,②氏名・生年月日・入卒!$A$6:$D$105,4))","v":""}]
[49,{"$f":"IF(②氏名・生年月日・入卒!B54=\"\",\"\",VLOOKUP(A53,②氏名・生年月日・入卒!$A$6:$D$105,2))","v":""},{"$f":"IF(②氏名・生年月日・入卒!B54=\"\",\"\",VLOOKUP(A53,②氏名・生年月日・入卒!$A$6:$D$105,3))","v":""},{"$f":"IF(②氏名・生年月日・入卒!B54=\"\",\"\",VLOOKUP(A53,②氏名・生年月日・入卒!$A$6:$D$105,4))","v":""}]
[50,{"$f":"IF(②氏名・生年月日・入卒!B55=\"\",\"\",VLOOKUP(A54,②氏名・生年月日・入卒!$A$6:$D$105,2))","v":""},{"$f":"IF(②氏名・生年月日・入卒!B55=\"\",\"\",VLOOKUP(A54,②氏名・生年月日・入卒!$A$6:$D$105,3))","v":""},{"$f":"IF(②氏名・生年月日・入卒!B55=\"\",\"\",VLOOKUP(A54,②氏名・生年月日・入卒!$A$6:$D$105,4))","v":""}]
[51,{"$f":"IF(②氏名・生年月日・入卒!B56=\"\",\"\",VLOOKUP(A55,②氏名・生年月日・入卒!$A$6:$D$105,2))","v":""},{"$f":"IF(②氏名・生年月日・入卒!B56=\"\",\"\",VLOOKUP(A55,②氏名・生年月日・入卒!$A$6:$D$105,3))","v":""},{"$f":"IF(②氏名・生年月日・入卒!B56=\"\",\"\",VLOOKUP(A55,②氏名・生年月日・入卒!$A$6:$D$105,4))","v":""}]
[52,{"$f":"IF(②氏名・生年月日・入卒!B57=\"\",\"\",VLOOKUP(A56,②氏名・生年月日・入卒!$A$6:$D$105,2))","v":""},{"$f":"IF(②氏名・生年月日・入卒!B57=\"\",\"\",VLOOKUP(A56,②氏名・生年月日・入卒!$A$6:$D$105,3))","v":""},{"$f":"IF(②氏名・生年月日・入卒!B57=\"\",\"\",VLOOKUP(A56,②氏名・生年月日・入卒!$A$6:$D$105,4))","v":""}]
[53,{"$f":"IF(②氏名・生年月日・入卒!B58=\"\",\"\",VLOOKUP(A57,②氏名・生年月日・入卒!$A$6:$D$105,2))","v":""},{"$f":"IF(②氏名・生年月日・入卒!B58=\"\",\"\",VLOOKUP(A57,②氏名・生年月日・入卒!$A$6:$D$105,3))","v":""},{"$f":"IF(②氏名・生年月日・入卒!B58=\"\",\"\",VLOOKUP(A57,②氏名・生年月日・入卒!$A$6:$D$105,4))","v":""}]
[54,{"$f":"IF(②氏名・生年月日・入卒!B59=\"\",\"\",VLOOKUP(A58,②氏名・生年月日・入卒!$A$6:$D$105,2))","v":""},{"$f":"IF(②氏名・生年月日・入卒!B59=\"\",\"\",VLOOKUP(A58,②氏名・生年月日・入卒!$A$6:$D$105,3))","v":""},{"$f":"IF(②氏名・生年月日・入卒!B59=\"\",\"\",VLOOKUP(A58,②氏名・生年月日・入卒!$A$6:$D$105,4))","v":""}]
[55,{"$f":"IF(②氏名・生年月日・入卒!B60=\"\",\"\",VLOOKUP(A59,②氏名・生年月日・入卒!$A$6:$D$105,2))","v":""},{"$f":"IF(②氏名・生年月日・入卒!B60=\"\",\"\",VLOOKUP(A59,②氏名・生年月日・入卒!$A$6:$D$105,3))","v":""},{"$f":"IF(②氏名・生年月日・入卒!B60=\"\",\"\",VLOOKUP(A59,②氏名・生年月日・入卒!$A$6:$D$105,4))","v":""}]
[56,{"$f":"IF(②氏名・生年月日・入卒!B61=\"\",\"\",VLOOKUP(A60,②氏名・生年月日・入卒!$A$6:$D$105,2))","v":""},{"$f":"IF(②氏名・生年月日・入卒!B61=\"\",\"\",VLOOKUP(A60,②氏名・生年月日・入卒!$A$6:$D$105,3))","v":""},{"$f":"IF(②氏名・生年月日・入卒!B61=\"\",\"\",VLOOKUP(A60,②氏名・生年月日・入卒!$A$6:$D$105,4))","v":""}]
[57,{"$f":"IF(②氏名・生年月日・入卒!B62=\"\",\"\",VLOOKUP(A61,②氏名・生年月日・入卒!$A$6:$D$105,2))","v":""},{"$f":"IF(②氏名・生年月日・入卒!B62=\"\",\"\",VLOOKUP(A61,②氏名・生年月日・入卒!$A$6:$D$105,3))","v":""},{"$f":"IF(②氏名・生年月日・入卒!B62=\"\",\"\",VLOOKUP(A61,②氏名・生年月日・入卒!$A$6:$D$105,4))","v":""}]
[58,{"$f":"IF(②氏名・生年月日・入卒!B63=\"\",\"\",VLOOKUP(A62,②氏名・生年月日・入卒!$A$6:$D$105,2))","v":""},{"$f":"IF(②氏名・生年月日・入卒!B63=\"\",\"\",VLOOKUP(A62,②氏名・生年月日・入卒!$A$6:$D$105,3))","v":""},{"$f":"IF(②氏名・生年月日・入卒!B63=\"\",\"\",VLOOKUP(A62,②氏名・生年月日・入卒!$A$6:$D$105,4))","v":""}]
[59,{"$f":"IF(②氏名・生年月日・入卒!B64=\"\",\"\",VLOOKUP(A63,②氏名・生年月日・入卒!$A$6:$D$105,2))","v":""},{"$f":"IF(②氏名・生年月日・入卒!B64=\"\",\"\",VLOOKUP(A63,②氏名・生年月日・入卒!$A$6:$D$105,3))","v":""},{"$f":"IF(②氏名・生年月日・入卒!B64=\"\",\"\",VLOOKUP(A63,②氏名・生年月日・入卒!$A$6:$D$105,4))","v":""}]
[60,{"$f":"IF(②氏名・生年月日・入卒!B65=\"\",\"\",VLOOKUP(A64,②氏名・生年月日・入卒!$A$6:$D$105,2))","v":""},{"$f":"IF(②氏名・生年月日・入卒!B65=\"\",\"\",VLOOKUP(A64,②氏名・生年月日・入卒!$A$6:$D$105,3))","v":""},{"$f":"IF(②氏名・生年月日・入卒!B65=\"\",\"\",VLOOKUP(A64,②氏名・生年月日・入卒!$A$6:$D$105,4))","v":""}]
[61,{"$f":"IF(②氏名・生年月日・入卒!B66=\"\",\"\",VLOOKUP(A65,②氏名・生年月日・入卒!$A$6:$D$105,2))","v":""},{"$f":"IF(②氏名・生年月日・入卒!B66=\"\",\"\",VLOOKUP(A65,②氏名・生年月日・入卒!$A$6:$D$105,3))","v":""},{"$f":"IF(②氏名・生年月日・入卒!B66=\"\",\"\",VLOOKUP(A65,②氏名・生年月日・入卒!$A$6:$D$105,4))","v":""}]
[62,{"$f":"IF(②氏名・生年月日・入卒!B67=\"\",\"\",VLOOKUP(A66,②氏名・生年月日・入卒!$A$6:$D$105,2))","v":""},{"$f":"IF(②氏名・生年月日・入卒!B67=\"\",\"\",VLOOKUP(A66,②氏名・生年月日・入卒!$A$6:$D$105,3))","v":""},{"$f":"IF(②氏名・生年月日・入卒!B67=\"\",\"\",VLOOKUP(A66,②氏名・生年月日・入卒!$A$6:$D$105,4))","v":""}]
[63,{"$f":"IF(②氏名・生年月日・入卒!B68=\"\",\"\",VLOOKUP(A67,②氏名・生年月日・入卒!$A$6:$D$105,2))","v":""},{"$f":"IF(②氏名・生年月日・入卒!B68=\"\",\"\",VLOOKUP(A67,②氏名・生年月日・入卒!$A$6:$D$105,3))","v":""},{"$f":"IF(②氏名・生年月日・入卒!B68=\"\",\"\",VLOOKUP(A67,②氏名・生年月日・入卒!$A$6:$D$105,4))","v":""}]
[64,{"$f":"IF(②氏名・生年月日・入卒!B69=\"\",\"\",VLOOKUP(A68,②氏名・生年月日・入卒!$A$6:$D$105,2))","v":""},{"$f":"IF(②氏名・生年月日・入卒!B69=\"\",\"\",VLOOKUP(A68,②氏名・生年月日・入卒!$A$6:$D$105,3))","v":""},{"$f":"IF(②氏名・生年月日・入卒!B69=\"\",\"\",VLOOKUP(A68,②氏名・生年月日・入卒!$A$6:$D$105,4))","v":""}]
[65,{"$f":"IF(②氏名・生年月日・入卒!B70=\"\",\"\",VLOOKUP(A69,②氏名・生年月日・入卒!$A$6:$D$105,2))","v":""},{"$f":"IF(②氏名・生年月日・入卒!B70=\"\",\"\",VLOOKUP(A69,②氏名・生年月日・入卒!$A$6:$D$105,3))","v":""},{"$f":"IF(②氏名・生年月日・入卒!B70=\"\",\"\",VLOOKUP(A69,②氏名・生年月日・入卒!$A$6:$D$105,4))","v":""}]
[66,{"$f":"IF(②氏名・生年月日・入卒!B71=\"\",\"\",VLOOKUP(A70,②氏名・生年月日・入卒!$A$6:$D$105,2))","v":""},{"$f":"IF(②氏名・生年月日・入卒!B71=\"\",\"\",VLOOKUP(A70,②氏名・生年月日・入卒!$A$6:$D$105,3))","v":""},{"$f":"IF(②氏名・生年月日・入卒!B71=\"\",\"\",VLOOKUP(A70,②氏名・生年月日・入卒!$A$6:$D$105,4))","v":""}]
[67,{"$f":"IF(②氏名・生年月日・入卒!B72=\"\",\"\",VLOOKUP(A71,②氏名・生年月日・入卒!$A$6:$D$105,2))","v":""},{"$f":"IF(②氏名・生年月日・入卒!B72=\"\",\"\",VLOOKUP(A71,②氏名・生年月日・入卒!$A$6:$D$105,3))","v":""},{"$f":"IF(②氏名・生年月日・入卒!B72=\"\",\"\",VLOOKUP(A71,②氏名・生年月日・入卒!$A$6:$D$105,4))","v":""}]
[68,{"$f":"IF(②氏名・生年月日・入卒!B73=\"\",\"\",VLOOKUP(A72,②氏名・生年月日・入卒!$A$6:$D$105,2))","v":""},{"$f":"IF(②氏名・生年月日・入卒!B73=\"\",\"\",VLOOKUP(A72,②氏名・生年月日・入卒!$A$6:$D$105,3))","v":""},{"$f":"IF(②氏名・生年月日・入卒!B73=\"\",\"\",VLOOKUP(A72,②氏名・生年月日・入卒!$A$6:$D$105,4))","v":""}]
[69,{"$f":"IF(②氏名・生年月日・入卒!B74=\"\",\"\",VLOOKUP(A73,②氏名・生年月日・入卒!$A$6:$D$105,2))","v":""},{"$f":"IF(②氏名・生年月日・入卒!B74=\"\",\"\",VLOOKUP(A73,②氏名・生年月日・入卒!$A$6:$D$105,3))","v":""},{"$f":"IF(②氏名・生年月日・入卒!B74=\"\",\"\",VLOOKUP(A73,②氏名・生年月日・入卒!$A$6:$D$105,4))","v":""}]
[70,{"$f":"IF(②氏名・生年月日・入卒!B75=\"\",\"\",VLOOKUP(A74,②氏名・生年月日・入卒!$A$6:$D$105,2))","v":""},{"$f":"IF(②氏名・生年月日・入卒!B75=\"\",\"\",VLOOKUP(A74,②氏名・生年月日・入卒!$A$6:$D$105,3))","v":""},{"$f":"IF(②氏名・生年月日・入卒!B75=\"\",\"\",VLOOKUP(A74,②氏名・生年月日・入卒!$A$6:$D$105,4))","v":""}]
[71,{"$f":"IF(②氏名・生年月日・入卒!B76=\"\",\"\",VLOOKUP(A75,②氏名・生年月日・入卒!$A$6:$D$105,2))","v":""},{"$f":"IF(②氏名・生年月日・入卒!B76=\"\",\"\",VLOOKUP(A75,②氏名・生年月日・入卒!$A$6:$D$105,3))","v":""},{"$f":"IF(②氏名・生年月日・入卒!B76=\"\",\"\",VLOOKUP(A75,②氏名・生年月日・入卒!$A$6:$D$105,4))","v":""}]
[72,{"$f":"IF(②氏名・生年月日・入卒!B77=\"\",\"\",VLOOKUP(A76,②氏名・生年月日・入卒!$A$6:$D$105,2))","v":""},{"$f":"IF(②氏名・生年月日・入卒!B77=\"\",\"\",VLOOKUP(A76,②氏名・生年月日・入卒!$A$6:$D$105,3))","v":""},{"$f":"IF(②氏名・生年月日・入卒!B77=\"\",\"\",VLOOKUP(A76,②氏名・生年月日・入卒!$A$6:$D$105,4))","v":""}]
[73,{"$f":"IF(②氏名・生年月日・入卒!B78=\"\",\"\",VLOOKUP(A77,②氏名・生年月日・入卒!$A$6:$D$105,2))","v":""},{"$f":"IF(②氏名・生年月日・入卒!B78=\"\",\"\",VLOOKUP(A77,②氏名・生年月日・入卒!$A$6:$D$105,3))","v":""},{"$f":"IF(②氏名・生年月日・入卒!B78=\"\",\"\",VLOOKUP(A77,②氏名・生年月日・入卒!$A$6:$D$105,4))","v":""}]
[74,{"$f":"IF(②氏名・生年月日・入卒!B79=\"\",\"\",VLOOKUP(A78,②氏名・生年月日・入卒!$A$6:$D$105,2))","v":""},{"$f":"IF(②氏名・生年月日・入卒!B79=\"\",\"\",VLOOKUP(A78,②氏名・生年月日・入卒!$A$6:$D$105,3))","v":""},{"$f":"IF(②氏名・生年月日・入卒!B79=\"\",\"\",VLOOKUP(A78,②氏名・生年月日・入卒!$A$6:$D$105,4))","v":""}]
[75,{"$f":"IF(②氏名・生年月日・入卒!B80=\"\",\"\",VLOOKUP(A79,②氏名・生年月日・入卒!$A$6:$D$105,2))","v":""},{"$f":"IF(②氏名・生年月日・入卒!B80=\"\",\"\",VLOOKUP(A79,②氏名・生年月日・入卒!$A$6:$D$105,3))","v":""},{"$f":"IF(②氏名・生年月日・入卒!B80=\"\",\"\",VLOOKUP(A79,②氏名・生年月日・入卒!$A$6:$D$105,4))","v":""}]
[76,{"$f":"IF(②氏名・生年月日・入卒!B81=\"\",\"\",VLOOKUP(A80,②氏名・生年月日・入卒!$A$6:$D$105,2))","v":""},{"$f":"IF(②氏名・生年月日・入卒!B81=\"\",\"\",VLOOKUP(A80,②氏名・生年月日・入卒!$A$6:$D$105,3))","v":""},{"$f":"IF(②氏名・生年月日・入卒!B81=\"\",\"\",VLOOKUP(A80,②氏名・生年月日・入卒!$A$6:$D$105,4))","v":""}]
[77,{"$f":"IF(②氏名・生年月日・入卒!B82=\"\",\"\",VLOOKUP(A81,②氏名・生年月日・入卒!$A$6:$D$105,2))","v":""},{"$f":"IF(②氏名・生年月日・入卒!B82=\"\",\"\",VLOOKUP(A81,②氏名・生年月日・入卒!$A$6:$D$105,3))","v":""},{"$f":"IF(②氏名・生年月日・入卒!B82=\"\",\"\",VLOOKUP(A81,②氏名・生年月日・入卒!$A$6:$D$105,4))","v":""}]
[78,{"$f":"IF(②氏名・生年月日・入卒!B83=\"\",\"\",VLOOKUP(A82,②氏名・生年月日・入卒!$A$6:$D$105,2))","v":""},{"$f":"IF(②氏名・生年月日・入卒!B83=\"\",\"\",VLOOKUP(A82,②氏名・生年月日・入卒!$A$6:$D$105,3))","v":""},{"$f":"IF(②氏名・生年月日・入卒!B83=\"\",\"\",VLOOKUP(A82,②氏名・生年月日・入卒!$A$6:$D$105,4))","v":""}]
[79,{"$f":"IF(②氏名・生年月日・入卒!B84=\"\",\"\",VLOOKUP(A83,②氏名・生年月日・入卒!$A$6:$D$105,2))","v":""},{"$f":"IF(②氏名・生年月日・入卒!B84=\"\",\"\",VLOOKUP(A83,②氏名・生年月日・入卒!$A$6:$D$105,3))","v":""},{"$f":"IF(②氏名・生年月日・入卒!B84=\"\",\"\",VLOOKUP(A83,②氏名・生年月日・入卒!$A$6:$D$105,4))","v":""}]
[80,{"$f":"IF(②氏名・生年月日・入卒!B85=\"\",\"\",VLOOKUP(A84,②氏名・生年月日・入卒!$A$6:$D$105,2))","v":""},{"$f":"IF(②氏名・生年月日・入卒!B85=\"\",\"\",VLOOKUP(A84,②氏名・生年月日・入卒!$A$6:$D$105,3))","v":""},{"$f":"IF(②氏名・生年月日・入卒!B85=\"\",\"\",VLOOKUP(A84,②氏名・生年月日・入卒!$A$6:$D$105,4))","v":""}]
[81,{"$f":"IF(②氏名・生年月日・入卒!B86=\"\",\"\",VLOOKUP(A85,②氏名・生年月日・入卒!$A$6:$D$105,2))","v":""},{"$f":"IF(②氏名・生年月日・入卒!B86=\"\",\"\",VLOOKUP(A85,②氏名・生年月日・入卒!$A$6:$D$105,3))","v":""},{"$f":"IF(②氏名・生年月日・入卒!B86=\"\",\"\",VLOOKUP(A85,②氏名・生年月日・入卒!$A$6:$D$105,4))","v":""}]
[82,{"$f":"IF(②氏名・生年月日・入卒!B87=\"\",\"\",VLOOKUP(A86,②氏名・生年月日・入卒!$A$6:$D$105,2))","v":""},{"$f":"IF(②氏名・生年月日・入卒!B87=\"\",\"\",VLOOKUP(A86,②氏名・生年月日・入卒!$A$6:$D$105,3))","v":""},{"$f":"IF(②氏名・生年月日・入卒!B87=\"\",\"\",VLOOKUP(A86,②氏名・生年月日・入卒!$A$6:$D$105,4))","v":""}]
[83,{"$f":"IF(②氏名・生年月日・入卒!B88=\"\",\"\",VLOOKUP(A87,②氏名・生年月日・入卒!$A$6:$D$105,2))","v":""},{"$f":"IF(②氏名・生年月日・入卒!B88=\"\",\"\",VLOOKUP(A87,②氏名・生年月日・入卒!$A$6:$D$105,3))","v":""},{"$f":"IF(②氏名・生年月日・入卒!B88=\"\",\"\",VLOOKUP(A87,②氏名・生年月日・入卒!$A$6:$D$105,4))","v":""}]
[84,{"$f":"IF(②氏名・生年月日・入卒!B89=\"\",\"\",VLOOKUP(A88,②氏名・生年月日・入卒!$A$6:$D$105,2))","v":""},{"$f":"IF(②氏名・生年月日・入卒!B89=\"\",\"\",VLOOKUP(A88,②氏名・生年月日・入卒!$A$6:$D$105,3))","v":""},{"$f":"IF(②氏名・生年月日・入卒!B89=\"\",\"\",VLOOKUP(A88,②氏名・生年月日・入卒!$A$6:$D$105,4))","v":""}]
[85,{"$f":"IF(②氏名・生年月日・入卒!B90=\"\",\"\",VLOOKUP(A89,②氏名・生年月日・入卒!$A$6:$D$105,2))","v":""},{"$f":"IF(②氏名・生年月日・入卒!B90=\"\",\"\",VLOOKUP(A89,②氏名・生年月日・入卒!$A$6:$D$105,3))","v":""},{"$f":"IF(②氏名・生年月日・入卒!B90=\"\",\"\",VLOOKUP(A89,②氏名・生年月日・入卒!$A$6:$D$105,4))","v":""}]
[86,{"$f":"IF(②氏名・生年月日・入卒!B91=\"\",\"\",VLOOKUP(A90,②氏名・生年月日・入卒!$A$6:$D$105,2))","v":""},{"$f":"IF(②氏名・生年月日・入卒!B91=\"\",\"\",VLOOKUP(A90,②氏名・生年月日・入卒!$A$6:$D$105,3))","v":""},{"$f":"IF(②氏名・生年月日・入卒!B91=\"\",\"\",VLOOKUP(A90,②氏名・生年月日・入卒!$A$6:$D$105,4))","v":""}]
[87,{"$f":"IF(②氏名・生年月日・入卒!B92=\"\",\"\",VLOOKUP(A91,②氏名・生年月日・入卒!$A$6:$D$105,2))","v":""},{"$f":"IF(②氏名・生年月日・入卒!B92=\"\",\"\",VLOOKUP(A91,②氏名・生年月日・入卒!$A$6:$D$105,3))","v":""},{"$f":"IF(②氏名・生年月日・入卒!B92=\"\",\"\",VLOOKUP(A91,②氏名・生年月日・入卒!$A$6:$D$105,4))","v":""}]
[88,{"$f":"IF(②氏名・生年月日・入卒!B93=\"\",\"\",VLOOKUP(A92,②氏名・生年月日・入卒!$A$6:$D$105,2))","v":""},{"$f":"IF(②氏名・生年月日・入卒!B93=\"\",\"\",VLOOKUP(A92,②氏名・生年月日・入卒!$A$6:$D$105,3))","v":""},{"$f":"IF(②氏名・生年月日・入卒!B93=\"\",\"\",VLOOKUP(A92,②氏名・生年月日・入卒!$A$6:$D$105,4))","v":""}]
[89,{"$f":"IF(②氏名・生年月日・入卒!B94=\"\",\"\",VLOOKUP(A93,②氏名・生年月日・入卒!$A$6:$D$105,2))","v":""},{"$f":"IF(②氏名・生年月日・入卒!B94=\"\",\"\",VLOOKUP(A93,②氏名・生年月日・入卒!$A$6:$D$105,3))","v":""},{"$f":"IF(②氏名・生年月日・入卒!B94=\"\",\"\",VLOOKUP(A93,②氏名・生年月日・入卒!$A$6:$D$105,4))","v":""}]
[90,{"$f":"IF(②氏名・生年月日・入卒!B95=\"\",\"\",VLOOKUP(A94,②氏名・生年月日・入卒!$A$6:$D$105,2))","v":""},{"$f":"IF(②氏名・生年月日・入卒!B95=\"\",\"\",VLOOKUP(A94,②氏名・生年月日・入卒!$A$6:$D$105,3))","v":""},{"$f":"IF(②氏名・生年月日・入卒!B95=\"\",\"\",VLOOKUP(A94,②氏名・生年月日・入卒!$A$6:$D$105,4))","v":""}]
[91,{"$f":"IF(②氏名・生年月日・入卒!B96=\"\",\"\",VLOOKUP(A95,②氏名・生年月日・入卒!$A$6:$D$105,2))","v":""},{"$f":"IF(②氏名・生年月日・入卒!B96=\"\",\"\",VLOOKUP(A95,②氏名・生年月日・入卒!$A$6:$D$105,3))","v":""},{"$f":"IF(②氏名・生年月日・入卒!B96=\"\",\"\",VLOOKUP(A95,②氏名・生年月日・入卒!$A$6:$D$105,4))","v":""}]
[92,{"$f":"IF(②氏名・生年月日・入卒!B97=\"\",\"\",VLOOKUP(A96,②氏名・生年月日・入卒!$A$6:$D$105,2))","v":""},{"$f":"IF(②氏名・生年月日・入卒!B97=\"\",\"\",VLOOKUP(A96,②氏名・生年月日・入卒!$A$6:$D$105,3))","v":""},{"$f":"IF(②氏名・生年月日・入卒!B97=\"\",\"\",VLOOKUP(A96,②氏名・生年月日・入卒!$A$6:$D$105,4))","v":""}]
[93,{"$f":"IF(②氏名・生年月日・入卒!B98=\"\",\"\",VLOOKUP(A97,②氏名・生年月日・入卒!$A$6:$D$105,2))","v":""},{"$f":"IF(②氏名・生年月日・入卒!B98=\"\",\"\",VLOOKUP(A97,②氏名・生年月日・入卒!$A$6:$D$105,3))","v":""},{"$f":"IF(②氏名・生年月日・入卒!B98=\"\",\"\",VLOOKUP(A97,②氏名・生年月日・入卒!$A$6:$D$105,4))","v":""}]
[94,{"$f":"IF(②氏名・生年月日・入卒!B99=\"\",\"\",VLOOKUP(A98,②氏名・生年月日・入卒!$A$6:$D$105,2))","v":""},{"$f":"IF(②氏名・生年月日・入卒!B99=\"\",\"\",VLOOKUP(A98,②氏名・生年月日・入卒!$A$6:$D$105,3))","v":""},{"$f":"IF(②氏名・生年月日・入卒!B99=\"\",\"\",VLOOKUP(A98,②氏名・生年月日・入卒!$A$6:$D$105,4))","v":""}]
[95,{"$f":"IF(②氏名・生年月日・入卒!B100=\"\",\"\",VLOOKUP(A99,②氏名・生年月日・入卒!$A$6:$D$105,2))","v":""},{"$f":"IF(②氏名・生年月日・入卒!B100=\"\",\"\",VLOOKUP(A99,②氏名・生年月日・入卒!$A$6:$D$105,3))","v":""},{"$f":"IF(②氏名・生年月日・入卒!B100=\"\",\"\",VLOOKUP(A99,②氏名・生年月日・入卒!$A$6:$D$105,4))","v":""}]
[96,{"$f":"IF(②氏名・生年月日・入卒!B101=\"\",\"\",VLOOKUP(A100,②氏名・生年月日・入卒!$A$6:$D$105,2))","v":""},{"$f":"IF(②氏名・生年月日・入卒!B101=\"\",\"\",VLOOKUP(A100,②氏名・生年月日・入卒!$A$6:$D$105,3))","v":""},{"$f":"IF(②氏名・生年月日・入卒!B101=\"\",\"\",VLOOKUP(A100,②氏名・生年月日・入卒!$A$6:$D$105,4))","v":""}]
[97,{"$f":"IF(②氏名・生年月日・入卒!B102=\"\",\"\",VLOOKUP(A101,②氏名・生年月日・入卒!$A$6:$D$105,2))","v":""},{"$f":"IF(②氏名・生年月日・入卒!B102=\"\",\"\",VLOOKUP(A101,②氏名・生年月日・入卒!$A$6:$D$105,3))","v":""},{"$f":"IF(②氏名・生年月日・入卒!B102=\"\",\"\",VLOOKUP(A101,②氏名・生年月日・入卒!$A$6:$D$105,4))","v":""}]
[98,{"$f":"IF(②氏名・生年月日・入卒!B103=\"\",\"\",VLOOKUP(A102,②氏名・生年月日・入卒!$A$6:$D$105,2))","v":""},{"$f":"IF(②氏名・生年月日・入卒!B103=\"\",\"\",VLOOKUP(A102,②氏名・生年月日・入卒!$A$6:$D$105,3))","v":""},{"$f":"IF(②氏名・生年月日・入卒!B103=\"\",\"\",VLOOKUP(A102,②氏名・生年月日・入卒!$A$6:$D$105,4))","v":""}]
[99,{"$f":"IF(②氏名・生年月日・入卒!B104=\"\",\"\",VLOOKUP(A103,②氏名・生年月日・入卒!$A$6:$D$105,2))","v":""},{"$f":"IF(②氏名・生年月日・入卒!B104=\"\",\"\",VLOOKUP(A103,②氏名・生年月日・入卒!$A$6:$D$105,3))","v":""},{"$f":"IF(②氏名・生年月日・入卒!B104=\"\",\"\",VLOOKUP(A103,②氏名・生年月日・入卒!$A$6:$D$105,4))","v":""}]
[100,{"$f":"IF(②氏名・生年月日・入卒!B105=\"\",\"\",VLOOKUP(A104,②氏名・生年月日・入卒!$A$6:$D$105,2))","v":""},{"$f":"IF(②氏名・生年月日・入卒!B105=\"\",\"\",VLOOKUP(A104,②氏名・生年月日・入卒!$A$6:$D$105,3))","v":""},{"$f":"IF(②氏名・生年月日・入卒!B105=\"\",\"\",VLOOKUP(A104,②氏名・生年月日・入卒!$A$6:$D$105,4))","v":""}]

{"sheet":"推薦書印刷","index":6,"n_rows":212,"n_cols":143,"rows_kept":212,"cut":false,"hidden":false,"merged":[[5,142,9,142],[10,142,14,142],[15,141,19,141],[15,142,19,142],[47,1,78,1],[11,1,46,1],[79,1,112,1],[113,1,136,1],[137,1,196,1],[66,30,72,34],[66,35,72,40],[66,41,72,45],[47,124,56,136],[53,3,65,16],[53,17,65,58],[57,59,67,65],[57,66,67,71],[57,72,67,77],[57,78,67,84],[68,124,78,136],[73,3,78,16],[73,17,78,58],[79,3,112,8],[79,9,88,16],[197,1,203,1],[5,141,9,141],[10,141,14,141],[33,79,38,120],[34,36,37,78],[68,90,78,123],[57,90,67,123],[47,90,56,123],[68,59,78,65],[13,109,16,112],[13,113,16,120],[13,121,16,124],[13,125,16,132],[13,133,16,136],[20,12,25,124],[47,3,52,16],[47,17,52,58],[47,59,56,65],[47,66,56,71],[47,72,56,77],[47,78,56,84],[47,85,56,89],[66,17,72,23],[66,24,72,29],[1,119,1,135],[3,3,10,20],[3,21,10,88],[3,89,10,97],[3,98,10,136],[13,95,16,100],[13,101,16,108],[39,79,44,120],[40,63,43,78],[40,122,43,125],[68,85,78,89],[57,85,67,89],[57,124,67,136],[66,3,72,16],[79,85,88,97],[79,98,88,110],[79,111,88,123],[79,124,88,136],[89,9,96,16],[89,17,96,30],[89,31,96,44],[89,45,96,58],[89,59,96,71],[89,72,96,84],[79,72,88,84],[79,17,88,30],[79,31,88,44],[79,45,88,58],[79,59,88,71],[66,46,72,51],[66,52,72,58],[68,66,78,71],[68,72,78,77],[68,78,78,84],[89,85,96,97],[89,98,96,110],[89,111,96,123],[89,124,96,136],[97,9,104,16],[97,17,104,30],[97,31,104,44],[97,45,104,58],[97,59,104,71],[125,17,130,30],[125,31,130,44],[125,45,130,58],[97,124,104,136],[105,9,112,16],[105,17,112,30],[105,31,112,44],[105,45,112,58],[105,59,112,71],[97,72,104,84],[97,85,104,97],[97,98,104,110],[97,111,104,123],[113,59,118,136],[119,9,124,16],[119,17,124,30],[119,31,124,44],[119,45,124,58],[119,59,124,136],[105,72,112,84],[105,85,112,97],[105,98,112,110],[105,111,112,123],[105,124,112,136],[131,17,136,30],[131,31,136,44],[131,45,136,58],[131,59,136,136],[177,3,196,16],[177,17,196,136],[137,3,146,16],[137,17,146,136],[147,3,166,16],[147,17,166,136],[167,3,176,16],[167,17,176,25],[167,26,176,29],[167,30,176,37],[167,38,176,41],[167,42,176,53],[167,77,176,87],[170,88,173,133],[113,3,136,8],[113,9,118,16],[113,17,118,30],[113,31,118,44],[113,45,118,58],[125,9,130,16],[342,12,345,66],[0,3,0,136],[1,77,1,118],[204,3,215,10],[204,11,215,18],[204,19,215,26],[204,27,215,34],[204,35,215,42],[211,65,215,136],[197,66,203,82],[197,83,203,129],[197,130,203,136],[200,3,203,10],[200,11,203,18],[200,19,203,26],[200,27,203,34],[200,35,203,42],[200,43,215,51],[200,52,215,60],[167,54,176,63],[167,64,176,76],[167,134,176,136],[125,59,130,136],[131,9,136,16]]}
[null,null,null,"推薦書印刷データ",null,null,null,null,null,null,null,null,null,null,null,null,null,null,null,null,null,null,null,null,null,null,null,null,null,null,null,null,null,null,null,null,null,null,null,null,null,null,null,null,null,null,null,null,null,null,null,null,null,null,null,null,null,null,null,null,null,null,null,null,null,null,null,null,null,null,null,null,null,null,null,null,null,null,null,null,null,null,null,null,null,null,null,null,null,null,null,null,null,null,null,null,null,null,null,null,null,null,null,null,null,null,null,null,null,null,null,null,null,null,null,null,null,null,null,null,null,null,null,null,null,null,null,null,null,null,null,null,null,null,null,null,null,null,null,null,"表示番号"]
[null,null,null,null,null,null,null,null,null,null,null,null,null,null,null,null,null,null,null,null,null,null,null,null,null,null,null,null,null,null,null,null,null,null,null,null,null,null,null,null,null,null,null,null,null,null,null,null,null,null,null,null,null,null,null,null,null,null,null,null,null,null,null,null,null,null,null,null,null,null,null,null,null,null,null,null,null,{"$f":"IF(OR(①中学校名!D13=①中学校名!J12,①中学校名!D13=①中学校名!J14),①中学校名!K12,①中学校名!K13)","v":"（中学校用）"},null,null,null,null,null,null,null,null,null,null,null,null,null,null,null,null,null,null,null,null,null,null,null,null,null,null,null,null,null,null,null,null,null,null,null,null,null,null,null,null,null,"推",null,null,null,null,null,null,null,null,null,null,null,null,null,null,null,null,null,null,null,null,1]
[]
[null,null,null,"令和8年度",null,null,null,null,null,null,null,null,null,null,null,null,null,null,null,null,null,"鹿児島県私立高等学校統一推薦書",null,null,null,null,null,null,null,null,null,null,null,null,null,null,null,null,null,null,null,null,null,null,null,null,null,null,null,null,null,null,null,null,null,null,null,null,null,null,null,null,null,null,null,null,null,null,null,null,null,null,null,null,null,null,null,null,null,null,null,null,null,null,null,null,null,null,null,"受験\n番号",null,null,null,null,null,null,null,null,"※"]
[]
[null,null,null,null,null,null,null,null,null,null,null,null,null,null,null,null,null,null,null,null,null,null,null,null,null,null,null,null,null,null,null,null,null,null,null,null,null,null,null,null,null,null,null,null,null,null,null,null,null,null,null,null,null,null,null,null,null,null,null,null,null,null,null,null,null,null,null,null,null,null,null,null,null,null,null,null,null,null,null,null,null,null,null,null,null,null,null,null,null,null,null,null,null,null,null,null,null,null,null,null,null,null,null,null,null,null,null,null,null,null,null,null,null,null,null,null,null,null,null,null,null,null,null,null,null,null,null,null,null,null,null,null,null,null,null,null,null,null,null,null,null,"開始No",1]
[]
[]
[]
[]
[null,null,null,null,null,null,null,null,null,null,null,null,null,null,null,null,null,null,null,null,null,null,null,null,null,null,null,null,null,null,null,null,null,null,null,null,null,null,null,null,null,null,null,null,null,null,null,null,null,null,null,null,null,null,null,null,null,null,null,null,null,null,null,null,null,null,null,null,null,null,null,null,null,null,null,null,null,null,null,null,null,null,null,null,null,null,null,null,null,null,null,null,null,null,null,null,null,null,null,null,null,null,null,null,null,null,null,null,null,null,null,null,null,null,null,null,null,null,null,null,null,null,null,null,null,null,null,null,null,null,null,null,null,null,null,null,null,null,null,null,null,"終了No",{"$f":"COUNT(②氏名・生年月日・入卒!AA6:AA1500)","v":0}]
[null,"①中学校名"]
[]
[null,null,null,null,null,null,null,null,null,null,null,null,null,null,null,null,null,null,null,null,null,null,null,null,null,null,null,null,null,null,null,null,null,null,null,null,null,null,null,null,null,null,null,null,null,null,null,null,null,null,null,null,null,null,null,null,null,null,null,null,null,null,null,null,null,null,null,null,null,null,null,null,null,null,null,null,null,null,null,null,null,null,null,null,null,null,null,null,null,null,null,null,null,null,null,"令和",null,null,null,null,null,{"$f":"①中学校名!D5","v":0},null,null,null,null,null,null,null,"年",null,null,null,{"$f":"①中学校名!E5","v":0},null,null,null,null,null,null,null,"月",null,null,null,{"$f":"①中学校名!F5","v":0},null,null,null,null,null,null,null,"日"]
[]
[null,null,null,null,null,null,null,null,null,null,null,null,null,null,null,null,null,null,null,null,null,null,null,null,null,null,null,null,null,null,null,null,null,null,null,null,null,null,null,null,null,null,null,null,null,null,null,null,null,null,null,null,null,null,null,null,null,null,null,null,null,null,null,null,null,null,null,null,null,null,null,null,null,null,null,null,null,null,null,null,null,null,null,null,null,null,null,null,null,null,null,null,null,null,null,null,null,null,null,null,null,null,null,null,null,null,null,null,null,null,null,null,null,null,null,null,null,null,null,null,null,null,null,null,null,null,null,null,null,null,null,null,null,null,null,null,null,null,null,null,null,"合計",{"$f":"EM11-EM6+1 & \"人分\"","v":"0人分"}]
[]
[]
[]
[]
[null,null,null,null,null,null,null,null,null,null,null,null,"下記のとおり相違ないことを証明し、貴校への入学に適格者として推薦します。"]
[]
[]
[]
[]
[]
[]
[]
[]
[]
[]
[]
[]
[null,null,null,null,null,null,null,null,null,null,null,null,null,null,null,null,null,null,null,null,null,null,null,null,null,null,null,null,null,null,null,null,null,null,null,null,null,null,null,null,null,null,null,null,null,null,null,null,null,null,null,null,null,null,null,null,null,null,null,null,null,null,null,null,null,null,null,null,null,null,null,null,null,null,null,null,null,null,null,{"$f":"①中学校名!D9","v":0}]
[null,null,null,null,null,null,null,null,null,null,null,null,null,null,null,null,null,null,null,null,null,null,null,null,null,null,null,null,null,null,null,null,null,null,null,null,{"$f":"IF(OR(①中学校名!D13=①中学校名!J12,①中学校名!D13=①中学校名!J14),①中学校名!L12,①中学校名!L13)","v":"中学校名"}]
[]
[]
[]
[]
[null,null,null,null,null,null,null,null,null,null,null,null,null,null,null,null,null,null,null,null,null,null,null,null,null,null,null,null,null,null,null,null,null,null,null,null,null,null,null,null,null,null,null,null,null,null,null,null,null,null,null,null,null,null,null,null,null,null,null,null,null,null,null,null,null,null,null,null,null,null,null,null,null,null,null,null,null,null,null,{"$f":"①中学校名!D17","v":0}]
[null,null,null,null,null,null,null,null,null,null,null,null,null,null,null,null,null,null,null,null,null,null,null,null,null,null,null,null,null,null,null,null,null,null,null,null,null,null,null,null,null,null,null,null,null,null,null,null,null,null,null,null,null,null,null,null,null,null,null,null,null,null,null,"校 長 名",null,null,null,null,null,null,null,null,null,null,null,null,null,null,null,null,null,null,null,null,null,null,null,null,null,null,null,null,null,null,null,null,null,null,null,null,null,null,null,null,null,null,null,null,null,null,null,null,null,null,null,null,null,null,null,null,null,null,"印"]
[]
[]
[]
[]
[]
[]
[null,"②氏名・生年月日・入卒",null,"ふりがな",null,null,null,null,null,null,null,null,null,null,null,null,null,{"$f":"VLOOKUP($EK$2,②氏名・生年月日・入卒!$A$6:$W$105,5)","v":0},null,null,null,null,null,null,null,null,null,null,null,null,null,null,null,null,null,null,null,null,null,null,null,null,null,null,null,null,null,null,null,null,null,null,null,null,null,null,null,null,null,{"$f":"VLOOKUP($EK$2,②氏名・生年月日・入卒!$A$6:$Y$105,12)","v":0},null,null,null,null,null,null,{"$f":"VLOOKUP($EK$2,②氏名・生年月日・入卒!$A$6:$Y$105,13)","v":0},null,null,null,null,null,"年",null,null,null,null,null,4,null,null,null,null,null,null,"月",null,null,null,null,{"$f":"VLOOKUP($EK$2,②氏名・生年月日・入卒!$A$6:$Y$105,14)","v":0},null,null,null,null,null,null,null,null,null,null,null,null,null,null,null,null,null,null,null,null,null,null,null,null,null,null,null,null,null,null,null,null,null,"入学"]
[]
[]
[]
[]
[]
[null,null,null,"志願者\n氏　名",null,null,null,null,null,null,null,null,null,null,null,null,null,{"$f":"VLOOKUP($EK$2,②氏名・生年月日・入卒!$A$6:$W$105,4)","v":0}]
[]
[]
[]
[null,null,null,null,null,null,null,null,null,null,null,null,null,null,null,null,null,null,null,null,null,null,null,null,null,null,null,null,null,null,null,null,null,null,null,null,null,null,null,null,null,null,null,null,null,null,null,null,null,null,null,null,null,null,null,null,null,null,null,"令和",null,null,null,null,null,null,{"$f":"VLOOKUP($EK$2,②氏名・生年月日・入卒!$A$6:$Y$105,16)","v":0},null,null,null,null,null,"年",null,null,null,null,null,{"$f":"VLOOKUP($EK$2,②氏名・生年月日・入卒!$A$6:$Y$105,17)","v":0},null,null,null,null,null,null,"月",null,null,null,null,{"$f":"VLOOKUP($EK$2,②氏名・生年月日・入卒!$A$6:$Y$105,18)","v":0},null,null,null,null,null,null,null,null,null,null,null,null,null,null,null,null,null,null,null,null,null,null,null,null,null,null,null,null,null,null,null,null,null,"卒業見込み"]
[]
[]
[]
[]
[]
[]
[]
[]
[null,null,null,"生年月日",null,null,null,null,null,null,null,null,null,null,null,null,null,"平成",null,null,null,null,null,null,{"$f":"VLOOKUP($EK$2,②氏名・生年月日・入卒!$A$6:$W$105,6)","v":0},null,null,null,null,null,"年",null,null,null,null,{"$f":"VLOOKUP($EK$2,②氏名・生年月日・入卒!$A$6:$W$105,7)","v":0},null,null,null,null,null,"月",null,null,null,null,{"$f":"VLOOKUP($EK$2,②氏名・生年月日・入卒!$A$6:$W$105,8)","v":0},null,null,null,null,null,"日生"]
[]
[null,null,null,null,null,null,null,null,null,null,null,null,null,null,null,null,null,null,null,null,null,null,null,null,null,null,null,null,null,null,null,null,null,null,null,null,null,null,null,null,null,null,null,null,null,null,null,null,null,null,null,null,null,null,null,null,null,null,null,{"$f":"VLOOKUP($EK$2,②氏名・生年月日・入卒!$A$6:$Y$105,20)","v":0},null,null,null,null,null,null,{"$f":"VLOOKUP($EK$2,②氏名・生年月日・入卒!$A$6:$Y$105,21)","v":0},null,null,null,null,null,"年",null,null,null,null,null,{"$f":"VLOOKUP($EK$2,②氏名・生年月日・入卒!$A$6:$Y$105,22)","v":0},null,null,null,null,null,null,"月",null,null,null,null,{"$f":"VLOOKUP($EK$2,②氏名・生年月日・入卒!$A$6:$Y$105,23)","v":0},null,null,null,null,null,null,null,null,null,null,null,null,null,null,null,null,null,null,null,null,null,null,null,null,null,null,null,null,null,null,null,null,null,"卒業"]
[]
[]
[]
[]
[null,null,null,"性　別",null,null,null,null,null,null,null,null,null,null,null,null,null,{"$f":"VLOOKUP($EK$2,②氏名・生年月日・入卒!$A$6:$W$105,10)","v":""}]
[]
[]
[]
[]
[]
[null,"③評定",null,"学習の記録(評定)",null,null,null,null,null,"教科",null,null,null,null,null,null,null,"国語",null,null,null,null,null,null,null,null,null,null,null,null,null,"社会",null,null,null,null,null,null,null,null,null,null,null,null,null,"数学",null,null,null,null,null,null,null,null,null,null,null,null,null,"理科",null,null,null,null,null,null,null,null,null,null,null,null,"音楽",null,null,null,null,null,null,null,null,null,null,null,null,"美術",null,null,null,null,null,null,null,null,null,null,null,null,"保健\n体育",null,null,null,null,null,null,null,null,null,null,null,null,"技術\n家庭",null,null,null,null,null,null,null,null,null,null,null,null,"外国語\n(英語)"]
[]
[]
[]
[]
[]
[]
[]
[]
[]
[null,null,null,null,null,null,null,null,null,{"$f":"IF(①中学校名!$D$13=\"義務教育学校\",\"７年\",\"１年\")","v":"１年"},null,null,null,null,null,null,null,{"$f":"VLOOKUP($EK$2,③評定!$A$5:$AE$104,5)","v":0},null,null,null,null,null,null,null,null,null,null,null,null,null,{"$f":"VLOOKUP($EK$2,③評定!$A$5:$AE$104,6)","v":0},null,null,null,null,null,null,null,null,null,null,null,null,null,{"$f":"VLOOKUP($EK$2,③評定!$A$5:$AE$104,7)","v":0},null,null,null,null,null,null,null,null,null,null,null,null,null,{"$f":"VLOOKUP($EK$2,③評定!$A$5:$AE$104,8)","v":0},null,null,null,null,null,null,null,null,null,null,null,null,{"$f":"VLOOKUP($EK$2,③評定!$A$5:$AE$104,9)","v":0},null,null,null,null,null,null,null,null,null,null,null,null,{"$f":"VLOOKUP($EK$2,③評定!$A$5:$AE$104,10)","v":0},null,null,null,null,null,null,null,null,null,null,null,null,{"$f":"VLOOKUP($EK$2,③評定!$A$5:$AE$104,11)","v":0},null,null,null,null,null,null,null,null,null,null,null,null,{"$f":"VLOOKUP($EK$2,③評定!$A$5:$AE$104,12)","v":0},null,null,null,null,null,null,null,null,null,null,null,null,{"$f":"VLOOKUP($EK$2,③評定!$A$5:$AE$104,13)","v":0}]
[]
[]
[]
[]
[]
[]
[]
[null,null,null,null,null,null,null,null,null,{"$f":"IF(①中学校名!$D$13=\"義務教育学校\",\"８年\",\"２年\")","v":"２年"},null,null,null,null,null,null,null,{"$f":"VLOOKUP($EK$2,③評定!$A$5:$AE$104,14)","v":0},null,null,null,null,null,null,null,null,null,null,null,null,null,{"$f":"VLOOKUP($EK$2,③評定!$A$5:$AE$104,15)","v":0},null,null,null,null,null,null,null,null,null,null,null,null,null,{"$f":"VLOOKUP($EK$2,③評定!$A$5:$AE$104,16)","v":0},null,null,null,null,null,null,null,null,null,null,null,null,null,{"$f":"VLOOKUP($EK$2,③評定!$A$5:$AE$104,17)","v":0},null,null,null,null,null,null,null,null,null,null,null,null,{"$f":"VLOOKUP($EK$2,③評定!$A$5:$AE$104,18)","v":0},null,null,null,null,null,null,null,null,null,null,null,null,{"$f":"VLOOKUP($EK$2,③評定!$A$5:$AE$104,19)","v":0},null,null,null,null,null,null,null,null,null,null,null,null,{"$f":"VLOOKUP($EK$2,③評定!$A$5:$AE$104,20)","v":0},null,null,null,null,null,null,null,null,null,null,null,null,{"$f":"VLOOKUP($EK$2,③評定!$A$5:$AE$104,21)","v":0},null,null,null,null,null,null,null,null,null,null,null,null,{"$f":"VLOOKUP($EK$2,③評定!$A$5:$AE$104,22)","v":0}]
[]
[]
[]
[]
[]
[]
[]
[null,null,null,null,null,null,null,null,null,{"$f":"IF(①中学校名!$D$13=\"義務教育学校\",\"９年\",\"３年\")","v":"３年"},null,null,null,null,null,null,null,{"$f":"VLOOKUP($EK$2,③評定!$A$5:$AE$104,23)","v":0},null,null,null,null,null,null,null,null,null,null,null,null,null,{"$f":"VLOOKUP($EK$2,③評定!$A$5:$AE$104,24)","v":0},null,null,null,null,null,null,null,null,null,null,null,null,null,{"$f":"VLOOKUP($EK$2,③評定!$A$5:$AE$104,25)","v":0},null,null,null,null,null,null,null,null,null,null,null,null,null,{"$f":"VLOOKUP($EK$2,③評定!$A$5:$AE$104,26)","v":0},null,null,null,null,null,null,null,null,null,null,null,null,{"$f":"VLOOKUP($EK$2,③評定!$A$5:$AE$104,27)","v":0},null,null,null,null,null,null,null,null,null,null,null,null,{"$f":"VLOOKUP($EK$2,③評定!$A$5:$AE$104,28)","v":0},null,null,null,null,null,null,null,null,null,null,null,null,{"$f":"VLOOKUP($EK$2,③評定!$A$5:$AE$104,29)","v":0},null,null,null,null,null,null,null,null,null,null,null,null,{"$f":"VLOOKUP($EK$2,③評定!$A$5:$AE$104,30)","v":0},null,null,null,null,null,null,null,null,null,null,null,null,{"$f":"VLOOKUP($EK$2,③評定!$A$5:$AE$104,31)","v":0}]
[]
[]
[]
[]
[]
[]
[]
[null,"④欠席・遅刻・早退",null,"出欠状況等",null,null,null,null,null,"学年",null,null,null,null,null,null,null,"欠席",null,null,null,null,null,null,null,null,null,null,null,null,null,"遅刻",null,null,null,null,null,null,null,null,null,null,null,null,null,"早退",null,null,null,null,null,null,null,null,null,null,null,null,null,"欠席・遅刻・早退の主な理由"]
[]
[]
[]
[]
[]
[null,null,null,null,null,null,null,null,null,{"$f":"IF(①中学校名!$D$13=\"義務教育学校\",\"７年\",\"１年\")","v":"１年"},null,null,null,null,null,null,null,{"$f":"VLOOKUP($EK$2,④欠席・遅刻・早退!$A$5:$P$104,5)","v":0},null,null,null,null,null,null,null,null,null,null,null,null,null,{"$f":"VLOOKUP($EK$2,④欠席・遅刻・早退!$A$5:$P$104,6)","v":0},null,null,null,null,null,null,null,null,null,null,null,null,null,{"$f":"VLOOKUP($EK$2,④欠席・遅刻・早退!$A$5:$P$104,7)","v":0},null,null,null,null,null,null,null,null,null,null,null,null,null,{"$f":"VLOOKUP($EK$2,④欠席・遅刻・早退!$A$5:$P$104,8)","v":0}]
[]
[]
[]
[]
[]
[null,null,null,null,null,null,null,null,null,{"$f":"IF(①中学校名!$D$13=\"義務教育学校\",\"８年\",\"２年\")","v":"２年"},null,null,null,null,null,null,null,{"$f":"VLOOKUP($EK$2,④欠席・遅刻・早退!$A$5:$P$104,9)","v":0},null,null,null,null,null,null,null,null,null,null,null,null,null,{"$f":"VLOOKUP($EK$2,④欠席・遅刻・早退!$A$5:$P$104,10)","v":0},null,null,null,null,null,null,null,null,null,null,null,null,null,{"$f":"VLOOKUP($EK$2,④欠席・遅刻・早退!$A$5:$P$104,11)","v":0},null,null,null,null,null,null,null,null,null,null,null,null,null,{"$f":"VLOOKUP($EK$2,④欠席・遅刻・早退!$A$5:$P$104,12)","v":0}]
[]
[]
[]
[]
[]
[null,null,null,null,null,null,null,null,null,{"$f":"IF(①中学校名!$D$13=\"義務教育学校\",\"９年\",\"３年\")","v":"３年"},null,null,null,null,null,null,null,{"$f":"VLOOKUP($EK$2,④欠席・遅刻・早退!$A$5:$P$104,13)","v":0},null,null,null,null,null,null,null,null,null,null,null,null,null,{"$f":"VLOOKUP($EK$2,④欠席・遅刻・早退!$A$5:$P$104,14)","v":0},null,null,null,null,null,null,null,null,null,null,null,null,null,{"$f":"VLOOKUP($EK$2,④欠席・遅刻・早退!$A$5:$P$104,15)","v":0},null,null,null,null,null,null,null,null,null,null,null,null,null,{"$f":"VLOOKUP($EK$2,④欠席・遅刻・早退!$A$5:$P$104,16)","v":0}]
[]
[]
[]
[]
[]
[null,"⑤健康・特活・転校・所見",null,"健康状態",null,null,null,null,null,null,null,null,null,null,null,null,null,{"$f":"VLOOKUP($EK$2,⑤健康・特活・転校・所見!$A$5:$K$104,5)","v":0}]
[]
[]
[]
[]
[]
[]
[]
[]
[]
[null,null,null,"特別活動\n等の記録",null,null,null,null,null,null,null,null,null,null,null,null,null,{"$f":"VLOOKUP($EK$2,⑤健康・特活・転校・所見!$A$5:$K$104,6)","v":0}]
[]
[]
[]
[]
[]
[]
[]
[]
[]
[]
[]
[]
[]
[]
[]
[]
[]
[]
[]
[null,null,null,"転校歴",null,null,null,null,null,null,null,null,null,null,null,null,null,{"$f":"VLOOKUP($EK$2,⑤健康・特活・転校・所見!$A$5:$K$104,7)","v":0},null,null,null,null,null,null,null,null,"年",null,null,null,{"$f":"VLOOKUP($EK$2,⑤健康・特活・転校・所見!$A$5:$K$104,8)","v":0},null,null,null,null,null,null,null,"月",null,null,null,{"$f":"VLOOKUP($EK$2,⑤健康・特活・転校・所見!$A$5:$K$104,9)","v":0},null,null,null,null,null,null,null,null,null,null,null,"中学校\n(学園)",null,null,null,null,null,null,null,null,null,"から転校",null,null,null,null,null,null,null,null,null,null,null,null,"（理由",null,null,null,null,null,null,null,null,null,null,null,null,null,null,null,null,null,null,null,null,null,null,null,null,null,null,null,null,null,null,null,null,null,null,null,null,null,null,null,null,null,null,null,null,null,null,null,null,null,null,null,null,null,null,null,null,"）"]
[]
[]
[null,null,null,null,null,null,null,null,null,null,null,null,null,null,null,null,null,null,null,null,null,null,null,null,null,null,null,null,null,null,null,null,null,null,null,null,null,null,null,null,null,null,null,null,null,null,null,null,null,null,null,null,null,null,null,null,null,null,null,null,null,null,null,null,null,null,null,null,null,null,null,null,null,null,null,null,null,null,null,null,null,null,null,null,null,null,null,null,{"$f":"VLOOKUP($EK$2,⑤健康・特活・転校・所見!$A$5:$K$104,10)","v":0}]
[]
[]
[]
[]
[]
[]
[null,null,null,"推薦所見",null,null,null,null,null,null,null,null,null,null,null,null,null,{"$f":"VLOOKUP($EK$2,⑤健康・特活・転校・所見!$A$5:$K$104,11)","v":0}]
[]
[]
[]
[]
[]
[]
[]
[]
[]
[]
[]
[]
[]
[]
[]
[]
[]
[]
[]
[null,"②",null,null,null,null,null,null,null,null,null,null,null,null,null,null,null,null,null,null,null,null,null,null,null,null,null,null,null,null,null,null,null,null,null,null,null,null,null,null,null,null,null,null,null,null,null,null,null,null,null,null,null,null,null,null,null,null,null,null,null,null,null,null,null,null,"記載責任者",null,null,null,null,null,null,null,null,null,null,null,null,null,null,null,null,{"$f":"VLOOKUP($EK$2,②氏名・生年月日・入卒!$A$6:$Y$105,25)","v":0},null,null,null,null,null,null,null,null,null,null,null,null,null,null,null,null,null,null,null,null,null,null,null,null,null,null,null,null,null,null,null,null,null,null,null,null,null,null,null,null,null,null,null,null,null,null,"㊞"]
[]
[]
[null,null,null,"国語",null,null,null,null,null,null,null,"数学",null,null,null,null,null,null,null,"英語",null,null,null,null,null,null,null,"社会",null,null,null,null,null,null,null,"理科",null,null,null,null,null,null,null,"※",null,null,null,null,null,null,null,null,"※"]
[]
[]
[]
[null,null,null,"※",null,null,null,null,null,null,null,"※",null,null,null,null,null,null,null,"※",null,null,null,null,null,null,null,"※",null,null,null,null,null,null,null,"※"]
[]
[]
[]
[]
[]
[]
[null,null,null,null,null,null,null,null,null,null,null,null,null,null,null,null,null,null,null,null,null,null,null,null,null,null,null,null,null,null,null,null,null,null,null,null,null,null,null,null,null,null,null,null,null,null,null,null,null,null,null,null,null,null,null,null,null,null,null,null,null,null,null,null,null,"※印の欄には記入しないで下さい。"]